Workbook

Sheet الرصيد الثابت
A1: اللون | B1: الوصف | C1: المقاس | D1: اللون | E1: رصيد اقتتاحي بالكيلو | F1: رصيد اقتتاحي بالمتر | G1: رصيد اقتتاحي بالقطع | H1: رصيد ختامي يالكيلو | I1: رصيد ختامي يالمتر | J1: رصيد ختامي يالقطع
A2: ابيض | B2: استك طبي | C2: 2.58 | D2: =A2&" "&B2&" "&C2 -> ابيض استك طبي 2.58 | H2: =IF(E2="","",SUMIF(الدخول!$B$3:$B$10000,D2,الدخول!$F$3:$F$10000)+SUMIF(الدخول!$B$3:$B$10000,D2,الدخول!$S$3:$S$10000)+E2-SUMIF(الدخول!$B$3:$B$10000,D2,الدخول!$L$3:$L$10000)) ->  | I2: =IF(F2="","",SUMIF(الدخول!$B$3:$B$10000,D2,الدخول!$H$3:$H$10000)+SUMIF(الدخول!$B$3:$B$10000,D2,الدخول!$U$3:$U$10000)+F2-SUMIF(الدخول!$B$3:$B$10000,D2,الدخول!$N$3:$N$10000)) ->  | J2: =IF(G2="","",SUMIF(الدخول!$B$3:$B$10000,D2,الدخول!$I$3:$I$10000)+SUMIF(الدخول!$B$3:$B$10000,D2,الدخول!$V$3:$V$10000)+G2-SUMIF(الدخول!$B$3:$B$10000,D2,الدخول!$O$3:$O$10000)) ->  | M2: اسود | N2: =MATCH(M2,D:D,0) -> 
A3: ابيض | B3: استك طبي | C3: 2.78 | D3: ابيض استك طبي 2.78 | H3: =IF(E3="","",SUMIF(الدخول!$B$3:$B$10000,D3,الدخول!$F$3:$F$10000)+SUMIF(الدخول!$B$3:$B$10000,D3,الدخول!$S$3:$S$10000)+E3-SUMIF(الدخول!$B$3:$B$10000,D3,الدخول!$L$3:$L$10000)) ->  | I3: =IF(F3="","",SUMIF(الدخول!$B$3:$B$10000,D3,الدخول!$H$3:$H$10000)+SUMIF(الدخول!$B$3:$B$10000,D3,الدخول!$U$3:$U$10000)+F3-SUMIF(الدخول!$B$3:$B$10000,D3,الدخول!$N$3:$N$10000)) ->  | J3: =IF(G3="","",SUMIF(الدخول!$B$3:$B$10000,D3,الدخول!$I$3:$I$10000)+SUMIF(الدخول!$B$3:$B$10000,D3,الدخول!$V$3:$V$10000)+G3-SUMIF(الدخول!$B$3:$B$10000,D3,الدخول!$O$3:$O$10000)) -> 
A4: ابيض | B4: استك طبي | C4: 3.02 | D4: ابيض استك طبي 3.02 | H4: =IF(E4="","",SUMIF(الدخول!$B$3:$B$10000,D4,الدخول!$F$3:$F$10000)+SUMIF(الدخول!$B$3:$B$10000,D4,الدخول!$S$3:$S$10000)+E4-SUMIF(الدخول!$B$3:$B$10000,D4,الدخول!$L$3:$L$10000)) ->  | I4: =IF(F4="","",SUMIF(الدخول!$B$3:$B$10000,D4,الدخول!$H$3:$H$10000)+SUMIF(الدخول!$B$3:$B$10000,D4,الدخول!$U$3:$U$10000)+F4-SUMIF(الدخول!$B$3:$B$10000,D4,الدخول!$N$3:$N$10000)) ->  | J4: =IF(G4="","",SUMIF(الدخول!$B$3:$B$10000,D4,الدخول!$I$3:$I$10000)+SUMIF(الدخول!$B$3:$B$10000,D4,الدخول!$V$3:$V$10000)+G4-SUMIF(الدخول!$B$3:$B$10000,D4,الدخول!$O$3:$O$10000)) -> 
A5: ابيض | B5: استك طبي | C5: 3.18 | D5: ابيض استك طبي 3.18 | H5: =IF(E5="","",SUMIF(الدخول!$B$3:$B$10000,D5,الدخول!$F$3:$F$10000)+SUMIF(الدخول!$B$3:$B$10000,D5,الدخول!$S$3:$S$10000)+E5-SUMIF(الدخول!$B$3:$B$10000,D5,الدخول!$L$3:$L$10000)) ->  | I5: =IF(F5="","",SUMIF(الدخول!$B$3:$B$10000,D5,الدخول!$H$3:$H$10000)+SUMIF(الدخول!$B$3:$B$10000,D5,الدخول!$U$3:$U$10000)+F5-SUMIF(الدخول!$B$3:$B$10000,D5,الدخول!$N$3:$N$10000)) ->  | J5: =IF(G5="","",SUMIF(الدخول!$B$3:$B$10000,D5,الدخول!$I$3:$I$10000)+SUMIF(الدخول!$B$3:$B$10000,D5,الدخول!$V$3:$V$10000)+G5-SUMIF(الدخول!$B$3:$B$10000,D5,الدخول!$O$3:$O$10000)) -> 
A6: ابيض | B6: استك طبي | C6: 3.3 | D6: ابيض استك طبي 3.3 | H6: =IF(E6="","",SUMIF(الدخول!$B$3:$B$10000,D6,الدخول!$F$3:$F$10000)+SUMIF(الدخول!$B$3:$B$10000,D6,الدخول!$S$3:$S$10000)+E6-SUMIF(الدخول!$B$3:$B$10000,D6,الدخول!$L$3:$L$10000)) ->  | I6: =IF(F6="","",SUMIF(الدخول!$B$3:$B$10000,D6,الدخول!$H$3:$H$10000)+SUMIF(الدخول!$B$3:$B$10000,D6,الدخول!$U$3:$U$10000)+F6-SUMIF(الدخول!$B$3:$B$10000,D6,الدخول!$N$3:$N$10000)) ->  | J6: =IF(G6="","",SUMIF(الدخول!$B$3:$B$10000,D6,الدخول!$I$3:$I$10000)+SUMIF(الدخول!$B$3:$B$10000,D6,الدخول!$V$3:$V$10000)+G6-SUMIF(الدخول!$B$3:$B$10000,D6,الدخول!$O$3:$O$10000)) -> 
A7: ابيض | B7: استك طبي | C7: 3.36 | D7: ابيض استك طبي 3.36 | H7: =IF(E7="","",SUMIF(الدخول!$B$3:$B$10000,D7,الدخول!$F$3:$F$10000)+SUMIF(الدخول!$B$3:$B$10000,D7,الدخول!$S$3:$S$10000)+E7-SUMIF(الدخول!$B$3:$B$10000,D7,الدخول!$L$3:$L$10000)) ->  | I7: =IF(F7="","",SUMIF(الدخول!$B$3:$B$10000,D7,الدخول!$H$3:$H$10000)+SUMIF(الدخول!$B$3:$B$10000,D7,الدخول!$U$3:$U$10000)+F7-SUMIF(الدخول!$B$3:$B$10000,D7,الدخول!$N$3:$N$10000)) ->  | J7: =IF(G7="","",SUMIF(الدخول!$B$3:$B$10000,D7,الدخول!$I$3:$I$10000)+SUMIF(الدخول!$B$3:$B$10000,D7,الدخول!$V$3:$V$10000)+G7-SUMIF(الدخول!$B$3:$B$10000,D7,الدخول!$O$3:$O$10000)) -> 
A8: ابيض | B8: استك طبي | C8: 3.5 | D8: ابيض استك طبي 3.5 | H8: =IF(E8="","",SUMIF(الدخول!$B$3:$B$10000,D8,الدخول!$F$3:$F$10000)+SUMIF(الدخول!$B$3:$B$10000,D8,الدخول!$S$3:$S$10000)+E8-SUMIF(الدخول!$B$3:$B$10000,D8,الدخول!$L$3:$L$10000)) ->  | I8: =IF(F8="","",SUMIF(الدخول!$B$3:$B$10000,D8,الدخول!$H$3:$H$10000)+SUMIF(الدخول!$B$3:$B$10000,D8,الدخول!$U$3:$U$10000)+F8-SUMIF(الدخول!$B$3:$B$10000,D8,الدخول!$N$3:$N$10000)) ->  | J8: =IF(G8="","",SUMIF(الدخول!$B$3:$B$10000,D8,الدخول!$I$3:$I$10000)+SUMIF(الدخول!$B$3:$B$10000,D8,الدخول!$V$3:$V$10000)+G8-SUMIF(الدخول!$B$3:$B$10000,D8,الدخول!$O$3:$O$10000)) -> 
A9: ابيض | B9: استك طبي | C9: 4.14 | D9: ابيض استك طبي 4.14 | H9: =IF(E9="","",SUMIF(الدخول!$B$3:$B$10000,D9,الدخول!$F$3:$F$10000)+SUMIF(الدخول!$B$3:$B$10000,D9,الدخول!$S$3:$S$10000)+E9-SUMIF(الدخول!$B$3:$B$10000,D9,الدخول!$L$3:$L$10000)) ->  | I9: =IF(F9="","",SUMIF(الدخول!$B$3:$B$10000,D9,الدخول!$H$3:$H$10000)+SUMIF(الدخول!$B$3:$B$10000,D9,الدخول!$U$3:$U$10000)+F9-SUMIF(الدخول!$B$3:$B$10000,D9,الدخول!$N$3:$N$10000)) ->  | J9: =IF(G9="","",SUMIF(الدخول!$B$3:$B$10000,D9,الدخول!$I$3:$I$10000)+SUMIF(الدخول!$B$3:$B$10000,D9,الدخول!$V$3:$V$10000)+G9-SUMIF(الدخول!$B$3:$B$10000,D9,الدخول!$O$3:$O$10000)) -> 
A10: ابيض | B10: استك طبي | C10: 4.92 | D10: ابيض استك طبي 4.92 | H10: =IF(E10="","",SUMIF(الدخول!$B$3:$B$10000,D10,الدخول!$F$3:$F$10000)+SUMIF(الدخول!$B$3:$B$10000,D10,الدخول!$S$3:$S$10000)+E10-SUMIF(الدخول!$B$3:$B$10000,D10,الدخول!$L$3:$L$10000)) ->  | I10: =IF(F10="","",SUMIF(الدخول!$B$3:$B$10000,D10,الدخول!$H$3:$H$10000)+SUMIF(الدخول!$B$3:$B$10000,D10,الدخول!$U$3:$U$10000)+F10-SUMIF(الدخول!$B$3:$B$10000,D10,الدخول!$N$3:$N$10000)) ->  | J10: =IF(G10="","",SUMIF(الدخول!$B$3:$B$10000,D10,الدخول!$I$3:$I$10000)+SUMIF(الدخول!$B$3:$B$10000,D10,الدخول!$V$3:$V$10000)+G10-SUMIF(الدخول!$B$3:$B$10000,D10,الدخول!$O$3:$O$10000)) -> 
A11: ابيض | B11: استك طبي | C11: 7.52 | D11: ابيض استك طبي 7.52 | H11: =IF(E11="","",SUMIF(الدخول!$B$3:$B$10000,D11,الدخول!$F$3:$F$10000)+SUMIF(الدخول!$B$3:$B$10000,D11,الدخول!$S$3:$S$10000)+E11-SUMIF(الدخول!$B$3:$B$10000,D11,الدخول!$L$3:$L$10000)) ->  | I11: =IF(F11="","",SUMIF(الدخول!$B$3:$B$10000,D11,الدخول!$H$3:$H$10000)+SUMIF(الدخول!$B$3:$B$10000,D11,الدخول!$U$3:$U$10000)+F11-SUMIF(الدخول!$B$3:$B$10000,D11,الدخول!$N$3:$N$10000)) ->  | J11: =IF(G11="","",SUMIF(الدخول!$B$3:$B$10000,D11,الدخول!$I$3:$I$10000)+SUMIF(الدخول!$B$3:$B$10000,D11,الدخول!$V$3:$V$10000)+G11-SUMIF(الدخول!$B$3:$B$10000,D11,الدخول!$O$3:$O$10000)) -> 
A12: ابيض | B12: كروشيه | C12: 1.2cm | D12: ابيض كروشيه 1.2cm | E12: 7.64 | F12: 686 | H12: =IF(E12="","",SUMIF(الدخول!$B$3:$B$10000,D12,الدخول!$F$3:$F$10000)+SUMIF(الدخول!$B$3:$B$10000,D12,الدخول!$S$3:$S$10000)+E12-SUMIF(الدخول!$B$3:$B$10000,D12,الدخول!$L$3:$L$10000)) -> 7.64 | I12: =IF(F12="","",SUMIF(الدخول!$B$3:$B$10000,D12,الدخول!$H$3:$H$10000)+SUMIF(الدخول!$B$3:$B$10000,D12,الدخول!$U$3:$U$10000)+F12-SUMIF(الدخول!$B$3:$B$10000,D12,الدخول!$N$3:$N$10000)) -> 686 | J12: =IF(G12="","",SUMIF(الدخول!$B$3:$B$10000,D12,الدخول!$I$3:$I$10000)+SUMIF(الدخول!$B$3:$B$10000,D12,الدخول!$V$3:$V$10000)+G12-SUMIF(الدخول!$B$3:$B$10000,D12,الدخول!$O$3:$O$10000)) -> 
A13: ابيض | B13: كروشيه | C13: 1.3cm | D13: ابيض كروشيه 1.3cm | H13: =IF(E13="","",SUMIF(الدخول!$B$3:$B$10000,D13,الدخول!$F$3:$F$10000)+SUMIF(الدخول!$B$3:$B$10000,D13,الدخول!$S$3:$S$10000)+E13-SUMIF(الدخول!$B$3:$B$10000,D13,الدخول!$L$3:$L$10000)) ->  | I13: =IF(F13="","",SUMIF(الدخول!$B$3:$B$10000,D13,الدخول!$H$3:$H$10000)+SUMIF(الدخول!$B$3:$B$10000,D13,الدخول!$U$3:$U$10000)+F13-SUMIF(الدخول!$B$3:$B$10000,D13,الدخول!$N$3:$N$10000)) ->  | J13: =IF(G13="","",SUMIF(الدخول!$B$3:$B$10000,D13,الدخول!$I$3:$I$10000)+SUMIF(الدخول!$B$3:$B$10000,D13,الدخول!$V$3:$V$10000)+G13-SUMIF(الدخول!$B$3:$B$10000,D13,الدخول!$O$3:$O$10000)) -> 
A14: ابيض | B14: كروشيه | C14: 1.5cm | D14: ابيض كروشيه 1.5cm | E14: 7.64 | F14: 1488 | H14: =IF(E14="","",SUMIF(الدخول!$B$3:$B$10000,D14,الدخول!$F$3:$F$10000)+SUMIF(الدخول!$B$3:$B$10000,D14,الدخول!$S$3:$S$10000)+E14-SUMIF(الدخول!$B$3:$B$10000,D14,الدخول!$L$3:$L$10000)) -> 3.64 | I14: =IF(F14="","",SUMIF(الدخول!$B$3:$B$10000,D14,الدخول!$H$3:$H$10000)+SUMIF(الدخول!$B$3:$B$10000,D14,الدخول!$U$3:$U$10000)+F14-SUMIF(الدخول!$B$3:$B$10000,D14,الدخول!$N$3:$N$10000)) -> 1483 | J14: =IF(G14="","",SUMIF(الدخول!$B$3:$B$10000,D14,الدخول!$I$3:$I$10000)+SUMIF(الدخول!$B$3:$B$10000,D14,الدخول!$V$3:$V$10000)+G14-SUMIF(الدخول!$B$3:$B$10000,D14,الدخول!$O$3:$O$10000)) -> 
A15: ابيض | B15: كروشيه | C15: 1.6cm | D15: ابيض كروشيه 1.6cm | H15: =IF(E15="","",SUMIF(الدخول!$B$3:$B$10000,D15,الدخول!$F$3:$F$10000)+SUMIF(الدخول!$B$3:$B$10000,D15,الدخول!$S$3:$S$10000)+E15-SUMIF(الدخول!$B$3:$B$10000,D15,الدخول!$L$3:$L$10000)) ->  | I15: =IF(F15="","",SUMIF(الدخول!$B$3:$B$10000,D15,الدخول!$H$3:$H$10000)+SUMIF(الدخول!$B$3:$B$10000,D15,الدخول!$U$3:$U$10000)+F15-SUMIF(الدخول!$B$3:$B$10000,D15,الدخول!$N$3:$N$10000)) ->  | J15: =IF(G15="","",SUMIF(الدخول!$B$3:$B$10000,D15,الدخول!$I$3:$I$10000)+SUMIF(الدخول!$B$3:$B$10000,D15,الدخول!$V$3:$V$10000)+G15-SUMIF(الدخول!$B$3:$B$10000,D15,الدخول!$O$3:$O$10000)) -> 
A16: ابيض | B16: كروشيه | C16: 1.8cm | D16: ابيض كروشيه 1.8cm | H16: =IF(E16="","",SUMIF(الدخول!$B$3:$B$10000,D16,الدخول!$F$3:$F$10000)+SUMIF(الدخول!$B$3:$B$10000,D16,الدخول!$S$3:$S$10000)+E16-SUMIF(الدخول!$B$3:$B$10000,D16,الدخول!$L$3:$L$10000)) ->  | I16: =IF(F16="","",SUMIF(الدخول!$B$3:$B$10000,D16,الدخول!$H$3:$H$10000)+SUMIF(الدخول!$B$3:$B$10000,D16,الدخول!$U$3:$U$10000)+F16-SUMIF(الدخول!$B$3:$B$10000,D16,الدخول!$N$3:$N$10000)) ->  | J16: =IF(G16="","",SUMIF(الدخول!$B$3:$B$10000,D16,الدخول!$I$3:$I$10000)+SUMIF(الدخول!$B$3:$B$10000,D16,الدخول!$V$3:$V$10000)+G16-SUMIF(الدخول!$B$3:$B$10000,D16,الدخول!$O$3:$O$10000)) -> 
A17: ابيض | B17: كروشيه | C17: 1cm | D17: ابيض كروشيه 1cm | E17: 7.64 | F17: 653 | H17: =IF(E17="","",SUMIF(الدخول!$B$3:$B$10000,D17,الدخول!$F$3:$F$10000)+SUMIF(الدخول!$B$3:$B$10000,D17,الدخول!$S$3:$S$10000)+E17-SUMIF(الدخول!$B$3:$B$10000,D17,الدخول!$L$3:$L$10000)) -> 7.64 | I17: =IF(F17="","",SUMIF(الدخول!$B$3:$B$10000,D17,الدخول!$H$3:$H$10000)+SUMIF(الدخول!$B$3:$B$10000,D17,الدخول!$U$3:$U$10000)+F17-SUMIF(الدخول!$B$3:$B$10000,D17,الدخول!$N$3:$N$10000)) -> 653 | J17: =IF(G17="","",SUMIF(الدخول!$B$3:$B$10000,D17,الدخول!$I$3:$I$10000)+SUMIF(الدخول!$B$3:$B$10000,D17,الدخول!$V$3:$V$10000)+G17-SUMIF(الدخول!$B$3:$B$10000,D17,الدخول!$O$3:$O$10000)) -> 
A18: ابيض | B18: كروشيه | C18: 2.2cm | D18: ابيض كروشيه 2.2cm | E18: 168.08 | F18: 14608 | H18: =IF(E18="","",SUMIF(الدخول!$B$3:$B$10000,D18,الدخول!$F$3:$F$10000)+SUMIF(الدخول!$B$3:$B$10000,D18,الدخول!$S$3:$S$10000)+E18-SUMIF(الدخول!$B$3:$B$10000,D18,الدخول!$L$3:$L$10000)) -> 168.08 | I18: =IF(F18="","",SUMIF(الدخول!$B$3:$B$10000,D18,الدخول!$H$3:$H$10000)+SUMIF(الدخول!$B$3:$B$10000,D18,الدخول!$U$3:$U$10000)+F18-SUMIF(الدخول!$B$3:$B$10000,D18,الدخول!$N$3:$N$10000)) -> 14608 | J18: =IF(G18="","",SUMIF(الدخول!$B$3:$B$10000,D18,الدخول!$I$3:$I$10000)+SUMIF(الدخول!$B$3:$B$10000,D18,الدخول!$V$3:$V$10000)+G18-SUMIF(الدخول!$B$3:$B$10000,D18,الدخول!$O$3:$O$10000)) -> 
A19: ابيض | B19: كروشيه | C19: 2.5cm | D19: ابيض كروشيه 2.5cm | E19: 55.32 | F19: 4128 | H19: =IF(E19="","",SUMIF(الدخول!$B$3:$B$10000,D19,الدخول!$F$3:$F$10000)+SUMIF(الدخول!$B$3:$B$10000,D19,الدخول!$S$3:$S$10000)+E19-SUMIF(الدخول!$B$3:$B$10000,D19,الدخول!$L$3:$L$10000)) -> 55.32 | I19: =IF(F19="","",SUMIF(الدخول!$B$3:$B$10000,D19,الدخول!$H$3:$H$10000)+SUMIF(الدخول!$B$3:$B$10000,D19,الدخول!$U$3:$U$10000)+F19-SUMIF(الدخول!$B$3:$B$10000,D19,الدخول!$N$3:$N$10000)) -> 4128 | J19: =IF(G19="","",SUMIF(الدخول!$B$3:$B$10000,D19,الدخول!$I$3:$I$10000)+SUMIF(الدخول!$B$3:$B$10000,D19,الدخول!$V$3:$V$10000)+G19-SUMIF(الدخول!$B$3:$B$10000,D19,الدخول!$O$3:$O$10000)) -> 
A20: ابيض | B20: كروشيه | C20: 2cm | D20: ابيض كروشيه 2cm | E20: 1260.6 | F20: 118390 | H20: =IF(E20="","",SUMIF(الدخول!$B$3:$B$10000,D20,الدخول!$F$3:$F$10000)+SUMIF(الدخول!$B$3:$B$10000,D20,الدخول!$S$3:$S$10000)+E20-SUMIF(الدخول!$B$3:$B$10000,D20,الدخول!$L$3:$L$10000)) -> 1260.6 | I20: =IF(F20="","",SUMIF(الدخول!$B$3:$B$10000,D20,الدخول!$H$3:$H$10000)+SUMIF(الدخول!$B$3:$B$10000,D20,الدخول!$U$3:$U$10000)+F20-SUMIF(الدخول!$B$3:$B$10000,D20,الدخول!$N$3:$N$10000)) -> 118390 | J20: =IF(G20="","",SUMIF(الدخول!$B$3:$B$10000,D20,الدخول!$I$3:$I$10000)+SUMIF(الدخول!$B$3:$B$10000,D20,الدخول!$V$3:$V$10000)+G20-SUMIF(الدخول!$B$3:$B$10000,D20,الدخول!$O$3:$O$10000)) -> 
A21: ابيض | B21: كروشيه | C21: 2m | D21: ابيض كروشيه 2m | H21: =IF(E21="","",SUMIF(الدخول!$B$3:$B$10000,D21,الدخول!$F$3:$F$10000)+SUMIF(الدخول!$B$3:$B$10000,D21,الدخول!$S$3:$S$10000)+E21-SUMIF(الدخول!$B$3:$B$10000,D21,الدخول!$L$3:$L$10000)) ->  | I21: =IF(F21="","",SUMIF(الدخول!$B$3:$B$10000,D21,الدخول!$H$3:$H$10000)+SUMIF(الدخول!$B$3:$B$10000,D21,الدخول!$U$3:$U$10000)+F21-SUMIF(الدخول!$B$3:$B$10000,D21,الدخول!$N$3:$N$10000)) ->  | J21: =IF(G21="","",SUMIF(الدخول!$B$3:$B$10000,D21,الدخول!$I$3:$I$10000)+SUMIF(الدخول!$B$3:$B$10000,D21,الدخول!$V$3:$V$10000)+G21-SUMIF(الدخول!$B$3:$B$10000,D21,الدخول!$O$3:$O$10000)) -> 
A22: ابيض | B22: كروشيه | C22: 3.2cm | D22: ابيض كروشيه 3.2cm | E22: 18.44 | F22: 1096 | H22: =IF(E22="","",SUMIF(الدخول!$B$3:$B$10000,D22,الدخول!$F$3:$F$10000)+SUMIF(الدخول!$B$3:$B$10000,D22,الدخول!$S$3:$S$10000)+E22-SUMIF(الدخول!$B$3:$B$10000,D22,الدخول!$L$3:$L$10000)) -> 18.44 | I22: =IF(F22="","",SUMIF(الدخول!$B$3:$B$10000,D22,الدخول!$H$3:$H$10000)+SUMIF(الدخول!$B$3:$B$10000,D22,الدخول!$U$3:$U$10000)+F22-SUMIF(الدخول!$B$3:$B$10000,D22,الدخول!$N$3:$N$10000)) -> 1096 | J22: =IF(G22="","",SUMIF(الدخول!$B$3:$B$10000,D22,الدخول!$I$3:$I$10000)+SUMIF(الدخول!$B$3:$B$10000,D22,الدخول!$V$3:$V$10000)+G22-SUMIF(الدخول!$B$3:$B$10000,D22,الدخول!$O$3:$O$10000)) -> 
A23: ابيض | B23: كروشيه | C23: 3.5cm | D23: ابيض كروشيه 3.5cm | E23: 5670.3 | F23: 298275 | H23: =IF(E23="","",SUMIF(الدخول!$B$3:$B$10000,D23,الدخول!$F$3:$F$10000)+SUMIF(الدخول!$B$3:$B$10000,D23,الدخول!$S$3:$S$10000)+E23-SUMIF(الدخول!$B$3:$B$10000,D23,الدخول!$L$3:$L$10000)) -> 5665.3 | I23: =IF(F23="","",SUMIF(الدخول!$B$3:$B$10000,D23,الدخول!$H$3:$H$10000)+SUMIF(الدخول!$B$3:$B$10000,D23,الدخول!$U$3:$U$10000)+F23-SUMIF(الدخول!$B$3:$B$10000,D23,الدخول!$N$3:$N$10000)) -> 298273 | J23: =IF(G23="","",SUMIF(الدخول!$B$3:$B$10000,D23,الدخول!$I$3:$I$10000)+SUMIF(الدخول!$B$3:$B$10000,D23,الدخول!$V$3:$V$10000)+G23-SUMIF(الدخول!$B$3:$B$10000,D23,الدخول!$O$3:$O$10000)) -> 
A24: ابيض | B24: كروشيه | C24: 3cm | D24: ابيض كروشيه 3cm | E24: 40010.7 | F24: 242730 | H24: =IF(E24="","",SUMIF(الدخول!$B$3:$B$10000,D24,الدخول!$F$3:$F$10000)+SUMIF(الدخول!$B$3:$B$10000,D24,الدخول!$S$3:$S$10000)+E24-SUMIF(الدخول!$B$3:$B$10000,D24,الدخول!$L$3:$L$10000)) -> 40003.7 | I24: =IF(F24="","",SUMIF(الدخول!$B$3:$B$10000,D24,الدخول!$H$3:$H$10000)+SUMIF(الدخول!$B$3:$B$10000,D24,الدخول!$U$3:$U$10000)+F24-SUMIF(الدخول!$B$3:$B$10000,D24,الدخول!$N$3:$N$10000)) -> 242728 | J24: =IF(G24="","",SUMIF(الدخول!$B$3:$B$10000,D24,الدخول!$I$3:$I$10000)+SUMIF(الدخول!$B$3:$B$10000,D24,الدخول!$V$3:$V$10000)+G24-SUMIF(الدخول!$B$3:$B$10000,D24,الدخول!$O$3:$O$10000)) -> 
A25: ابيض | B25: كروشيه | C25: 4.5cm | D25: ابيض كروشيه 4.5cm | E25: 497.88 | F25: 22626 | H25: =IF(E25="","",SUMIF(الدخول!$B$3:$B$10000,D25,الدخول!$F$3:$F$10000)+SUMIF(الدخول!$B$3:$B$10000,D25,الدخول!$S$3:$S$10000)+E25-SUMIF(الدخول!$B$3:$B$10000,D25,الدخول!$L$3:$L$10000)) -> 497.88 | I25: =IF(F25="","",SUMIF(الدخول!$B$3:$B$10000,D25,الدخول!$H$3:$H$10000)+SUMIF(الدخول!$B$3:$B$10000,D25,الدخول!$U$3:$U$10000)+F25-SUMIF(الدخول!$B$3:$B$10000,D25,الدخول!$N$3:$N$10000)) -> 22626 | J25: =IF(G25="","",SUMIF(الدخول!$B$3:$B$10000,D25,الدخول!$I$3:$I$10000)+SUMIF(الدخول!$B$3:$B$10000,D25,الدخول!$V$3:$V$10000)+G25-SUMIF(الدخول!$B$3:$B$10000,D25,الدخول!$O$3:$O$10000)) -> 
A26: ابيض | B26: كروشيه | C26: 4cm | D26: ابيض كروشيه 4cm | E26: 3900.06 | F26: 170892 | H26: =IF(E26="","",SUMIF(الدخول!$B$3:$B$10000,D26,الدخول!$F$3:$F$10000)+SUMIF(الدخول!$B$3:$B$10000,D26,الدخول!$S$3:$S$10000)+E26-SUMIF(الدخول!$B$3:$B$10000,D26,الدخول!$L$3:$L$10000)) -> 3900.06 | I26: =IF(F26="","",SUMIF(الدخول!$B$3:$B$10000,D26,الدخول!$H$3:$H$10000)+SUMIF(الدخول!$B$3:$B$10000,D26,الدخول!$U$3:$U$10000)+F26-SUMIF(الدخول!$B$3:$B$10000,D26,الدخول!$N$3:$N$10000)) -> 170892 | J26: =IF(G26="","",SUMIF(الدخول!$B$3:$B$10000,D26,الدخول!$I$3:$I$10000)+SUMIF(الدخول!$B$3:$B$10000,D26,الدخول!$V$3:$V$10000)+G26-SUMIF(الدخول!$B$3:$B$10000,D26,الدخول!$O$3:$O$10000)) -> 
A27: ابيض | B27: كروشيه | C27: 5.3cm | D27: ابيض كروشيه 5.3cm | E27: 9.22 | F27: 237 | H27: =IF(E27="","",SUMIF(الدخول!$B$3:$B$10000,D27,الدخول!$F$3:$F$10000)+SUMIF(الدخول!$B$3:$B$10000,D27,الدخول!$S$3:$S$10000)+E27-SUMIF(الدخول!$B$3:$B$10000,D27,الدخول!$L$3:$L$10000)) -> 9.22 | I27: =IF(F27="","",SUMIF(الدخول!$B$3:$B$10000,D27,الدخول!$H$3:$H$10000)+SUMIF(الدخول!$B$3:$B$10000,D27,الدخول!$U$3:$U$10000)+F27-SUMIF(الدخول!$B$3:$B$10000,D27,الدخول!$N$3:$N$10000)) -> 237 | J27: =IF(G27="","",SUMIF(الدخول!$B$3:$B$10000,D27,الدخول!$I$3:$I$10000)+SUMIF(الدخول!$B$3:$B$10000,D27,الدخول!$V$3:$V$10000)+G27-SUMIF(الدخول!$B$3:$B$10000,D27,الدخول!$O$3:$O$10000)) -> 
A28: ابيض | B28: كروشيه | C28: 5.5cm | D28: ابيض كروشيه 5.5cm | E28: 5024.9 | F28: 168405 | H28: =IF(E28="","",SUMIF(الدخول!$B$3:$B$10000,D28,الدخول!$F$3:$F$10000)+SUMIF(الدخول!$B$3:$B$10000,D28,الدخول!$S$3:$S$10000)+E28-SUMIF(الدخول!$B$3:$B$10000,D28,الدخول!$L$3:$L$10000)) -> 5024.9 | I28: =IF(F28="","",SUMIF(الدخول!$B$3:$B$10000,D28,الدخول!$H$3:$H$10000)+SUMIF(الدخول!$B$3:$B$10000,D28,الدخول!$U$3:$U$10000)+F28-SUMIF(الدخول!$B$3:$B$10000,D28,الدخول!$N$3:$N$10000)) -> 168405 | J28: =IF(G28="","",SUMIF(الدخول!$B$3:$B$10000,D28,الدخول!$I$3:$I$10000)+SUMIF(الدخول!$B$3:$B$10000,D28,الدخول!$V$3:$V$10000)+G28-SUMIF(الدخول!$B$3:$B$10000,D28,الدخول!$O$3:$O$10000)) -> 
A29: ابيض | B29: كروشيه | C29: 5.8cm | D29: ابيض كروشيه 5.8cm | E29: 9.22 | F29: 341 | H29: =IF(E29="","",SUMIF(الدخول!$B$3:$B$10000,D29,الدخول!$F$3:$F$10000)+SUMIF(الدخول!$B$3:$B$10000,D29,الدخول!$S$3:$S$10000)+E29-SUMIF(الدخول!$B$3:$B$10000,D29,الدخول!$L$3:$L$10000)) -> 9.22 | I29: =IF(F29="","",SUMIF(الدخول!$B$3:$B$10000,D29,الدخول!$H$3:$H$10000)+SUMIF(الدخول!$B$3:$B$10000,D29,الدخول!$U$3:$U$10000)+F29-SUMIF(الدخول!$B$3:$B$10000,D29,الدخول!$N$3:$N$10000)) -> 341
A30: ابيض | B30: كروشيه | C30: 5cm | D30: ابيض كروشيه 5cm | E30: 868.1 | F30: 34545 | H30: =IF(E30="","",SUMIF(الدخول!$B$3:$B$10000,D30,الدخول!$F$3:$F$10000)+SUMIF(الدخول!$B$3:$B$10000,D30,الدخول!$S$3:$S$10000)+E30-SUMIF(الدخول!$B$3:$B$10000,D30,الدخول!$L$3:$L$10000)) -> 868.1 | I30: =IF(F30="","",SUMIF(الدخول!$B$3:$B$10000,D30,الدخول!$H$3:$H$10000)+SUMIF(الدخول!$B$3:$B$10000,D30,الدخول!$U$3:$U$10000)+F30-SUMIF(الدخول!$B$3:$B$10000,D30,الدخول!$N$3:$N$10000)) -> 34545 | J30: =IF(G30="","",SUMIF(الدخول!$B$3:$B$1311,D30,الدخول!$I$3:$I$1311)+SUMIF(الدخول!$B$3:$B$1311,D30,الدخول!$V$3:$V$1311)+G30-SUMIF(الدخول!$B$3:$B$1311,D30,الدخول!$O$3:$O$1311)) -> 
A31: ابيض | B31: كروشيه | C31: 5m | D31: ابيض كروشيه 5m | H31: =IF(E31="","",SUMIF(الدخول!$B$3:$B$10000,D31,الدخول!$F$3:$F$10000)+SUMIF(الدخول!$B$3:$B$10000,D31,الدخول!$S$3:$S$10000)+E31-SUMIF(الدخول!$B$3:$B$10000,D31,الدخول!$L$3:$L$10000)) ->  | I31: =IF(F31="","",SUMIF(الدخول!$B$3:$B$10000,D31,الدخول!$H$3:$H$10000)+SUMIF(الدخول!$B$3:$B$10000,D31,الدخول!$U$3:$U$10000)+F31-SUMIF(الدخول!$B$3:$B$10000,D31,الدخول!$N$3:$N$10000)) ->  | J31: =IF(G31="","",SUMIF(الدخول!$B$3:$B$1311,D31,الدخول!$I$3:$I$1311)+SUMIF(الدخول!$B$3:$B$1311,D31,الدخول!$V$3:$V$1311)+G31-SUMIF(الدخول!$B$3:$B$1311,D31,الدخول!$O$3:$O$1311)) -> 
A32: ابيض | B32: كروشيه | C32: 5mm | D32: ابيض كروشيه 5mm | E32: 5.84 | F32: 5178 | H32: =IF(E32="","",SUMIF(الدخول!$B$3:$B$10000,D32,الدخول!$F$3:$F$10000)+SUMIF(الدخول!$B$3:$B$10000,D32,الدخول!$S$3:$S$10000)+E32-SUMIF(الدخول!$B$3:$B$10000,D32,الدخول!$L$3:$L$10000)) -> 5.84 | I32: =IF(F32="","",SUMIF(الدخول!$B$3:$B$10000,D32,الدخول!$H$3:$H$10000)+SUMIF(الدخول!$B$3:$B$10000,D32,الدخول!$U$3:$U$10000)+F32-SUMIF(الدخول!$B$3:$B$10000,D32,الدخول!$N$3:$N$10000)) -> 5178 | J32: =IF(G32="","",SUMIF(الدخول!$B$3:$B$1311,D32,الدخول!$I$3:$I$1311)+SUMIF(الدخول!$B$3:$B$1311,D32,الدخول!$V$3:$V$1311)+G32-SUMIF(الدخول!$B$3:$B$1311,D32,الدخول!$O$3:$O$1311)) -> 
A33: ابيض | B33: كروشيه | C33: 6.3cm | D33: ابيض كروشيه 6.3cm | H33: =IF(E33="","",SUMIF(الدخول!$B$3:$B$10000,D33,الدخول!$F$3:$F$10000)+SUMIF(الدخول!$B$3:$B$10000,D33,الدخول!$S$3:$S$10000)+E33-SUMIF(الدخول!$B$3:$B$10000,D33,الدخول!$L$3:$L$10000)) ->  | I33: =IF(F33="","",SUMIF(الدخول!$B$3:$B$10000,D33,الدخول!$H$3:$H$10000)+SUMIF(الدخول!$B$3:$B$10000,D33,الدخول!$U$3:$U$10000)+F33-SUMIF(الدخول!$B$3:$B$10000,D33,الدخول!$N$3:$N$10000)) ->  | J33: =IF(G33="","",SUMIF(الدخول!$B$3:$B$1311,D33,الدخول!$I$3:$I$1311)+SUMIF(الدخول!$B$3:$B$1311,D33,الدخول!$V$3:$V$1311)+G33-SUMIF(الدخول!$B$3:$B$1311,D33,الدخول!$O$3:$O$1311)) -> 
A34: ابيض | B34: كروشيه | C34: 6.5cm | D34: ابيض كروشيه 6.5cm | E34: 673.06 | F34: 20148 | H34: =IF(E34="","",SUMIF(الدخول!$B$3:$B$10000,D34,الدخول!$F$3:$F$10000)+SUMIF(الدخول!$B$3:$B$10000,D34,الدخول!$S$3:$S$10000)+E34-SUMIF(الدخول!$B$3:$B$10000,D34,الدخول!$L$3:$L$10000)) -> 673.06 | I34: =IF(F34="","",SUMIF(الدخول!$B$3:$B$10000,D34,الدخول!$H$3:$H$10000)+SUMIF(الدخول!$B$3:$B$10000,D34,الدخول!$U$3:$U$10000)+F34-SUMIF(الدخول!$B$3:$B$10000,D34,الدخول!$N$3:$N$10000)) -> 20148 | J34: =IF(G34="","",SUMIF(الدخول!$B$3:$B$1311,D34,الدخول!$I$3:$I$1311)+SUMIF(الدخول!$B$3:$B$1311,D34,الدخول!$V$3:$V$1311)+G34-SUMIF(الدخول!$B$3:$B$1311,D34,الدخول!$O$3:$O$1311)) -> 
A35: ابيض | B35: كروشيه | C35: 6m | D35: ابيض كروشيه 6m | H35: =IF(E35="","",SUMIF(الدخول!$B$3:$B$10000,D35,الدخول!$F$3:$F$10000)+SUMIF(الدخول!$B$3:$B$10000,D35,الدخول!$S$3:$S$10000)+E35-SUMIF(الدخول!$B$3:$B$10000,D35,الدخول!$L$3:$L$10000)) ->  | I35: =IF(F35="","",SUMIF(الدخول!$B$3:$B$10000,D35,الدخول!$H$3:$H$10000)+SUMIF(الدخول!$B$3:$B$10000,D35,الدخول!$U$3:$U$10000)+F35-SUMIF(الدخول!$B$3:$B$10000,D35,الدخول!$N$3:$N$10000)) ->  | J35: =IF(G35="","",SUMIF(الدخول!$B$3:$B$1311,D35,الدخول!$I$3:$I$1311)+SUMIF(الدخول!$B$3:$B$1311,D35,الدخول!$V$3:$V$1311)+G35-SUMIF(الدخول!$B$3:$B$1311,D35,الدخول!$O$3:$O$1311)) -> 
A36: ابيض | B36: كروشيه | C36: 6mm | D36: ابيض كروشيه 6mm | E36: 35.04 | F36: 8568 | H36: =IF(E36="","",SUMIF(الدخول!$B$3:$B$10000,D36,الدخول!$F$3:$F$10000)+SUMIF(الدخول!$B$3:$B$10000,D36,الدخول!$S$3:$S$10000)+E36-SUMIF(الدخول!$B$3:$B$10000,D36,الدخول!$L$3:$L$10000)) -> 35.04 | I36: =IF(F36="","",SUMIF(الدخول!$B$3:$B$10000,D36,الدخول!$H$3:$H$10000)+SUMIF(الدخول!$B$3:$B$10000,D36,الدخول!$U$3:$U$10000)+F36-SUMIF(الدخول!$B$3:$B$10000,D36,الدخول!$N$3:$N$10000)) -> 8568 | J36: =IF(G36="","",SUMIF(الدخول!$B$3:$B$1311,D36,الدخول!$I$3:$I$1311)+SUMIF(الدخول!$B$3:$B$1311,D36,الدخول!$V$3:$V$1311)+G36-SUMIF(الدخول!$B$3:$B$1311,D36,الدخول!$O$3:$O$1311)) -> 
A37: ابيض | B37: كروشيه | C37: 7cm | D37: ابيض كروشيه 7cm | H37: =IF(E37="","",SUMIF(الدخول!$B$3:$B$10000,D37,الدخول!$F$3:$F$10000)+SUMIF(الدخول!$B$3:$B$10000,D37,الدخول!$S$3:$S$10000)+E37-SUMIF(الدخول!$B$3:$B$10000,D37,الدخول!$L$3:$L$10000)) ->  | I37: =IF(F37="","",SUMIF(الدخول!$B$3:$B$10000,D37,الدخول!$H$3:$H$10000)+SUMIF(الدخول!$B$3:$B$10000,D37,الدخول!$U$3:$U$10000)+F37-SUMIF(الدخول!$B$3:$B$10000,D37,الدخول!$N$3:$N$10000)) ->  | J37: =IF(G37="","",SUMIF(الدخول!$B$3:$B$1311,D37,الدخول!$I$3:$I$1311)+SUMIF(الدخول!$B$3:$B$1311,D37,الدخول!$V$3:$V$1311)+G37-SUMIF(الدخول!$B$3:$B$1311,D37,الدخول!$O$3:$O$1311)) -> 
A38: ابيض | B38: كروشيه | C38: 7m | D38: ابيض كروشيه 7m | H38: =IF(E38="","",SUMIF(الدخول!$B$3:$B$10000,D38,الدخول!$F$3:$F$10000)+SUMIF(الدخول!$B$3:$B$10000,D38,الدخول!$S$3:$S$10000)+E38-SUMIF(الدخول!$B$3:$B$10000,D38,الدخول!$L$3:$L$10000)) ->  | I38: =IF(F38="","",SUMIF(الدخول!$B$3:$B$10000,D38,الدخول!$H$3:$H$10000)+SUMIF(الدخول!$B$3:$B$10000,D38,الدخول!$U$3:$U$10000)+F38-SUMIF(الدخول!$B$3:$B$10000,D38,الدخول!$N$3:$N$10000)) ->  | J38: =IF(G38="","",SUMIF(الدخول!$B$3:$B$1311,D38,الدخول!$I$3:$I$1311)+SUMIF(الدخول!$B$3:$B$1311,D38,الدخول!$V$3:$V$1311)+G38-SUMIF(الدخول!$B$3:$B$1311,D38,الدخول!$O$3:$O$1311)) -> 
A39: ابيض | B39: كروشيه | C39: 7mm | D39: ابيض كروشيه 7mm | E39: 5.84 | F39: 1315 | H39: =IF(E39="","",SUMIF(الدخول!$B$3:$B$10000,D39,الدخول!$F$3:$F$10000)+SUMIF(الدخول!$B$3:$B$10000,D39,الدخول!$S$3:$S$10000)+E39-SUMIF(الدخول!$B$3:$B$10000,D39,الدخول!$L$3:$L$10000)) -> 5.84 | I39: =IF(F39="","",SUMIF(الدخول!$B$3:$B$10000,D39,الدخول!$H$3:$H$10000)+SUMIF(الدخول!$B$3:$B$10000,D39,الدخول!$U$3:$U$10000)+F39-SUMIF(الدخول!$B$3:$B$10000,D39,الدخول!$N$3:$N$10000)) -> 1315 | J39: =IF(G39="","",SUMIF(الدخول!$B$3:$B$1311,D39,الدخول!$I$3:$I$1311)+SUMIF(الدخول!$B$3:$B$1311,D39,الدخول!$V$3:$V$1311)+G39-SUMIF(الدخول!$B$3:$B$1311,D39,الدخول!$O$3:$O$1311)) -> 
A40: ابيض | B40: كروشيه | C40: 8mm | D40: ابيض كروشيه 8mm | E40: 5.84 | F40: 1168 | H40: =IF(E40="","",SUMIF(الدخول!$B$3:$B$10000,D40,الدخول!$F$3:$F$10000)+SUMIF(الدخول!$B$3:$B$10000,D40,الدخول!$S$3:$S$10000)+E40-SUMIF(الدخول!$B$3:$B$10000,D40,الدخول!$L$3:$L$10000)) -> 5.84 | I40: =IF(F40="","",SUMIF(الدخول!$B$3:$B$10000,D40,الدخول!$H$3:$H$10000)+SUMIF(الدخول!$B$3:$B$10000,D40,الدخول!$U$3:$U$10000)+F40-SUMIF(الدخول!$B$3:$B$10000,D40,الدخول!$N$3:$N$10000)) -> 1168 | J40: =IF(G40="","",SUMIF(الدخول!$B$3:$B$1311,D40,الدخول!$I$3:$I$1311)+SUMIF(الدخول!$B$3:$B$1311,D40,الدخول!$V$3:$V$1311)+G40-SUMIF(الدخول!$B$3:$B$1311,D40,الدخول!$O$3:$O$1311)) -> 
A41: ابيض | B41: ووفين | C41: 1.5cm | D41: ابيض ووفين 1.5cm | E41: 272.8 | H41: =IF(E41="","",SUMIF(الدخول!$B$3:$B$10000,D41,الدخول!$F$3:$F$10000)+SUMIF(الدخول!$B$3:$B$10000,D41,الدخول!$S$3:$S$10000)+E41-SUMIF(الدخول!$B$3:$B$10000,D41,الدخول!$L$3:$L$10000)) -> 272.8 | I41: =IF(F41="","",SUMIF(الدخول!$B$3:$B$10000,D41,الدخول!$H$3:$H$10000)+SUMIF(الدخول!$B$3:$B$10000,D41,الدخول!$U$3:$U$10000)+F41-SUMIF(الدخول!$B$3:$B$10000,D41,الدخول!$N$3:$N$10000)) ->  | J41: =IF(G41="","",SUMIF(الدخول!$B$3:$B$1311,D41,الدخول!$I$3:$I$1311)+SUMIF(الدخول!$B$3:$B$1311,D41,الدخول!$V$3:$V$1311)+G41-SUMIF(الدخول!$B$3:$B$1311,D41,الدخول!$O$3:$O$1311)) -> 
A42: ابيض | B42: ووفين | C42: 2.5cm | D42: ابيض ووفين 2.5cm | E42: 275 | H42: =IF(E42="","",SUMIF(الدخول!$B$3:$B$10000,D42,الدخول!$F$3:$F$10000)+SUMIF(الدخول!$B$3:$B$10000,D42,الدخول!$S$3:$S$10000)+E42-SUMIF(الدخول!$B$3:$B$10000,D42,الدخول!$L$3:$L$10000)) -> 275 | I42: =IF(F42="","",SUMIF(الدخول!$B$3:$B$10000,D42,الدخول!$H$3:$H$10000)+SUMIF(الدخول!$B$3:$B$10000,D42,الدخول!$U$3:$U$10000)+F42-SUMIF(الدخول!$B$3:$B$10000,D42,الدخول!$N$3:$N$10000)) ->  | J42: =IF(G42="","",SUMIF(الدخول!$B$3:$B$1311,D42,الدخول!$I$3:$I$1311)+SUMIF(الدخول!$B$3:$B$1311,D42,الدخول!$V$3:$V$1311)+G42-SUMIF(الدخول!$B$3:$B$1311,D42,الدخول!$O$3:$O$1311)) -> 
A43: ابيض | B43: ووفين ساندوتش | C43: 1.5cm | D43: ابيض ووفين ساندوتش 1.5cm | E43: 66 | H43: =IF(E43="","",SUMIF(الدخول!$B$3:$B$10000,D43,الدخول!$F$3:$F$10000)+SUMIF(الدخول!$B$3:$B$10000,D43,الدخول!$S$3:$S$10000)+E43-SUMIF(الدخول!$B$3:$B$10000,D43,الدخول!$L$3:$L$10000)) -> 66 | I43: =IF(F43="","",SUMIF(الدخول!$B$3:$B$10000,D43,الدخول!$H$3:$H$10000)+SUMIF(الدخول!$B$3:$B$10000,D43,الدخول!$U$3:$U$10000)+F43-SUMIF(الدخول!$B$3:$B$10000,D43,الدخول!$N$3:$N$10000)) ->  | J43: =IF(G43="","",SUMIF(الدخول!$B$3:$B$1311,D43,الدخول!$I$3:$I$1311)+SUMIF(الدخول!$B$3:$B$1311,D43,الدخول!$V$3:$V$1311)+G43-SUMIF(الدخول!$B$3:$B$1311,D43,الدخول!$O$3:$O$1311)) -> 
A44: ابيض | B44: ووفين ساندوتش | C44: 2.2cm | D44: ابيض ووفين ساندوتش 2.2cm | E44: 41.2 | H44: =IF(E44="","",SUMIF(الدخول!$B$3:$B$10000,D44,الدخول!$F$3:$F$10000)+SUMIF(الدخول!$B$3:$B$10000,D44,الدخول!$S$3:$S$10000)+E44-SUMIF(الدخول!$B$3:$B$10000,D44,الدخول!$L$3:$L$10000)) -> 41.2 | I44: =IF(F44="","",SUMIF(الدخول!$B$3:$B$10000,D44,الدخول!$H$3:$H$10000)+SUMIF(الدخول!$B$3:$B$10000,D44,الدخول!$U$3:$U$10000)+F44-SUMIF(الدخول!$B$3:$B$10000,D44,الدخول!$N$3:$N$10000)) ->  | J44: =IF(G44="","",SUMIF(الدخول!$B$3:$B$1311,D44,الدخول!$I$3:$I$1311)+SUMIF(الدخول!$B$3:$B$1311,D44,الدخول!$V$3:$V$1311)+G44-SUMIF(الدخول!$B$3:$B$1311,D44,الدخول!$O$3:$O$1311)) -> 
A45: ابيض | B45: ووفين ساندوتش | C45: 2.5cm | D45: ابيض ووفين ساندوتش 2.5cm | E45: 38.87 | H45: =IF(E45="","",SUMIF(الدخول!$B$3:$B$10000,D45,الدخول!$F$3:$F$10000)+SUMIF(الدخول!$B$3:$B$10000,D45,الدخول!$S$3:$S$10000)+E45-SUMIF(الدخول!$B$3:$B$10000,D45,الدخول!$L$3:$L$10000)) -> 38.87 | I45: =IF(F45="","",SUMIF(الدخول!$B$3:$B$10000,D45,الدخول!$H$3:$H$10000)+SUMIF(الدخول!$B$3:$B$10000,D45,الدخول!$U$3:$U$10000)+F45-SUMIF(الدخول!$B$3:$B$10000,D45,الدخول!$N$3:$N$10000)) ->  | J45: =IF(G45="","",SUMIF(الدخول!$B$3:$B$1311,D45,الدخول!$I$3:$I$1311)+SUMIF(الدخول!$B$3:$B$1311,D45,الدخول!$V$3:$V$1311)+G45-SUMIF(الدخول!$B$3:$B$1311,D45,الدخول!$O$3:$O$1311)) -> 
A46: ابيض | B46: ووفين ساندوتش القطة | C46: 2.5cm | D46: ابيض ووفين ساندوتش القطة 2.5cm | E46: 5 | H46: =IF(E46="","",SUMIF(الدخول!$B$3:$B$10000,D46,الدخول!$F$3:$F$10000)+SUMIF(الدخول!$B$3:$B$10000,D46,الدخول!$S$3:$S$10000)+E46-SUMIF(الدخول!$B$3:$B$10000,D46,الدخول!$L$3:$L$10000)) -> 5 | I46: =IF(F46="","",SUMIF(الدخول!$B$3:$B$10000,D46,الدخول!$H$3:$H$10000)+SUMIF(الدخول!$B$3:$B$10000,D46,الدخول!$U$3:$U$10000)+F46-SUMIF(الدخول!$B$3:$B$10000,D46,الدخول!$N$3:$N$10000)) ->  | J46: =IF(G46="","",SUMIF(الدخول!$B$3:$B$1311,D46,الدخول!$I$3:$I$1311)+SUMIF(الدخول!$B$3:$B$1311,D46,الدخول!$V$3:$V$1311)+G46-SUMIF(الدخول!$B$3:$B$1311,D46,الدخول!$O$3:$O$1311)) -> 
A47: ابيض | B47: ووفين ساندوتش قديم | C47: 1.5cm | D47: ابيض ووفين ساندوتش قديم 1.5cm | E47: 251.1 | H47: =IF(E47="","",SUMIF(الدخول!$B$3:$B$10000,D47,الدخول!$F$3:$F$10000)+SUMIF(الدخول!$B$3:$B$10000,D47,الدخول!$S$3:$S$10000)+E47-SUMIF(الدخول!$B$3:$B$10000,D47,الدخول!$L$3:$L$10000)) -> 251.1 | I47: =IF(F47="","",SUMIF(الدخول!$B$3:$B$10000,D47,الدخول!$H$3:$H$10000)+SUMIF(الدخول!$B$3:$B$10000,D47,الدخول!$U$3:$U$10000)+F47-SUMIF(الدخول!$B$3:$B$10000,D47,الدخول!$N$3:$N$10000)) ->  | J47: =IF(G47="","",SUMIF(الدخول!$B$3:$B$1311,D47,الدخول!$I$3:$I$1311)+SUMIF(الدخول!$B$3:$B$1311,D47,الدخول!$V$3:$V$1311)+G47-SUMIF(الدخول!$B$3:$B$1311,D47,الدخول!$O$3:$O$1311)) -> 
A48: ابيض | B48: ووفين ساندوتش قديم | C48: 1.6 cm | D48: ابيض ووفين ساندوتش قديم 1.6 cm | E48: 13.4 | H48: =IF(E48="","",SUMIF(الدخول!$B$3:$B$10000,D48,الدخول!$F$3:$F$10000)+SUMIF(الدخول!$B$3:$B$10000,D48,الدخول!$S$3:$S$10000)+E48-SUMIF(الدخول!$B$3:$B$10000,D48,الدخول!$L$3:$L$10000)) -> 13.4 | I48: =IF(F48="","",SUMIF(الدخول!$B$3:$B$10000,D48,الدخول!$H$3:$H$10000)+SUMIF(الدخول!$B$3:$B$10000,D48,الدخول!$U$3:$U$10000)+F48-SUMIF(الدخول!$B$3:$B$10000,D48,الدخول!$N$3:$N$10000)) ->  | J48: =IF(G48="","",SUMIF(الدخول!$B$3:$B$1311,D48,الدخول!$I$3:$I$1311)+SUMIF(الدخول!$B$3:$B$1311,D48,الدخول!$V$3:$V$1311)+G48-SUMIF(الدخول!$B$3:$B$1311,D48,الدخول!$O$3:$O$1311)) -> 
A49: ابيض | B49: ووفين فستون | C49: 1cm | D49: ابيض ووفين فستون 1cm | E49: 80.15 | H49: =IF(E49="","",SUMIF(الدخول!$B$3:$B$10000,D49,الدخول!$F$3:$F$10000)+SUMIF(الدخول!$B$3:$B$10000,D49,الدخول!$S$3:$S$10000)+E49-SUMIF(الدخول!$B$3:$B$10000,D49,الدخول!$L$3:$L$10000)) -> 80.15 | I49: =IF(F49="","",SUMIF(الدخول!$B$3:$B$10000,D49,الدخول!$H$3:$H$10000)+SUMIF(الدخول!$B$3:$B$10000,D49,الدخول!$U$3:$U$10000)+F49-SUMIF(الدخول!$B$3:$B$10000,D49,الدخول!$N$3:$N$10000)) ->  | J49: =IF(G49="","",SUMIF(الدخول!$B$3:$B$1311,D49,الدخول!$I$3:$I$1311)+SUMIF(الدخول!$B$3:$B$1311,D49,الدخول!$V$3:$V$1311)+G49-SUMIF(الدخول!$B$3:$B$1311,D49,الدخول!$O$3:$O$1311)) -> 
A50: ابيض | B50: ووفين فستون | C50: 1cm | D50: ابيض ووفين فستون 1cm | E50: 80.15 | H50: =IF(E50="","",SUMIF(الدخول!$B$3:$B$10000,D50,الدخول!$F$3:$F$10000)+SUMIF(الدخول!$B$3:$B$10000,D50,الدخول!$S$3:$S$10000)+E50-SUMIF(الدخول!$B$3:$B$10000,D50,الدخول!$L$3:$L$10000)) -> 80.15 | I50: =IF(F50="","",SUMIF(الدخول!$B$3:$B$10000,D50,الدخول!$H$3:$H$10000)+SUMIF(الدخول!$B$3:$B$10000,D50,الدخول!$U$3:$U$10000)+F50-SUMIF(الدخول!$B$3:$B$10000,D50,الدخول!$N$3:$N$10000)) ->  | J50: =IF(G50="","",SUMIF(الدخول!$B$3:$B$1311,D50,الدخول!$I$3:$I$1311)+SUMIF(الدخول!$B$3:$B$1311,D50,الدخول!$V$3:$V$1311)+G50-SUMIF(الدخول!$B$3:$B$1311,D50,الدخول!$O$3:$O$1311)) -> 
A51: ابيض 406 | B51: كروشيه | C51: 5 cm | D51: ابيض 406 كروشيه 5 cm | E51: 110.46 | F51: 4872 | H51: =IF(E51="","",SUMIF(الدخول!$B$3:$B$10000,D51,الدخول!$F$3:$F$10000)+SUMIF(الدخول!$B$3:$B$10000,D51,الدخول!$S$3:$S$10000)+E51-SUMIF(الدخول!$B$3:$B$10000,D51,الدخول!$L$3:$L$10000)) -> 110.46 | I51: =IF(F51="","",SUMIF(الدخول!$B$3:$B$10000,D51,الدخول!$H$3:$H$10000)+SUMIF(الدخول!$B$3:$B$10000,D51,الدخول!$U$3:$U$10000)+F51-SUMIF(الدخول!$B$3:$B$10000,D51,الدخول!$N$3:$N$10000)) -> 4872 | J51: =IF(G51="","",SUMIF(الدخول!$B$3:$B$1311,D51,الدخول!$I$3:$I$1311)+SUMIF(الدخول!$B$3:$B$1311,D51,الدخول!$V$3:$V$1311)+G51-SUMIF(الدخول!$B$3:$B$1311,D51,الدخول!$O$3:$O$1311)) -> 
A52: ابيض 510 | B52: كروشيه | C52: 2.3 cm | D52: ابيض 510 كروشيه 2.3 cm | E52: 38.2 | F52: 4250 | H52: =IF(E52="","",SUMIF(الدخول!$B$3:$B$10000,D52,الدخول!$F$3:$F$10000)+SUMIF(الدخول!$B$3:$B$10000,D52,الدخول!$S$3:$S$10000)+E52-SUMIF(الدخول!$B$3:$B$10000,D52,الدخول!$L$3:$L$10000)) -> 38.2 | I52: =IF(F52="","",SUMIF(الدخول!$B$3:$B$10000,D52,الدخول!$H$3:$H$10000)+SUMIF(الدخول!$B$3:$B$10000,D52,الدخول!$U$3:$U$10000)+F52-SUMIF(الدخول!$B$3:$B$10000,D52,الدخول!$N$3:$N$10000)) -> 4250 | J52: =IF(G52="","",SUMIF(الدخول!$B$3:$B$1311,D52,الدخول!$I$3:$I$1311)+SUMIF(الدخول!$B$3:$B$1311,D52,الدخول!$V$3:$V$1311)+G52-SUMIF(الدخول!$B$3:$B$1311,D52,الدخول!$O$3:$O$1311)) -> 
A53: ابيض 510 | B53: كروشيه | C53: 5 cm | D53: ابيض 510 كروشيه 5 cm | E53: 46.1 | F53: 1553 | H53: =IF(E53="","",SUMIF(الدخول!$B$3:$B$10000,D53,الدخول!$F$3:$F$10000)+SUMIF(الدخول!$B$3:$B$10000,D53,الدخول!$S$3:$S$10000)+E53-SUMIF(الدخول!$B$3:$B$10000,D53,الدخول!$L$3:$L$10000)) -> 46.1 | I53: =IF(F53="","",SUMIF(الدخول!$B$3:$B$10000,D53,الدخول!$H$3:$H$10000)+SUMIF(الدخول!$B$3:$B$10000,D53,الدخول!$U$3:$U$10000)+F53-SUMIF(الدخول!$B$3:$B$10000,D53,الدخول!$N$3:$N$10000)) -> 1553 | J53: =IF(G53="","",SUMIF(الدخول!$B$3:$B$1311,D53,الدخول!$I$3:$I$1311)+SUMIF(الدخول!$B$3:$B$1311,D53,الدخول!$V$3:$V$1311)+G53-SUMIF(الدخول!$B$3:$B$1311,D53,الدخول!$O$3:$O$1311)) -> 
A54: ابيض فلاش | B54: كروشيه | C54: 2cm | D54: ابيض فلاش كروشيه 2cm | E54: 313.48 | F54: 22168 | H54: =IF(E54="","",SUMIF(الدخول!$B$3:$B$10000,D54,الدخول!$F$3:$F$10000)+SUMIF(الدخول!$B$3:$B$10000,D54,الدخول!$S$3:$S$10000)+E54-SUMIF(الدخول!$B$3:$B$10000,D54,الدخول!$L$3:$L$10000)) -> 313.48 | I54: =IF(F54="","",SUMIF(الدخول!$B$3:$B$10000,D54,الدخول!$H$3:$H$10000)+SUMIF(الدخول!$B$3:$B$10000,D54,الدخول!$U$3:$U$10000)+F54-SUMIF(الدخول!$B$3:$B$10000,D54,الدخول!$N$3:$N$10000)) -> 22168 | J54: =IF(G54="","",SUMIF(الدخول!$B$3:$B$1311,D54,الدخول!$I$3:$I$1311)+SUMIF(الدخول!$B$3:$B$1311,D54,الدخول!$V$3:$V$1311)+G54-SUMIF(الدخول!$B$3:$B$1311,D54,الدخول!$O$3:$O$1311)) -> 
A55: ابيض فلاش | B55: كروشيه | C55: 3.5cm | D55: ابيض فلاش كروشيه 3.5cm | E55: 543.98 | F55: 24721 | H55: =IF(E55="","",SUMIF(الدخول!$B$3:$B$10000,D55,الدخول!$F$3:$F$10000)+SUMIF(الدخول!$B$3:$B$10000,D55,الدخول!$S$3:$S$10000)+E55-SUMIF(الدخول!$B$3:$B$10000,D55,الدخول!$L$3:$L$10000)) -> 543.98 | I55: =IF(F55="","",SUMIF(الدخول!$B$3:$B$10000,D55,الدخول!$H$3:$H$10000)+SUMIF(الدخول!$B$3:$B$10000,D55,الدخول!$U$3:$U$10000)+F55-SUMIF(الدخول!$B$3:$B$10000,D55,الدخول!$N$3:$N$10000)) -> 24721 | J55: =IF(G55="","",SUMIF(الدخول!$B$3:$B$1311,D55,الدخول!$I$3:$I$1311)+SUMIF(الدخول!$B$3:$B$1311,D55,الدخول!$V$3:$V$1311)+G55-SUMIF(الدخول!$B$3:$B$1311,D55,الدخول!$O$3:$O$1311)) -> 
A56: ابيض فلاش | B56: كروشيه | C56: 4.5cm | D56: ابيض فلاش كروشيه 4.5cm | E56: 396.46 | F56: 14663 | H56: =IF(E56="","",SUMIF(الدخول!$B$3:$B$10000,D56,الدخول!$F$3:$F$10000)+SUMIF(الدخول!$B$3:$B$10000,D56,الدخول!$S$3:$S$10000)+E56-SUMIF(الدخول!$B$3:$B$10000,D56,الدخول!$L$3:$L$10000)) -> 396.46 | I56: =IF(F56="","",SUMIF(الدخول!$B$3:$B$10000,D56,الدخول!$H$3:$H$10000)+SUMIF(الدخول!$B$3:$B$10000,D56,الدخول!$U$3:$U$10000)+F56-SUMIF(الدخول!$B$3:$B$10000,D56,الدخول!$N$3:$N$10000)) -> 14663 | J56: =IF(G56="","",SUMIF(الدخول!$B$3:$B$1311,D56,الدخول!$I$3:$I$1311)+SUMIF(الدخول!$B$3:$B$1311,D56,الدخول!$V$3:$V$1311)+G56-SUMIF(الدخول!$B$3:$B$1311,D56,الدخول!$O$3:$O$1311)) -> 
A57: ابيض فلاش | B57: كروشيه | C57: 5cm | D57: ابيض فلاش كروشيه 5cm | E57: 1530.52 | F57: 47808 | H57: =IF(E57="","",SUMIF(الدخول!$B$3:$B$10000,D57,الدخول!$F$3:$F$10000)+SUMIF(الدخول!$B$3:$B$10000,D57,الدخول!$S$3:$S$10000)+E57-SUMIF(الدخول!$B$3:$B$10000,D57,الدخول!$L$3:$L$10000)) -> 1530.52 | I57: =IF(F57="","",SUMIF(الدخول!$B$3:$B$10000,D57,الدخول!$H$3:$H$10000)+SUMIF(الدخول!$B$3:$B$10000,D57,الدخول!$U$3:$U$10000)+F57-SUMIF(الدخول!$B$3:$B$10000,D57,الدخول!$N$3:$N$10000)) -> 47808 | J57: =IF(G57="","",SUMIF(الدخول!$B$3:$B$1311,D57,الدخول!$I$3:$I$1311)+SUMIF(الدخول!$B$3:$B$1311,D57,الدخول!$V$3:$V$1311)+G57-SUMIF(الدخول!$B$3:$B$1311,D57,الدخول!$O$3:$O$1311)) -> 
A58: ابيض كانون | B58: كروشيه | C58: 4.5cm | D58: ابيض كانون كروشيه 4.5cm | E58: 27.66 | F58: 921 | H58: =IF(E58="","",SUMIF(الدخول!$B$3:$B$10000,D58,الدخول!$F$3:$F$10000)+SUMIF(الدخول!$B$3:$B$10000,D58,الدخول!$S$3:$S$10000)+E58-SUMIF(الدخول!$B$3:$B$10000,D58,الدخول!$L$3:$L$10000)) -> 27.66 | I58: =IF(F58="","",SUMIF(الدخول!$B$3:$B$10000,D58,الدخول!$H$3:$H$10000)+SUMIF(الدخول!$B$3:$B$10000,D58,الدخول!$U$3:$U$10000)+F58-SUMIF(الدخول!$B$3:$B$10000,D58,الدخول!$N$3:$N$10000)) -> 921 | J58: =IF(G58="","",SUMIF(الدخول!$B$3:$B$1311,D58,الدخول!$I$3:$I$1311)+SUMIF(الدخول!$B$3:$B$1311,D58,الدخول!$V$3:$V$1311)+G58-SUMIF(الدخول!$B$3:$B$1311,D58,الدخول!$O$3:$O$1311)) -> 
A59: ابيض كانون | B59: كروشيه | C59: 5.5cm | D59: ابيض كانون كروشيه 5.5cm | E59: 129.08 | F59: 3627 | H59: =IF(E59="","",SUMIF(الدخول!$B$3:$B$10000,D59,الدخول!$F$3:$F$10000)+SUMIF(الدخول!$B$3:$B$10000,D59,الدخول!$S$3:$S$10000)+E59-SUMIF(الدخول!$B$3:$B$10000,D59,الدخول!$L$3:$L$10000)) -> 129.08 | I59: =IF(F59="","",SUMIF(الدخول!$B$3:$B$10000,D59,الدخول!$H$3:$H$10000)+SUMIF(الدخول!$B$3:$B$10000,D59,الدخول!$U$3:$U$10000)+F59-SUMIF(الدخول!$B$3:$B$10000,D59,الدخول!$N$3:$N$10000)) -> 3627 | J59: =IF(G59="","",SUMIF(الدخول!$B$3:$B$1311,D59,الدخول!$I$3:$I$1311)+SUMIF(الدخول!$B$3:$B$1311,D59,الدخول!$V$3:$V$1311)+G59-SUMIF(الدخول!$B$3:$B$1311,D59,الدخول!$O$3:$O$1311)) -> 
A60: ابيض510 | B60: كروشيه | C60: 3cm | D60: ابيض510 كروشيه 3cm | E60: 212.06 | F60: 13746 | H60: =IF(E60="","",SUMIF(الدخول!$B$3:$B$10000,D60,الدخول!$F$3:$F$10000)+SUMIF(الدخول!$B$3:$B$10000,D60,الدخول!$S$3:$S$10000)+E60-SUMIF(الدخول!$B$3:$B$10000,D60,الدخول!$L$3:$L$10000)) -> 212.06 | I60: =IF(F60="","",SUMIF(الدخول!$B$3:$B$10000,D60,الدخول!$H$3:$H$10000)+SUMIF(الدخول!$B$3:$B$10000,D60,الدخول!$U$3:$U$10000)+F60-SUMIF(الدخول!$B$3:$B$10000,D60,الدخول!$N$3:$N$10000)) -> 13746 | J60: =IF(G60="","",SUMIF(الدخول!$B$3:$B$1311,D60,الدخول!$I$3:$I$1311)+SUMIF(الدخول!$B$3:$B$1311,D60,الدخول!$V$3:$V$1311)+G60-SUMIF(الدخول!$B$3:$B$1311,D60,الدخول!$O$3:$O$1311)) -> 
A61: ابيض510 | B61: كروشيه | C61: 4cm | D61: ابيض510 كروشيه 4cm | E61: 27.66 | F61: 1147 | H61: =IF(E61="","",SUMIF(الدخول!$B$3:$B$10000,D61,الدخول!$F$3:$F$10000)+SUMIF(الدخول!$B$3:$B$10000,D61,الدخول!$S$3:$S$10000)+E61-SUMIF(الدخول!$B$3:$B$10000,D61,الدخول!$L$3:$L$10000)) -> 27.66 | I61: =IF(F61="","",SUMIF(الدخول!$B$3:$B$10000,D61,الدخول!$H$3:$H$10000)+SUMIF(الدخول!$B$3:$B$10000,D61,الدخول!$U$3:$U$10000)+F61-SUMIF(الدخول!$B$3:$B$10000,D61,الدخول!$N$3:$N$10000)) -> 1147 | J61: =IF(G61="","",SUMIF(الدخول!$B$3:$B$1311,D61,الدخول!$I$3:$I$1311)+SUMIF(الدخول!$B$3:$B$1311,D61,الدخول!$V$3:$V$1311)+G61-SUMIF(الدخول!$B$3:$B$1311,D61,الدخول!$O$3:$O$1311)) -> 
A62: احمر | B62: كورد | C62: كبسله بلاستك | D62: احمر كورد كبسله بلاستك | H62: =IF(E62="","",SUMIF(الدخول!$B$3:$B$10000,D62,الدخول!$F$3:$F$10000)+SUMIF(الدخول!$B$3:$B$10000,D62,الدخول!$S$3:$S$10000)+E62-SUMIF(الدخول!$B$3:$B$10000,D62,الدخول!$L$3:$L$10000)) ->  | I62: =IF(F62="","",SUMIF(الدخول!$B$3:$B$10000,D62,الدخول!$H$3:$H$10000)+SUMIF(الدخول!$B$3:$B$10000,D62,الدخول!$U$3:$U$10000)+F62-SUMIF(الدخول!$B$3:$B$10000,D62,الدخول!$N$3:$N$10000)) ->  | J62: =IF(G62="","",SUMIF(الدخول!$B$3:$B$1311,D62,الدخول!$I$3:$I$1311)+SUMIF(الدخول!$B$3:$B$1311,D62,الدخول!$V$3:$V$1311)+G62-SUMIF(الدخول!$B$3:$B$1311,D62,الدخول!$O$3:$O$1311)) -> 
A63: احمر | B63: كورد | C63: مبطط | D63: احمر كورد مبطط | H63: =IF(E63="","",SUMIF(الدخول!$B$3:$B$10000,D63,الدخول!$F$3:$F$10000)+SUMIF(الدخول!$B$3:$B$10000,D63,الدخول!$S$3:$S$10000)+E63-SUMIF(الدخول!$B$3:$B$10000,D63,الدخول!$L$3:$L$10000)) ->  | I63: =IF(F63="","",SUMIF(الدخول!$B$3:$B$10000,D63,الدخول!$H$3:$H$10000)+SUMIF(الدخول!$B$3:$B$10000,D63,الدخول!$U$3:$U$10000)+F63-SUMIF(الدخول!$B$3:$B$10000,D63,الدخول!$N$3:$N$10000)) ->  | J63: =IF(G63="","",SUMIF(الدخول!$B$3:$B$1311,D63,الدخول!$I$3:$I$1311)+SUMIF(الدخول!$B$3:$B$1311,D63,الدخول!$V$3:$V$1311)+G63-SUMIF(الدخول!$B$3:$B$1311,D63,الدخول!$O$3:$O$1311)) -> 
A64: اخضر | B64: كورد | C64: مبطط | D64: اخضر كورد مبطط | H64: =IF(E64="","",SUMIF(الدخول!$B$3:$B$10000,D64,الدخول!$F$3:$F$10000)+SUMIF(الدخول!$B$3:$B$10000,D64,الدخول!$S$3:$S$10000)+E64-SUMIF(الدخول!$B$3:$B$10000,D64,الدخول!$L$3:$L$10000)) ->  | I64: =IF(F64="","",SUMIF(الدخول!$B$3:$B$10000,D64,الدخول!$H$3:$H$10000)+SUMIF(الدخول!$B$3:$B$10000,D64,الدخول!$U$3:$U$10000)+F64-SUMIF(الدخول!$B$3:$B$10000,D64,الدخول!$N$3:$N$10000)) ->  | J64: =IF(G64="","",SUMIF(الدخول!$B$3:$B$1311,D64,الدخول!$I$3:$I$1311)+SUMIF(الدخول!$B$3:$B$1311,D64,الدخول!$V$3:$V$1311)+G64-SUMIF(الدخول!$B$3:$B$1311,D64,الدخول!$O$3:$O$1311)) -> 
A65: اخضر X زيتي | B65: بايبينج | C65: 1cm | D65: اخضر X زيتي بايبينج 1cm | E65: 62.46 | F65: 12492 | H65: =IF(E65="","",SUMIF(الدخول!$B$3:$B$10000,D65,الدخول!$F$3:$F$10000)+SUMIF(الدخول!$B$3:$B$10000,D65,الدخول!$S$3:$S$10000)+E65-SUMIF(الدخول!$B$3:$B$10000,D65,الدخول!$L$3:$L$10000)) -> 62.46 | I65: =IF(F65="","",SUMIF(الدخول!$B$3:$B$10000,D65,الدخول!$H$3:$H$10000)+SUMIF(الدخول!$B$3:$B$10000,D65,الدخول!$U$3:$U$10000)+F65-SUMIF(الدخول!$B$3:$B$10000,D65,الدخول!$N$3:$N$10000)) -> 12492 | J65: =IF(G65="","",SUMIF(الدخول!$B$3:$B$1311,D65,الدخول!$I$3:$I$1311)+SUMIF(الدخول!$B$3:$B$1311,D65,الدخول!$V$3:$V$1311)+G65-SUMIF(الدخول!$B$3:$B$1311,D65,الدخول!$O$3:$O$1311)) -> 
A66: اسود | B66: استك طبي | C66: 2.26 | D66: =A66&" "&B66&" "&C66 -> اسود استك طبي 2.26 | H66: =IF(E66="","",SUMIF(الدخول!$B$3:$B$10000,D66,الدخول!$F$3:$F$10000)+SUMIF(الدخول!$B$3:$B$10000,D66,الدخول!$S$3:$S$10000)+E66-SUMIF(الدخول!$B$3:$B$10000,D66,الدخول!$L$3:$L$10000)) ->  | I66: =IF(F66="","",SUMIF(الدخول!$B$3:$B$10000,D66,الدخول!$H$3:$H$10000)+SUMIF(الدخول!$B$3:$B$10000,D66,الدخول!$U$3:$U$10000)+F66-SUMIF(الدخول!$B$3:$B$10000,D66,الدخول!$N$3:$N$10000)) ->  | J66: =IF(G66="","",SUMIF(الدخول!$B$3:$B$1311,D66,الدخول!$I$3:$I$1311)+SUMIF(الدخول!$B$3:$B$1311,D66,الدخول!$V$3:$V$1311)+G66-SUMIF(الدخول!$B$3:$B$1311,D66,الدخول!$O$3:$O$1311)) -> 
A67: اسود | B67: استك طبي | C67: 2.98 | D67: اسود استك طبي 2.98 | H67: =IF(E67="","",SUMIF(الدخول!$B$3:$B$10000,D67,الدخول!$F$3:$F$10000)+SUMIF(الدخول!$B$3:$B$10000,D67,الدخول!$S$3:$S$10000)+E67-SUMIF(الدخول!$B$3:$B$10000,D67,الدخول!$L$3:$L$10000)) ->  | I67: =IF(F67="","",SUMIF(الدخول!$B$3:$B$10000,D67,الدخول!$H$3:$H$10000)+SUMIF(الدخول!$B$3:$B$10000,D67,الدخول!$U$3:$U$10000)+F67-SUMIF(الدخول!$B$3:$B$10000,D67,الدخول!$N$3:$N$10000)) ->  | J67: =IF(G67="","",SUMIF(الدخول!$B$3:$B$1311,D67,الدخول!$I$3:$I$1311)+SUMIF(الدخول!$B$3:$B$1311,D67,الدخول!$V$3:$V$1311)+G67-SUMIF(الدخول!$B$3:$B$1311,D67,الدخول!$O$3:$O$1311)) -> 
A68: اسود | B68: كروشيه | C68: 1.2cm | D68: اسود كروشيه 1.2cm | E68: 9220 | F68: 1042 | H68: =IF(E68="","",SUMIF(الدخول!$B$3:$B$10000,D68,الدخول!$F$3:$F$10000)+SUMIF(الدخول!$B$3:$B$10000,D68,الدخول!$S$3:$S$10000)+E68-SUMIF(الدخول!$B$3:$B$10000,D68,الدخول!$L$3:$L$10000)) -> 9220 | I68: =IF(F68="","",SUMIF(الدخول!$B$3:$B$10000,D68,الدخول!$H$3:$H$10000)+SUMIF(الدخول!$B$3:$B$10000,D68,الدخول!$U$3:$U$10000)+F68-SUMIF(الدخول!$B$3:$B$10000,D68,الدخول!$N$3:$N$10000)) -> 1042 | J68: =IF(G68="","",SUMIF(الدخول!$B$3:$B$1311,D68,الدخول!$I$3:$I$1311)+SUMIF(الدخول!$B$3:$B$1311,D68,الدخول!$V$3:$V$1311)+G68-SUMIF(الدخول!$B$3:$B$1311,D68,الدخول!$O$3:$O$1311)) -> 
A69: اسود | B69: كروشيه | C69: 1.2cm | D69: اسود كروشيه 1.2cm | E69: 9.22 | F69: 1042 | H69: =IF(E69="","",SUMIF(الدخول!$B$3:$B$10000,D69,الدخول!$F$3:$F$10000)+SUMIF(الدخول!$B$3:$B$10000,D69,الدخول!$S$3:$S$10000)+E69-SUMIF(الدخول!$B$3:$B$10000,D69,الدخول!$L$3:$L$10000)) -> 9.22 | I69: =IF(F69="","",SUMIF(الدخول!$B$3:$B$10000,D69,الدخول!$H$3:$H$10000)+SUMIF(الدخول!$B$3:$B$10000,D69,الدخول!$U$3:$U$10000)+F69-SUMIF(الدخول!$B$3:$B$10000,D69,الدخول!$N$3:$N$10000)) -> 1042 | J69: =IF(G69="","",SUMIF(الدخول!$B$3:$B$1311,D69,الدخول!$I$3:$I$1311)+SUMIF(الدخول!$B$3:$B$1311,D69,الدخول!$V$3:$V$1311)+G69-SUMIF(الدخول!$B$3:$B$1311,D69,الدخول!$O$3:$O$1311)) -> 
A70: اسود | B70: كروشيه | C70: 1.3cm | D70: اسود كروشيه 1.3cm | E70: 382 | F70: 38450 | H70: =IF(E70="","",SUMIF(الدخول!$B$3:$B$10000,D70,الدخول!$F$3:$F$10000)+SUMIF(الدخول!$B$3:$B$10000,D70,الدخول!$S$3:$S$10000)+E70-SUMIF(الدخول!$B$3:$B$10000,D70,الدخول!$L$3:$L$10000)) -> 382 | I70: =IF(F70="","",SUMIF(الدخول!$B$3:$B$10000,D70,الدخول!$H$3:$H$10000)+SUMIF(الدخول!$B$3:$B$10000,D70,الدخول!$U$3:$U$10000)+F70-SUMIF(الدخول!$B$3:$B$10000,D70,الدخول!$N$3:$N$10000)) -> 38450 | J70: =IF(G70="","",SUMIF(الدخول!$B$3:$B$1311,D70,الدخول!$I$3:$I$1311)+SUMIF(الدخول!$B$3:$B$1311,D70,الدخول!$V$3:$V$1311)+G70-SUMIF(الدخول!$B$3:$B$1311,D70,الدخول!$O$3:$O$1311)) -> 
A71: اسود | B71: كروشيه | C71: 1.4cm | D71: اسود كروشيه 1.4cm | H71: =IF(E71="","",SUMIF(الدخول!$B$3:$B$10000,D71,الدخول!$F$3:$F$10000)+SUMIF(الدخول!$B$3:$B$10000,D71,الدخول!$S$3:$S$10000)+E71-SUMIF(الدخول!$B$3:$B$10000,D71,الدخول!$L$3:$L$10000)) ->  | I71: =IF(F71="","",SUMIF(الدخول!$B$3:$B$10000,D71,الدخول!$H$3:$H$10000)+SUMIF(الدخول!$B$3:$B$10000,D71,الدخول!$U$3:$U$10000)+F71-SUMIF(الدخول!$B$3:$B$10000,D71,الدخول!$N$3:$N$10000)) ->  | J71: =IF(G71="","",SUMIF(الدخول!$B$3:$B$1311,D71,الدخول!$I$3:$I$1311)+SUMIF(الدخول!$B$3:$B$1311,D71,الدخول!$V$3:$V$1311)+G71-SUMIF(الدخول!$B$3:$B$1311,D71,الدخول!$O$3:$O$1311)) -> 
A72: اسود | B72: كروشيه | C72: 1.5cm | D72: اسود كروشيه 1.5cm | E72: 61.12 | F72: 6944 | H72: =IF(E72="","",SUMIF(الدخول!$B$3:$B$10000,D72,الدخول!$F$3:$F$10000)+SUMIF(الدخول!$B$3:$B$10000,D72,الدخول!$S$3:$S$10000)+E72-SUMIF(الدخول!$B$3:$B$10000,D72,الدخول!$L$3:$L$10000)) -> 61.12 | I72: =IF(F72="","",SUMIF(الدخول!$B$3:$B$10000,D72,الدخول!$H$3:$H$10000)+SUMIF(الدخول!$B$3:$B$10000,D72,الدخول!$U$3:$U$10000)+F72-SUMIF(الدخول!$B$3:$B$10000,D72,الدخول!$N$3:$N$10000)) -> 6944 | J72: =IF(G72="","",SUMIF(الدخول!$B$3:$B$1311,D72,الدخول!$I$3:$I$1311)+SUMIF(الدخول!$B$3:$B$1311,D72,الدخول!$V$3:$V$1311)+G72-SUMIF(الدخول!$B$3:$B$1311,D72,الدخول!$O$3:$O$1311)) -> 
A73: اسود | B73: كروشيه | C73: 1.7cm | D73: اسود كروشيه 1.7cm | E73: 15.28 | F73: 1297 | H73: =IF(E73="","",SUMIF(الدخول!$B$3:$B$10000,D73,الدخول!$F$3:$F$10000)+SUMIF(الدخول!$B$3:$B$10000,D73,الدخول!$S$3:$S$10000)+E73-SUMIF(الدخول!$B$3:$B$10000,D73,الدخول!$L$3:$L$10000)) -> 15.28 | I73: =IF(F73="","",SUMIF(الدخول!$B$3:$B$10000,D73,الدخول!$H$3:$H$10000)+SUMIF(الدخول!$B$3:$B$10000,D73,الدخول!$U$3:$U$10000)+F73-SUMIF(الدخول!$B$3:$B$10000,D73,الدخول!$N$3:$N$10000)) -> 1297 | J73: =IF(G73="","",SUMIF(الدخول!$B$3:$B$1311,D73,الدخول!$I$3:$I$1311)+SUMIF(الدخول!$B$3:$B$1311,D73,الدخول!$V$3:$V$1311)+G73-SUMIF(الدخول!$B$3:$B$1311,D73,الدخول!$O$3:$O$1311)) -> 
A74: اسود | B74: كروشيه | C74: 1cm | D74: اسود كروشيه 1cm | E74: 15.28 | F74: 2546 | H74: =IF(E74="","",SUMIF(الدخول!$B$3:$B$10000,D74,الدخول!$F$3:$F$10000)+SUMIF(الدخول!$B$3:$B$10000,D74,الدخول!$S$3:$S$10000)+E74-SUMIF(الدخول!$B$3:$B$10000,D74,الدخول!$L$3:$L$10000)) -> 15.28 | I74: =IF(F74="","",SUMIF(الدخول!$B$3:$B$10000,D74,الدخول!$H$3:$H$10000)+SUMIF(الدخول!$B$3:$B$10000,D74,الدخول!$U$3:$U$10000)+F74-SUMIF(الدخول!$B$3:$B$10000,D74,الدخول!$N$3:$N$10000)) -> 2546 | J74: =IF(G74="","",SUMIF(الدخول!$B$3:$B$1311,D74,الدخول!$I$3:$I$1311)+SUMIF(الدخول!$B$3:$B$1311,D74,الدخول!$V$3:$V$1311)+G74-SUMIF(الدخول!$B$3:$B$1311,D74,الدخول!$O$3:$O$1311)) -> 
A75: اسود | B75: كروشيه | C75: 2.2cm | D75: اسود كروشيه 2.2cm | H75: =IF(E75="","",SUMIF(الدخول!$B$3:$B$10000,D75,الدخول!$F$3:$F$10000)+SUMIF(الدخول!$B$3:$B$10000,D75,الدخول!$S$3:$S$10000)+E75-SUMIF(الدخول!$B$3:$B$10000,D75,الدخول!$L$3:$L$10000)) ->  | I75: =IF(F75="","",SUMIF(الدخول!$B$3:$B$10000,D75,الدخول!$H$3:$H$10000)+SUMIF(الدخول!$B$3:$B$10000,D75,الدخول!$U$3:$U$10000)+F75-SUMIF(الدخول!$B$3:$B$10000,D75,الدخول!$N$3:$N$10000)) ->  | J75: =IF(G75="","",SUMIF(الدخول!$B$3:$B$1311,D75,الدخول!$I$3:$I$1311)+SUMIF(الدخول!$B$3:$B$1311,D75,الدخول!$V$3:$V$1311)+G75-SUMIF(الدخول!$B$3:$B$1311,D75,الدخول!$O$3:$O$1311)) -> 
A76: اسود | B76: كروشيه | C76: 2.5cm | D76: اسود كروشيه 2.5cm | E76: 848.24 | F76: 60536 | H76: =IF(E76="","",SUMIF(الدخول!$B$3:$B$10000,D76,الدخول!$F$3:$F$10000)+SUMIF(الدخول!$B$3:$B$10000,D76,الدخول!$S$3:$S$10000)+E76-SUMIF(الدخول!$B$3:$B$10000,D76,الدخول!$L$3:$L$10000)) -> 848.24 | I76: =IF(F76="","",SUMIF(الدخول!$B$3:$B$10000,D76,الدخول!$H$3:$H$10000)+SUMIF(الدخول!$B$3:$B$10000,D76,الدخول!$U$3:$U$10000)+F76-SUMIF(الدخول!$B$3:$B$10000,D76,الدخول!$N$3:$N$10000)) -> 60536 | J76: =IF(G76="","",SUMIF(الدخول!$B$3:$B$1311,D76,الدخول!$I$3:$I$1311)+SUMIF(الدخول!$B$3:$B$1311,D76,الدخول!$V$3:$V$1311)+G76-SUMIF(الدخول!$B$3:$B$1311,D76,الدخول!$O$3:$O$1311)) -> 
A77: اسود | B77: كروشيه | C77: 2cm | D77: اسود كروشيه 2cm | E77: 206.28 | F77: 19374 | H77: =IF(E77="","",SUMIF(الدخول!$B$3:$B$10000,D77,الدخول!$F$3:$F$10000)+SUMIF(الدخول!$B$3:$B$10000,D77,الدخول!$S$3:$S$10000)+E77-SUMIF(الدخول!$B$3:$B$10000,D77,الدخول!$L$3:$L$10000)) -> 206.28 | I77: =IF(F77="","",SUMIF(الدخول!$B$3:$B$10000,D77,الدخول!$H$3:$H$10000)+SUMIF(الدخول!$B$3:$B$10000,D77,الدخول!$U$3:$U$10000)+F77-SUMIF(الدخول!$B$3:$B$10000,D77,الدخول!$N$3:$N$10000)) -> 19374 | J77: =IF(G77="","",SUMIF(الدخول!$B$3:$B$1311,D77,الدخول!$I$3:$I$1311)+SUMIF(الدخول!$B$3:$B$1311,D77,الدخول!$V$3:$V$1311)+G77-SUMIF(الدخول!$B$3:$B$1311,D77,الدخول!$O$3:$O$1311)) -> 
A78: اسود | B78: كروشيه | C78: 3.5cm | D78: اسود كروشيه 3.5cm | E78: 267.38 | F78: 14065 | H78: =IF(E78="","",SUMIF(الدخول!$B$3:$B$10000,D78,الدخول!$F$3:$F$10000)+SUMIF(الدخول!$B$3:$B$10000,D78,الدخول!$S$3:$S$10000)+E78-SUMIF(الدخول!$B$3:$B$10000,D78,الدخول!$L$3:$L$10000)) -> 267.38 | I78: =IF(F78="","",SUMIF(الدخول!$B$3:$B$10000,D78,الدخول!$H$3:$H$10000)+SUMIF(الدخول!$B$3:$B$10000,D78,الدخول!$U$3:$U$10000)+F78-SUMIF(الدخول!$B$3:$B$10000,D78,الدخول!$N$3:$N$10000)) -> 14065 | J78: =IF(G78="","",SUMIF(الدخول!$B$3:$B$1311,D78,الدخول!$I$3:$I$1311)+SUMIF(الدخول!$B$3:$B$1311,D78,الدخول!$V$3:$V$1311)+G78-SUMIF(الدخول!$B$3:$B$1311,D78,الدخول!$O$3:$O$1311)) -> 
A79: اسود | B79: كروشيه | C79: 3.8cm | D79: اسود كروشيه 3.8cm | E79: 18.44 | F79: 996 | H79: =IF(E79="","",SUMIF(الدخول!$B$3:$B$10000,D79,الدخول!$F$3:$F$10000)+SUMIF(الدخول!$B$3:$B$10000,D79,الدخول!$S$3:$S$10000)+E79-SUMIF(الدخول!$B$3:$B$10000,D79,الدخول!$L$3:$L$10000)) -> 18.44 | I79: =IF(F79="","",SUMIF(الدخول!$B$3:$B$10000,D79,الدخول!$H$3:$H$10000)+SUMIF(الدخول!$B$3:$B$10000,D79,الدخول!$U$3:$U$10000)+F79-SUMIF(الدخول!$B$3:$B$10000,D79,الدخول!$N$3:$N$10000)) -> 996 | J79: =IF(G79="","",SUMIF(الدخول!$B$3:$B$1311,D79,الدخول!$I$3:$I$1311)+SUMIF(الدخول!$B$3:$B$1311,D79,الدخول!$V$3:$V$1311)+G79-SUMIF(الدخول!$B$3:$B$1311,D79,الدخول!$O$3:$O$1311)) -> 
A80: اسود | B80: كروشيه | C80: 3.8cm | D80: اسود كروشيه 3.8cm | E80: 18.44 | F80: 996 | H80: =IF(E80="","",SUMIF(الدخول!$B$3:$B$10000,D80,الدخول!$F$3:$F$10000)+SUMIF(الدخول!$B$3:$B$10000,D80,الدخول!$S$3:$S$10000)+E80-SUMIF(الدخول!$B$3:$B$10000,D80,الدخول!$L$3:$L$10000)) -> 18.44 | I80: =IF(F80="","",SUMIF(الدخول!$B$3:$B$10000,D80,الدخول!$H$3:$H$10000)+SUMIF(الدخول!$B$3:$B$10000,D80,الدخول!$U$3:$U$10000)+F80-SUMIF(الدخول!$B$3:$B$10000,D80,الدخول!$N$3:$N$10000)) -> 996 | J80: =IF(G80="","",SUMIF(الدخول!$B$3:$B$1311,D80,الدخول!$I$3:$I$1311)+SUMIF(الدخول!$B$3:$B$1311,D80,الدخول!$V$3:$V$1311)+G80-SUMIF(الدخول!$B$3:$B$1311,D80,الدخول!$O$3:$O$1311)) -> 
A81: اسود | B81: كروشيه | C81: 3cm | D81: اسود كروشيه 3cm | E81: 129.08 | F81: 7910 | H81: =IF(E81="","",SUMIF(الدخول!$B$3:$B$10000,D81,الدخول!$F$3:$F$10000)+SUMIF(الدخول!$B$3:$B$10000,D81,الدخول!$S$3:$S$10000)+E81-SUMIF(الدخول!$B$3:$B$10000,D81,الدخول!$L$3:$L$10000)) -> 120.08 | I81: =IF(F81="","",SUMIF(الدخول!$B$3:$B$10000,D81,الدخول!$H$3:$H$10000)+SUMIF(الدخول!$B$3:$B$10000,D81,الدخول!$U$3:$U$10000)+F81-SUMIF(الدخول!$B$3:$B$10000,D81,الدخول!$N$3:$N$10000)) -> 7907 | J81: =IF(G81="","",SUMIF(الدخول!$B$3:$B$1311,D81,الدخول!$I$3:$I$1311)+SUMIF(الدخول!$B$3:$B$1311,D81,الدخول!$V$3:$V$1311)+G81-SUMIF(الدخول!$B$3:$B$1311,D81,الدخول!$O$3:$O$1311)) -> 
A82: اسود | B82: كروشيه | C82: 4.5cm | D82: اسود كروشيه 4.5cm | E82: 46.1 | F82: 1825 | H82: =IF(E82="","",SUMIF(الدخول!$B$3:$B$10000,D82,الدخول!$F$3:$F$10000)+SUMIF(الدخول!$B$3:$B$10000,D82,الدخول!$S$3:$S$10000)+E82-SUMIF(الدخول!$B$3:$B$10000,D82,الدخول!$L$3:$L$10000)) -> 46.1 | I82: =IF(F82="","",SUMIF(الدخول!$B$3:$B$10000,D82,الدخول!$H$3:$H$10000)+SUMIF(الدخول!$B$3:$B$10000,D82,الدخول!$U$3:$U$10000)+F82-SUMIF(الدخول!$B$3:$B$10000,D82,الدخول!$N$3:$N$10000)) -> 1825 | J82: =IF(G82="","",SUMIF(الدخول!$B$3:$B$1311,D82,الدخول!$I$3:$I$1311)+SUMIF(الدخول!$B$3:$B$1311,D82,الدخول!$V$3:$V$1311)+G82-SUMIF(الدخول!$B$3:$B$1311,D82,الدخول!$O$3:$O$1311)) -> 
A83: اسود | B83: كروشيه | C83: 4.8cm | D83: اسود كروشيه 4.8cm | E83: 36.88 | F83: 1600 | H83: =IF(E83="","",SUMIF(الدخول!$B$3:$B$10000,D83,الدخول!$F$3:$F$10000)+SUMIF(الدخول!$B$3:$B$10000,D83,الدخول!$S$3:$S$10000)+E83-SUMIF(الدخول!$B$3:$B$10000,D83,الدخول!$L$3:$L$10000)) -> 36.88 | I83: =IF(F83="","",SUMIF(الدخول!$B$3:$B$10000,D83,الدخول!$H$3:$H$10000)+SUMIF(الدخول!$B$3:$B$10000,D83,الدخول!$U$3:$U$10000)+F83-SUMIF(الدخول!$B$3:$B$10000,D83,الدخول!$N$3:$N$10000)) -> 1600 | J83: =IF(G83="","",SUMIF(الدخول!$B$3:$B$1311,D83,الدخول!$I$3:$I$1311)+SUMIF(الدخول!$B$3:$B$1311,D83,الدخول!$V$3:$V$1311)+G83-SUMIF(الدخول!$B$3:$B$1311,D83,الدخول!$O$3:$O$1311)) -> 
A84: اسود | B84: كروشيه | C84: 4cm | D84: اسود كروشيه 4cm | E84: 359.58 | F84: 17004 | H84: =IF(E84="","",SUMIF(الدخول!$B$3:$B$10000,D84,الدخول!$F$3:$F$10000)+SUMIF(الدخول!$B$3:$B$10000,D84,الدخول!$S$3:$S$10000)+E84-SUMIF(الدخول!$B$3:$B$10000,D84,الدخول!$L$3:$L$10000)) -> 359.58 | I84: =IF(F84="","",SUMIF(الدخول!$B$3:$B$10000,D84,الدخول!$H$3:$H$10000)+SUMIF(الدخول!$B$3:$B$10000,D84,الدخول!$U$3:$U$10000)+F84-SUMIF(الدخول!$B$3:$B$10000,D84,الدخول!$N$3:$N$10000)) -> 17004 | J84: =IF(G84="","",SUMIF(الدخول!$B$3:$B$1311,D84,الدخول!$I$3:$I$1311)+SUMIF(الدخول!$B$3:$B$1311,D84,الدخول!$V$3:$V$1311)+G84-SUMIF(الدخول!$B$3:$B$1311,D84,الدخول!$O$3:$O$1311)) -> 
A85: اسود | B85: كروشيه | C85: 4m | D85: اسود كروشيه 4m | H85: =IF(E85="","",SUMIF(الدخول!$B$3:$B$10000,D85,الدخول!$F$3:$F$10000)+SUMIF(الدخول!$B$3:$B$10000,D85,الدخول!$S$3:$S$10000)+E85-SUMIF(الدخول!$B$3:$B$10000,D85,الدخول!$L$3:$L$10000)) ->  | I85: =IF(F85="","",SUMIF(الدخول!$B$3:$B$10000,D85,الدخول!$H$3:$H$10000)+SUMIF(الدخول!$B$3:$B$10000,D85,الدخول!$U$3:$U$10000)+F85-SUMIF(الدخول!$B$3:$B$10000,D85,الدخول!$N$3:$N$10000)) ->  | J85: =IF(G85="","",SUMIF(الدخول!$B$3:$B$1311,D85,الدخول!$I$3:$I$1311)+SUMIF(الدخول!$B$3:$B$1311,D85,الدخول!$V$3:$V$1311)+G85-SUMIF(الدخول!$B$3:$B$1311,D85,الدخول!$O$3:$O$1311)) -> 
A86: اسود | B86: كروشيه | C86: 5.5cm | D86: اسود كروشيه 5.5cm | H86: =IF(E86="","",SUMIF(الدخول!$B$3:$B$10000,D86,الدخول!$F$3:$F$10000)+SUMIF(الدخول!$B$3:$B$10000,D86,الدخول!$S$3:$S$10000)+E86-SUMIF(الدخول!$B$3:$B$10000,D86,الدخول!$L$3:$L$10000)) ->  | I86: =IF(F86="","",SUMIF(الدخول!$B$3:$B$10000,D86,الدخول!$H$3:$H$10000)+SUMIF(الدخول!$B$3:$B$10000,D86,الدخول!$U$3:$U$10000)+F86-SUMIF(الدخول!$B$3:$B$10000,D86,الدخول!$N$3:$N$10000)) ->  | J86: =IF(G86="","",SUMIF(الدخول!$B$3:$B$1311,D86,الدخول!$I$3:$I$1311)+SUMIF(الدخول!$B$3:$B$1311,D86,الدخول!$V$3:$V$1311)+G86-SUMIF(الدخول!$B$3:$B$1311,D86,الدخول!$O$3:$O$1311)) -> 
A87: اسود | B87: كروشيه | C87: 5.8cm | D87: اسود كروشيه 5.8cm | E87: 101.42 | F87: 3751 | H87: =IF(E87="","",SUMIF(الدخول!$B$3:$B$10000,D87,الدخول!$F$3:$F$10000)+SUMIF(الدخول!$B$3:$B$10000,D87,الدخول!$S$3:$S$10000)+E87-SUMIF(الدخول!$B$3:$B$10000,D87,الدخول!$L$3:$L$10000)) -> 101.42 | I87: =IF(F87="","",SUMIF(الدخول!$B$3:$B$10000,D87,الدخول!$H$3:$H$10000)+SUMIF(الدخول!$B$3:$B$10000,D87,الدخول!$U$3:$U$10000)+F87-SUMIF(الدخول!$B$3:$B$10000,D87,الدخول!$N$3:$N$10000)) -> 3751 | J87: =IF(G87="","",SUMIF(الدخول!$B$3:$B$1311,D87,الدخول!$I$3:$I$1311)+SUMIF(الدخول!$B$3:$B$1311,D87,الدخول!$V$3:$V$1311)+G87-SUMIF(الدخول!$B$3:$B$1311,D87,الدخول!$O$3:$O$1311)) -> 
A88: اسود | B88: كروشيه | C88: 5cm | D88: اسود كروشيه 5cm | H88: =IF(E88="","",SUMIF(الدخول!$B$3:$B$10000,D88,الدخول!$F$3:$F$10000)+SUMIF(الدخول!$B$3:$B$10000,D88,الدخول!$S$3:$S$10000)+E88-SUMIF(الدخول!$B$3:$B$10000,D88,الدخول!$L$3:$L$10000)) ->  | I88: =IF(F88="","",SUMIF(الدخول!$B$3:$B$10000,D88,الدخول!$H$3:$H$10000)+SUMIF(الدخول!$B$3:$B$10000,D88,الدخول!$U$3:$U$10000)+F88-SUMIF(الدخول!$B$3:$B$10000,D88,الدخول!$N$3:$N$10000)) ->  | J88: =IF(G88="","",SUMIF(الدخول!$B$3:$B$1311,D88,الدخول!$I$3:$I$1311)+SUMIF(الدخول!$B$3:$B$1311,D88,الدخول!$V$3:$V$1311)+G88-SUMIF(الدخول!$B$3:$B$1311,D88,الدخول!$O$3:$O$1311)) -> 
A89: اسود | B89: كروشيه | C89: 8m | D89: اسود كروشيه 8m | H89: =IF(E89="","",SUMIF(الدخول!$B$3:$B$10000,D89,الدخول!$F$3:$F$10000)+SUMIF(الدخول!$B$3:$B$10000,D89,الدخول!$S$3:$S$10000)+E89-SUMIF(الدخول!$B$3:$B$10000,D89,الدخول!$L$3:$L$10000)) ->  | I89: =IF(F89="","",SUMIF(الدخول!$B$3:$B$10000,D89,الدخول!$H$3:$H$10000)+SUMIF(الدخول!$B$3:$B$10000,D89,الدخول!$U$3:$U$10000)+F89-SUMIF(الدخول!$B$3:$B$10000,D89,الدخول!$N$3:$N$10000)) ->  | J89: =IF(G89="","",SUMIF(الدخول!$B$3:$B$1311,D89,الدخول!$I$3:$I$1311)+SUMIF(الدخول!$B$3:$B$1311,D89,الدخول!$V$3:$V$1311)+G89-SUMIF(الدخول!$B$3:$B$1311,D89,الدخول!$O$3:$O$1311)) -> 
A90: اسود | B90: كروشيه | C90: 8mm | D90: اسود كروشيه 8mm | E90: 11.68 | F90: 2336 | H90: =IF(E90="","",SUMIF(الدخول!$B$3:$B$10000,D90,الدخول!$F$3:$F$10000)+SUMIF(الدخول!$B$3:$B$10000,D90,الدخول!$S$3:$S$10000)+E90-SUMIF(الدخول!$B$3:$B$10000,D90,الدخول!$L$3:$L$10000)) -> 11.68 | I90: =IF(F90="","",SUMIF(الدخول!$B$3:$B$10000,D90,الدخول!$H$3:$H$10000)+SUMIF(الدخول!$B$3:$B$10000,D90,الدخول!$U$3:$U$10000)+F90-SUMIF(الدخول!$B$3:$B$10000,D90,الدخول!$N$3:$N$10000)) -> 2336 | J90: =IF(G90="","",SUMIF(الدخول!$B$3:$B$1311,D90,الدخول!$I$3:$I$1311)+SUMIF(الدخول!$B$3:$B$1311,D90,الدخول!$V$3:$V$1311)+G90-SUMIF(الدخول!$B$3:$B$1311,D90,الدخول!$O$3:$O$1311)) -> 
A91: اسود | B91: كورد | C91: 1cm | D91: اسود كورد 1cm | H91: =IF(E91="","",SUMIF(الدخول!$B$3:$B$10000,D91,الدخول!$F$3:$F$10000)+SUMIF(الدخول!$B$3:$B$10000,D91,الدخول!$S$3:$S$10000)+E91-SUMIF(الدخول!$B$3:$B$10000,D91,الدخول!$L$3:$L$10000)) ->  | I91: =IF(F91="","",SUMIF(الدخول!$B$3:$B$10000,D91,الدخول!$H$3:$H$10000)+SUMIF(الدخول!$B$3:$B$10000,D91,الدخول!$U$3:$U$10000)+F91-SUMIF(الدخول!$B$3:$B$10000,D91,الدخول!$N$3:$N$10000)) ->  | J91: =IF(G91="","",SUMIF(الدخول!$B$3:$B$1311,D91,الدخول!$I$3:$I$1311)+SUMIF(الدخول!$B$3:$B$1311,D91,الدخول!$V$3:$V$1311)+G91-SUMIF(الدخول!$B$3:$B$1311,D91,الدخول!$O$3:$O$1311)) -> 
A92: اسود | B92: كورد | C92: مبروم | D92: اسود كورد مبروم | H92: =IF(E92="","",SUMIF(الدخول!$B$3:$B$10000,D92,الدخول!$F$3:$F$10000)+SUMIF(الدخول!$B$3:$B$10000,D92,الدخول!$S$3:$S$10000)+E92-SUMIF(الدخول!$B$3:$B$10000,D92,الدخول!$L$3:$L$10000)) ->  | I92: =IF(F92="","",SUMIF(الدخول!$B$3:$B$10000,D92,الدخول!$H$3:$H$10000)+SUMIF(الدخول!$B$3:$B$10000,D92,الدخول!$U$3:$U$10000)+F92-SUMIF(الدخول!$B$3:$B$10000,D92,الدخول!$N$3:$N$10000)) ->  | J92: =IF(G92="","",SUMIF(الدخول!$B$3:$B$1311,D92,الدخول!$I$3:$I$1311)+SUMIF(الدخول!$B$3:$B$1311,D92,الدخول!$V$3:$V$1311)+G92-SUMIF(الدخول!$B$3:$B$1311,D92,الدخول!$O$3:$O$1311)) -> 
A93: اسود | B93: كورد | C93: مبطط | D93: اسود كورد مبطط | H93: =IF(E93="","",SUMIF(الدخول!$B$3:$B$10000,D93,الدخول!$F$3:$F$10000)+SUMIF(الدخول!$B$3:$B$10000,D93,الدخول!$S$3:$S$10000)+E93-SUMIF(الدخول!$B$3:$B$10000,D93,الدخول!$L$3:$L$10000)) ->  | I93: =IF(F93="","",SUMIF(الدخول!$B$3:$B$10000,D93,الدخول!$H$3:$H$10000)+SUMIF(الدخول!$B$3:$B$10000,D93,الدخول!$U$3:$U$10000)+F93-SUMIF(الدخول!$B$3:$B$10000,D93,الدخول!$N$3:$N$10000)) ->  | J93: =IF(G93="","",SUMIF(الدخول!$B$3:$B$1311,D93,الدخول!$I$3:$I$1311)+SUMIF(الدخول!$B$3:$B$1311,D93,الدخول!$V$3:$V$1311)+G93-SUMIF(الدخول!$B$3:$B$1311,D93,الدخول!$O$3:$O$1311)) -> 
A94: اسود | B94: ووفين ساندوتش | C94: 1.5cm | D94: اسود ووفين ساندوتش 1.5cm | H94: =IF(E94="","",SUMIF(الدخول!$B$3:$B$10000,D94,الدخول!$F$3:$F$10000)+SUMIF(الدخول!$B$3:$B$10000,D94,الدخول!$S$3:$S$10000)+E94-SUMIF(الدخول!$B$3:$B$10000,D94,الدخول!$L$3:$L$10000)) ->  | I94: =IF(F94="","",SUMIF(الدخول!$B$3:$B$10000,D94,الدخول!$H$3:$H$10000)+SUMIF(الدخول!$B$3:$B$10000,D94,الدخول!$U$3:$U$10000)+F94-SUMIF(الدخول!$B$3:$B$10000,D94,الدخول!$N$3:$N$10000)) ->  | J94: =IF(G94="","",SUMIF(الدخول!$B$3:$B$1311,D94,الدخول!$I$3:$I$1311)+SUMIF(الدخول!$B$3:$B$1311,D94,الدخول!$V$3:$V$1311)+G94-SUMIF(الدخول!$B$3:$B$1311,D94,الدخول!$O$3:$O$1311)) -> 
A95: اسود | B95: ووفين ساندوتش | C95: 1.7cm | D95: اسود ووفين ساندوتش 1.7cm | H95: =IF(E95="","",SUMIF(الدخول!$B$3:$B$10000,D95,الدخول!$F$3:$F$10000)+SUMIF(الدخول!$B$3:$B$10000,D95,الدخول!$S$3:$S$10000)+E95-SUMIF(الدخول!$B$3:$B$10000,D95,الدخول!$L$3:$L$10000)) ->  | I95: =IF(F95="","",SUMIF(الدخول!$B$3:$B$10000,D95,الدخول!$H$3:$H$10000)+SUMIF(الدخول!$B$3:$B$10000,D95,الدخول!$U$3:$U$10000)+F95-SUMIF(الدخول!$B$3:$B$10000,D95,الدخول!$N$3:$N$10000)) ->  | J95: =IF(G95="","",SUMIF(الدخول!$B$3:$B$1311,D95,الدخول!$I$3:$I$1311)+SUMIF(الدخول!$B$3:$B$1311,D95,الدخول!$V$3:$V$1311)+G95-SUMIF(الدخول!$B$3:$B$1311,D95,الدخول!$O$3:$O$1311)) -> 
A96: اسود | B96: ووفين ساندوتش | C96: 1.8cm | D96: اسود ووفين ساندوتش 1.8cm | H96: =IF(E96="","",SUMIF(الدخول!$B$3:$B$10000,D96,الدخول!$F$3:$F$10000)+SUMIF(الدخول!$B$3:$B$10000,D96,الدخول!$S$3:$S$10000)+E96-SUMIF(الدخول!$B$3:$B$10000,D96,الدخول!$L$3:$L$10000)) ->  | I96: =IF(F96="","",SUMIF(الدخول!$B$3:$B$10000,D96,الدخول!$H$3:$H$10000)+SUMIF(الدخول!$B$3:$B$10000,D96,الدخول!$U$3:$U$10000)+F96-SUMIF(الدخول!$B$3:$B$10000,D96,الدخول!$N$3:$N$10000)) ->  | J96: =IF(G96="","",SUMIF(الدخول!$B$3:$B$1311,D96,الدخول!$I$3:$I$1311)+SUMIF(الدخول!$B$3:$B$1311,D96,الدخول!$V$3:$V$1311)+G96-SUMIF(الدخول!$B$3:$B$1311,D96,الدخول!$O$3:$O$1311)) -> 
A97: اسود | B97: ووفين ساندوتش | C97: 2cm | D97: اسود ووفين ساندوتش 2cm | H97: =IF(E97="","",SUMIF(الدخول!$B$3:$B$10000,D97,الدخول!$F$3:$F$10000)+SUMIF(الدخول!$B$3:$B$10000,D97,الدخول!$S$3:$S$10000)+E97-SUMIF(الدخول!$B$3:$B$10000,D97,الدخول!$L$3:$L$10000)) ->  | I97: =IF(F97="","",SUMIF(الدخول!$B$3:$B$10000,D97,الدخول!$H$3:$H$10000)+SUMIF(الدخول!$B$3:$B$10000,D97,الدخول!$U$3:$U$10000)+F97-SUMIF(الدخول!$B$3:$B$10000,D97,الدخول!$N$3:$N$10000)) ->  | J97: =IF(G97="","",SUMIF(الدخول!$B$3:$B$1311,D97,الدخول!$I$3:$I$1311)+SUMIF(الدخول!$B$3:$B$1311,D97,الدخول!$V$3:$V$1311)+G97-SUMIF(الدخول!$B$3:$B$1311,D97,الدخول!$O$3:$O$1311)) -> 
A98: اسود | B98: كروشيه | C98: 5.8cm | D98: اسود كروشيه 5.8cm | H98: =IF(E98="","",SUMIF(الدخول!$B$3:$B$10000,D98,الدخول!$F$3:$F$10000)+SUMIF(الدخول!$B$3:$B$10000,D98,الدخول!$S$3:$S$10000)+E98-SUMIF(الدخول!$B$3:$B$10000,D98,الدخول!$L$3:$L$10000)) ->  | I98: =IF(F98="","",SUMIF(الدخول!$B$3:$B$10000,D98,الدخول!$H$3:$H$10000)+SUMIF(الدخول!$B$3:$B$10000,D98,الدخول!$U$3:$U$10000)+F98-SUMIF(الدخول!$B$3:$B$10000,D98,الدخول!$N$3:$N$10000)) ->  | J98: =IF(G98="","",SUMIF(الدخول!$B$3:$B$1311,D98,الدخول!$I$3:$I$1311)+SUMIF(الدخول!$B$3:$B$1311,D98,الدخول!$V$3:$V$1311)+G98-SUMIF(الدخول!$B$3:$B$1311,D98,الدخول!$O$3:$O$1311)) -> 
A99: اسود 510 | B99: كروشيه | C99: 2.3cm | D99: اسود 510 كروشيه 2.3cm | E99: 30.56 | F99: 2933 | H99: =IF(E99="","",SUMIF(الدخول!$B$3:$B$10000,D99,الدخول!$F$3:$F$10000)+SUMIF(الدخول!$B$3:$B$10000,D99,الدخول!$S$3:$S$10000)+E99-SUMIF(الدخول!$B$3:$B$10000,D99,الدخول!$L$3:$L$10000)) -> 30.56 | I99: =IF(F99="","",SUMIF(الدخول!$B$3:$B$10000,D99,الدخول!$H$3:$H$10000)+SUMIF(الدخول!$B$3:$B$10000,D99,الدخول!$U$3:$U$10000)+F99-SUMIF(الدخول!$B$3:$B$10000,D99,الدخول!$N$3:$N$10000)) -> 2933 | J99: =IF(G99="","",SUMIF(الدخول!$B$3:$B$1311,D99,الدخول!$I$3:$I$1311)+SUMIF(الدخول!$B$3:$B$1311,D99,الدخول!$V$3:$V$1311)+G99-SUMIF(الدخول!$B$3:$B$1311,D99,الدخول!$O$3:$O$1311)) -> 
A100: اسود 510 | B100: كروشيه | C100: 2.5cm | D100: اسود 510 كروشيه 2.5cm | E100: 9.22 | F100: 625 | H100: =IF(E100="","",SUMIF(الدخول!$B$3:$B$10000,D100,الدخول!$F$3:$F$10000)+SUMIF(الدخول!$B$3:$B$10000,D100,الدخول!$S$3:$S$10000)+E100-SUMIF(الدخول!$B$3:$B$10000,D100,الدخول!$L$3:$L$10000)) -> 9.22 | I100: =IF(F100="","",SUMIF(الدخول!$B$3:$B$10000,D100,الدخول!$H$3:$H$10000)+SUMIF(الدخول!$B$3:$B$10000,D100,الدخول!$U$3:$U$10000)+F100-SUMIF(الدخول!$B$3:$B$10000,D100,الدخول!$N$3:$N$10000)) -> 625 | J100: =IF(G100="","",SUMIF(الدخول!$B$3:$B$1311,D100,الدخول!$I$3:$I$1311)+SUMIF(الدخول!$B$3:$B$1311,D100,الدخول!$V$3:$V$1311)+G100-SUMIF(الدخول!$B$3:$B$1311,D100,الدخول!$O$3:$O$1311)) -> 
A101: اسود 510 | B101: كروشيه | C101: 3 cm | D101: اسود 510 كروشيه 3 cm | E101: 46.1 | F101: 3086 | H101: =IF(E101="","",SUMIF(الدخول!$B$3:$B$10000,D101,الدخول!$F$3:$F$10000)+SUMIF(الدخول!$B$3:$B$10000,D101,الدخول!$S$3:$S$10000)+E101-SUMIF(الدخول!$B$3:$B$10000,D101,الدخول!$L$3:$L$10000)) -> 46.1 | I101: =IF(F101="","",SUMIF(الدخول!$B$3:$B$10000,D101,الدخول!$H$3:$H$10000)+SUMIF(الدخول!$B$3:$B$10000,D101,الدخول!$U$3:$U$10000)+F101-SUMIF(الدخول!$B$3:$B$10000,D101,الدخول!$N$3:$N$10000)) -> 3086 | J101: =IF(G101="","",SUMIF(الدخول!$B$3:$B$1311,D101,الدخول!$I$3:$I$1311)+SUMIF(الدخول!$B$3:$B$1311,D101,الدخول!$V$3:$V$1311)+G101-SUMIF(الدخول!$B$3:$B$1311,D101,الدخول!$O$3:$O$1311)) -> 
A102: اسود 510 | B102: كروشيه | C102: 4.5cm | D102: اسود 510 كروشيه 4.5cm | E102: 46.1 | F102: 1970 | H102: =IF(E102="","",SUMIF(الدخول!$B$3:$B$10000,D102,الدخول!$F$3:$F$10000)+SUMIF(الدخول!$B$3:$B$10000,D102,الدخول!$S$3:$S$10000)+E102-SUMIF(الدخول!$B$3:$B$10000,D102,الدخول!$L$3:$L$10000)) -> 46.1 | I102: =IF(F102="","",SUMIF(الدخول!$B$3:$B$10000,D102,الدخول!$H$3:$H$10000)+SUMIF(الدخول!$B$3:$B$10000,D102,الدخول!$U$3:$U$10000)+F102-SUMIF(الدخول!$B$3:$B$10000,D102,الدخول!$N$3:$N$10000)) -> 1970 | J102: =IF(G102="","",SUMIF(الدخول!$B$3:$B$1311,D102,الدخول!$I$3:$I$1311)+SUMIF(الدخول!$B$3:$B$1311,D102,الدخول!$V$3:$V$1311)+G102-SUMIF(الدخول!$B$3:$B$1311,D102,الدخول!$O$3:$O$1311)) -> 
A103: اسود 510 | B103: كروشيه | C103: 4cm | D103: اسود 510 كروشيه 4cm | E103: 73.76 | F103: 3816 | H103: =IF(E103="","",SUMIF(الدخول!$B$3:$B$10000,D103,الدخول!$F$3:$F$10000)+SUMIF(الدخول!$B$3:$B$10000,D103,الدخول!$S$3:$S$10000)+E103-SUMIF(الدخول!$B$3:$B$10000,D103,الدخول!$L$3:$L$10000)) -> 73.76 | I103: =IF(F103="","",SUMIF(الدخول!$B$3:$B$10000,D103,الدخول!$H$3:$H$10000)+SUMIF(الدخول!$B$3:$B$10000,D103,الدخول!$U$3:$U$10000)+F103-SUMIF(الدخول!$B$3:$B$10000,D103,الدخول!$N$3:$N$10000)) -> 3816 | J103: =IF(G103="","",SUMIF(الدخول!$B$3:$B$1311,D103,الدخول!$I$3:$I$1311)+SUMIF(الدخول!$B$3:$B$1311,D103,الدخول!$V$3:$V$1311)+G103-SUMIF(الدخول!$B$3:$B$1311,D103,الدخول!$O$3:$O$1311)) -> 
A104: اسود 510 | B104: كروشيه | C104: 5.2cm | D104: اسود 510 كروشيه 5.2cm | E104: 9220 | F104: 416 | H104: =IF(E104="","",SUMIF(الدخول!$B$3:$B$10000,D104,الدخول!$F$3:$F$10000)+SUMIF(الدخول!$B$3:$B$10000,D104,الدخول!$S$3:$S$10000)+E104-SUMIF(الدخول!$B$3:$B$10000,D104,الدخول!$L$3:$L$10000)) -> 9220 | I104: =IF(F104="","",SUMIF(الدخول!$B$3:$B$10000,D104,الدخول!$H$3:$H$10000)+SUMIF(الدخول!$B$3:$B$10000,D104,الدخول!$U$3:$U$10000)+F104-SUMIF(الدخول!$B$3:$B$10000,D104,الدخول!$N$3:$N$10000)) -> 416 | J104: =IF(G104="","",SUMIF(الدخول!$B$3:$B$1311,D104,الدخول!$I$3:$I$1311)+SUMIF(الدخول!$B$3:$B$1311,D104,الدخول!$V$3:$V$1311)+G104-SUMIF(الدخول!$B$3:$B$1311,D104,الدخول!$O$3:$O$1311)) -> 
A105: اسود 510 | B105: كروشيه | C105: 5.5cm | D105: اسود 510 كروشيه 5.5cm | E105: 27.66 | F105: 1023 | H105: =IF(E105="","",SUMIF(الدخول!$B$3:$B$10000,D105,الدخول!$F$3:$F$10000)+SUMIF(الدخول!$B$3:$B$10000,D105,الدخول!$S$3:$S$10000)+E105-SUMIF(الدخول!$B$3:$B$10000,D105,الدخول!$L$3:$L$10000)) -> 27.66 | I105: =IF(F105="","",SUMIF(الدخول!$B$3:$B$10000,D105,الدخول!$H$3:$H$10000)+SUMIF(الدخول!$B$3:$B$10000,D105,الدخول!$U$3:$U$10000)+F105-SUMIF(الدخول!$B$3:$B$10000,D105,الدخول!$N$3:$N$10000)) -> 1023 | J105: =IF(G105="","",SUMIF(الدخول!$B$3:$B$1311,D105,الدخول!$I$3:$I$1311)+SUMIF(الدخول!$B$3:$B$1311,D105,الدخول!$V$3:$V$1311)+G105-SUMIF(الدخول!$B$3:$B$1311,D105,الدخول!$O$3:$O$1311)) -> 
A106: اسود 611.2 | B106: كروشيه | C106: 2cm | D106: اسود 611.2 كروشيه 2cm | E106: 519.52 | F106: 41561.6 | H106: =IF(E106="","",SUMIF(الدخول!$B$3:$B$10000,D106,الدخول!$F$3:$F$10000)+SUMIF(الدخول!$B$3:$B$10000,D106,الدخول!$S$3:$S$10000)+E106-SUMIF(الدخول!$B$3:$B$10000,D106,الدخول!$L$3:$L$10000)) -> 519.52 | I106: =IF(F106="","",SUMIF(الدخول!$B$3:$B$10000,D106,الدخول!$H$3:$H$10000)+SUMIF(الدخول!$B$3:$B$10000,D106,الدخول!$U$3:$U$10000)+F106-SUMIF(الدخول!$B$3:$B$10000,D106,الدخول!$N$3:$N$10000)) -> 41561.6 | J106: =IF(G106="","",SUMIF(الدخول!$B$3:$B$1311,D106,الدخول!$I$3:$I$1311)+SUMIF(الدخول!$B$3:$B$1311,D106,الدخول!$V$3:$V$1311)+G106-SUMIF(الدخول!$B$3:$B$1311,D106,الدخول!$O$3:$O$1311)) -> 
A107: اسود X ابيض | B107: بايبينج | C107: 1cm | D107: اسود X ابيض بايبينج 1cm | E107: 395.3 | F107: 54793 | H107: =IF(E107="","",SUMIF(الدخول!$B$3:$B$10000,D107,الدخول!$F$3:$F$10000)+SUMIF(الدخول!$B$3:$B$10000,D107,الدخول!$S$3:$S$10000)+E107-SUMIF(الدخول!$B$3:$B$10000,D107,الدخول!$L$3:$L$10000)) -> 395.3 | I107: =IF(F107="","",SUMIF(الدخول!$B$3:$B$10000,D107,الدخول!$H$3:$H$10000)+SUMIF(الدخول!$B$3:$B$10000,D107,الدخول!$U$3:$U$10000)+F107-SUMIF(الدخول!$B$3:$B$10000,D107,الدخول!$N$3:$N$10000)) -> 54793 | J107: =IF(G107="","",SUMIF(الدخول!$B$3:$B$1311,D107,الدخول!$I$3:$I$1311)+SUMIF(الدخول!$B$3:$B$1311,D107,الدخول!$V$3:$V$1311)+G107-SUMIF(الدخول!$B$3:$B$1311,D107,الدخول!$O$3:$O$1311)) -> 
A108: اسود استريب | B108: كروشيه | C108: 3cm | D108: اسود استريب كروشيه 3cm | E108: 414.9 | F108: 22500 | H108: =IF(E108="","",SUMIF(الدخول!$B$3:$B$10000,D108,الدخول!$F$3:$F$10000)+SUMIF(الدخول!$B$3:$B$10000,D108,الدخول!$S$3:$S$10000)+E108-SUMIF(الدخول!$B$3:$B$10000,D108,الدخول!$L$3:$L$10000)) -> 414.9 | I108: =IF(F108="","",SUMIF(الدخول!$B$3:$B$10000,D108,الدخول!$H$3:$H$10000)+SUMIF(الدخول!$B$3:$B$10000,D108,الدخول!$U$3:$U$10000)+F108-SUMIF(الدخول!$B$3:$B$10000,D108,الدخول!$N$3:$N$10000)) -> 22500 | J108: =IF(G108="","",SUMIF(الدخول!$B$3:$B$1311,D108,الدخول!$I$3:$I$1311)+SUMIF(الدخول!$B$3:$B$1311,D108,الدخول!$V$3:$V$1311)+G108-SUMIF(الدخول!$B$3:$B$1311,D108,الدخول!$O$3:$O$1311)) -> 
A109: اسود فلاش | B109: كروشيه | C109: 3.5cm | D109: اسود فلاش كروشيه 3.5cm | E109: 331.92 | F109: 15084 | H109: =IF(E109="","",SUMIF(الدخول!$B$3:$B$10000,D109,الدخول!$F$3:$F$10000)+SUMIF(الدخول!$B$3:$B$10000,D109,الدخول!$S$3:$S$10000)+E109-SUMIF(الدخول!$B$3:$B$10000,D109,الدخول!$L$3:$L$10000)) -> 331.92 | I109: =IF(F109="","",SUMIF(الدخول!$B$3:$B$10000,D109,الدخول!$H$3:$H$10000)+SUMIF(الدخول!$B$3:$B$10000,D109,الدخول!$U$3:$U$10000)+F109-SUMIF(الدخول!$B$3:$B$10000,D109,الدخول!$N$3:$N$10000)) -> 15084 | J109: =IF(G109="","",SUMIF(الدخول!$B$3:$B$1311,D109,الدخول!$I$3:$I$1311)+SUMIF(الدخول!$B$3:$B$1311,D109,الدخول!$V$3:$V$1311)+G109-SUMIF(الدخول!$B$3:$B$1311,D109,الدخول!$O$3:$O$1311)) -> 
A110: اسود فلاش | B110: كروشيه | C110: 5.5cm | D110: اسود فلاش كروشيه 5.5cm | E110: 239.72 | F110: 7150 | H110: =IF(E110="","",SUMIF(الدخول!$B$3:$B$10000,D110,الدخول!$F$3:$F$10000)+SUMIF(الدخول!$B$3:$B$10000,D110,الدخول!$S$3:$S$10000)+E110-SUMIF(الدخول!$B$3:$B$10000,D110,الدخول!$L$3:$L$10000)) -> 239.72 | I110: =IF(F110="","",SUMIF(الدخول!$B$3:$B$10000,D110,الدخول!$H$3:$H$10000)+SUMIF(الدخول!$B$3:$B$10000,D110,الدخول!$U$3:$U$10000)+F110-SUMIF(الدخول!$B$3:$B$10000,D110,الدخول!$N$3:$N$10000)) -> 7150 | J110: =IF(G110="","",SUMIF(الدخول!$B$3:$B$1311,D110,الدخول!$I$3:$I$1311)+SUMIF(الدخول!$B$3:$B$1311,D110,الدخول!$V$3:$V$1311)+G110-SUMIF(الدخول!$B$3:$B$1311,D110,الدخول!$O$3:$O$1311)) -> 
A111: اسود فلاش | B111: كروشيه | C111: 5cm | D111: اسود فلاش كروشيه 5cm | E111: 101.42 | F111: 3267 | H111: =IF(E111="","",SUMIF(الدخول!$B$3:$B$10000,D111,الدخول!$F$3:$F$10000)+SUMIF(الدخول!$B$3:$B$10000,D111,الدخول!$S$3:$S$10000)+E111-SUMIF(الدخول!$B$3:$B$10000,D111,الدخول!$L$3:$L$10000)) -> 101.42 | I111: =IF(F111="","",SUMIF(الدخول!$B$3:$B$10000,D111,الدخول!$H$3:$H$10000)+SUMIF(الدخول!$B$3:$B$10000,D111,الدخول!$U$3:$U$10000)+F111-SUMIF(الدخول!$B$3:$B$10000,D111,الدخول!$N$3:$N$10000)) -> 3267 | J111: =IF(G111="","",SUMIF(الدخول!$B$3:$B$1311,D111,الدخول!$I$3:$I$1311)+SUMIF(الدخول!$B$3:$B$1311,D111,الدخول!$V$3:$V$1311)+G111-SUMIF(الدخول!$B$3:$B$1311,D111,الدخول!$O$3:$O$1311)) -> 
A112: اسود510 | B112: كروشيه | C112: 3.5cm | D112: اسود510 كروشيه 3.5cm | E112: 18.44 | F112: 1118 | H112: =IF(E112="","",SUMIF(الدخول!$B$3:$B$10000,D112,الدخول!$F$3:$F$10000)+SUMIF(الدخول!$B$3:$B$10000,D112,الدخول!$S$3:$S$10000)+E112-SUMIF(الدخول!$B$3:$B$10000,D112,الدخول!$L$3:$L$10000)) -> 18.44 | I112: =IF(F112="","",SUMIF(الدخول!$B$3:$B$10000,D112,الدخول!$H$3:$H$10000)+SUMIF(الدخول!$B$3:$B$10000,D112,الدخول!$U$3:$U$10000)+F112-SUMIF(الدخول!$B$3:$B$10000,D112,الدخول!$N$3:$N$10000)) -> 1118 | J112: =IF(G112="","",SUMIF(الدخول!$B$3:$B$1311,D112,الدخول!$I$3:$I$1311)+SUMIF(الدخول!$B$3:$B$1311,D112,الدخول!$V$3:$V$1311)+G112-SUMIF(الدخول!$B$3:$B$1311,D112,الدخول!$O$3:$O$1311)) -> 
A113: اسود510 | B113: كروشيه | C113: 5cm | D113: اسود510 كروشيه 5cm | H113: =IF(E113="","",SUMIF(الدخول!$B$3:$B$10000,D113,الدخول!$F$3:$F$10000)+SUMIF(الدخول!$B$3:$B$10000,D113,الدخول!$S$3:$S$10000)+E113-SUMIF(الدخول!$B$3:$B$10000,D113,الدخول!$L$3:$L$10000)) ->  | I113: =IF(F113="","",SUMIF(الدخول!$B$3:$B$10000,D113,الدخول!$H$3:$H$10000)+SUMIF(الدخول!$B$3:$B$10000,D113,الدخول!$U$3:$U$10000)+F113-SUMIF(الدخول!$B$3:$B$10000,D113,الدخول!$N$3:$N$10000)) ->  | J113: =IF(G113="","",SUMIF(الدخول!$B$3:$B$1311,D113,الدخول!$I$3:$I$1311)+SUMIF(الدخول!$B$3:$B$1311,D113,الدخول!$V$3:$V$1311)+G113-SUMIF(الدخول!$B$3:$B$1311,D113,الدخول!$O$3:$O$1311)) -> 
A114: اصفر X اخضر | B114: بايبينج | C114: 1cm | D114: اصفر X اخضر بايبينج 1cm | E114: 5.4 | F114: 1080 | H114: =IF(E114="","",SUMIF(الدخول!$B$3:$B$10000,D114,الدخول!$F$3:$F$10000)+SUMIF(الدخول!$B$3:$B$10000,D114,الدخول!$S$3:$S$10000)+E114-SUMIF(الدخول!$B$3:$B$10000,D114,الدخول!$L$3:$L$10000)) -> 5.4 | I114: =IF(F114="","",SUMIF(الدخول!$B$3:$B$10000,D114,الدخول!$H$3:$H$10000)+SUMIF(الدخول!$B$3:$B$10000,D114,الدخول!$U$3:$U$10000)+F114-SUMIF(الدخول!$B$3:$B$10000,D114,الدخول!$N$3:$N$10000)) -> 1080 | J114: =IF(G114="","",SUMIF(الدخول!$B$3:$B$1311,D114,الدخول!$I$3:$I$1311)+SUMIF(الدخول!$B$3:$B$1311,D114,الدخول!$V$3:$V$1311)+G114-SUMIF(الدخول!$B$3:$B$1311,D114,الدخول!$O$3:$O$1311)) -> 
A115: اصفر X زيتي | B115: بايبينج | C115: 1cm | D115: اصفر X زيتي بايبينج 1cm | E115: 67.9 | F115: 13580 | H115: =IF(E115="","",SUMIF(الدخول!$B$3:$B$10000,D115,الدخول!$F$3:$F$10000)+SUMIF(الدخول!$B$3:$B$10000,D115,الدخول!$S$3:$S$10000)+E115-SUMIF(الدخول!$B$3:$B$10000,D115,الدخول!$L$3:$L$10000)) -> 67.9 | I115: =IF(F115="","",SUMIF(الدخول!$B$3:$B$10000,D115,الدخول!$H$3:$H$10000)+SUMIF(الدخول!$B$3:$B$10000,D115,الدخول!$U$3:$U$10000)+F115-SUMIF(الدخول!$B$3:$B$10000,D115,الدخول!$N$3:$N$10000)) -> 13580 | J115: =IF(G115="","",SUMIF(الدخول!$B$3:$B$1311,D115,الدخول!$I$3:$I$1311)+SUMIF(الدخول!$B$3:$B$1311,D115,الدخول!$V$3:$V$1311)+G115-SUMIF(الدخول!$B$3:$B$1311,D115,الدخول!$O$3:$O$1311)) -> 
A116: الالوان | B116: كورد | C116: 1.2cm | D116: الالوان كورد 1.2cm | H116: =IF(E116="","",SUMIF(الدخول!$B$3:$B$10000,D116,الدخول!$F$3:$F$10000)+SUMIF(الدخول!$B$3:$B$10000,D116,الدخول!$S$3:$S$10000)+E116-SUMIF(الدخول!$B$3:$B$10000,D116,الدخول!$L$3:$L$10000)) ->  | I116: =IF(F116="","",SUMIF(الدخول!$B$3:$B$10000,D116,الدخول!$H$3:$H$10000)+SUMIF(الدخول!$B$3:$B$10000,D116,الدخول!$U$3:$U$10000)+F116-SUMIF(الدخول!$B$3:$B$10000,D116,الدخول!$N$3:$N$10000)) ->  | J116: =IF(G116="","",SUMIF(الدخول!$B$3:$B$1311,D116,الدخول!$I$3:$I$1311)+SUMIF(الدخول!$B$3:$B$1311,D116,الدخول!$V$3:$V$1311)+G116-SUMIF(الدخول!$B$3:$B$1311,D116,الدخول!$O$3:$O$1311)) -> 
A117: الوان | B117: فيستون | C117: 1cm | D117: الوان فيستون 1cm | E117: 190 | H117: =IF(E117="","",SUMIF(الدخول!$B$3:$B$10000,D117,الدخول!$F$3:$F$10000)+SUMIF(الدخول!$B$3:$B$10000,D117,الدخول!$S$3:$S$10000)+E117-SUMIF(الدخول!$B$3:$B$10000,D117,الدخول!$L$3:$L$10000)) -> 190 | I117: =IF(F117="","",SUMIF(الدخول!$B$3:$B$10000,D117,الدخول!$H$3:$H$10000)+SUMIF(الدخول!$B$3:$B$10000,D117,الدخول!$U$3:$U$10000)+F117-SUMIF(الدخول!$B$3:$B$10000,D117,الدخول!$N$3:$N$10000)) ->  | J117: =IF(G117="","",SUMIF(الدخول!$B$3:$B$1311,D117,الدخول!$I$3:$I$1311)+SUMIF(الدخول!$B$3:$B$1311,D117,الدخول!$V$3:$V$1311)+G117-SUMIF(الدخول!$B$3:$B$1311,D117,الدخول!$O$3:$O$1311)) -> 
A118: اورنج | B118: كورد | C118: 1.2cm | D118: اورنج كورد 1.2cm | H118: =IF(E118="","",SUMIF(الدخول!$B$3:$B$10000,D118,الدخول!$F$3:$F$10000)+SUMIF(الدخول!$B$3:$B$10000,D118,الدخول!$S$3:$S$10000)+E118-SUMIF(الدخول!$B$3:$B$10000,D118,الدخول!$L$3:$L$10000)) ->  | I118: =IF(F118="","",SUMIF(الدخول!$B$3:$B$10000,D118,الدخول!$H$3:$H$10000)+SUMIF(الدخول!$B$3:$B$10000,D118,الدخول!$U$3:$U$10000)+F118-SUMIF(الدخول!$B$3:$B$10000,D118,الدخول!$N$3:$N$10000)) ->  | J118: =IF(G118="","",SUMIF(الدخول!$B$3:$B$1311,D118,الدخول!$I$3:$I$1311)+SUMIF(الدخول!$B$3:$B$1311,D118,الدخول!$V$3:$V$1311)+G118-SUMIF(الدخول!$B$3:$B$1311,D118,الدخول!$O$3:$O$1311)) -> 
A119: اورنح | B119: كورد | C119: مبطط | D119: اورنح كورد مبطط | H119: =IF(E119="","",SUMIF(الدخول!$B$3:$B$10000,D119,الدخول!$F$3:$F$10000)+SUMIF(الدخول!$B$3:$B$10000,D119,الدخول!$S$3:$S$10000)+E119-SUMIF(الدخول!$B$3:$B$10000,D119,الدخول!$L$3:$L$10000)) ->  | I119: =IF(F119="","",SUMIF(الدخول!$B$3:$B$10000,D119,الدخول!$H$3:$H$10000)+SUMIF(الدخول!$B$3:$B$10000,D119,الدخول!$U$3:$U$10000)+F119-SUMIF(الدخول!$B$3:$B$10000,D119,الدخول!$N$3:$N$10000)) ->  | J119: =IF(G119="","",SUMIF(الدخول!$B$3:$B$1311,D119,الدخول!$I$3:$I$1311)+SUMIF(الدخول!$B$3:$B$1311,D119,الدخول!$V$3:$V$1311)+G119-SUMIF(الدخول!$B$3:$B$1311,D119,الدخول!$O$3:$O$1311)) -> 
A120: بنك X اسود | B120: بايبينج | C120: 1cm | D120: بنك X اسود بايبينج 1cm | E120: 35.9 | F120: 5980 | H120: =IF(E120="","",SUMIF(الدخول!$B$3:$B$10000,D120,الدخول!$F$3:$F$10000)+SUMIF(الدخول!$B$3:$B$10000,D120,الدخول!$S$3:$S$10000)+E120-SUMIF(الدخول!$B$3:$B$10000,D120,الدخول!$L$3:$L$10000)) -> 35.9 | I120: =IF(F120="","",SUMIF(الدخول!$B$3:$B$10000,D120,الدخول!$H$3:$H$10000)+SUMIF(الدخول!$B$3:$B$10000,D120,الدخول!$U$3:$U$10000)+F120-SUMIF(الدخول!$B$3:$B$10000,D120,الدخول!$N$3:$N$10000)) -> 5980 | J120: =IF(G120="","",SUMIF(الدخول!$B$3:$B$1311,D120,الدخول!$I$3:$I$1311)+SUMIF(الدخول!$B$3:$B$1311,D120,الدخول!$V$3:$V$1311)+G120-SUMIF(الدخول!$B$3:$B$1311,D120,الدخول!$O$3:$O$1311)) -> 
A121: بنك X زيتي | B121: بايبينج | C121: 1cm | D121: بنك X زيتي بايبينج 1cm | E121: 14.11 | F121: 2820 | H121: =IF(E121="","",SUMIF(الدخول!$B$3:$B$10000,D121,الدخول!$F$3:$F$10000)+SUMIF(الدخول!$B$3:$B$10000,D121,الدخول!$S$3:$S$10000)+E121-SUMIF(الدخول!$B$3:$B$10000,D121,الدخول!$L$3:$L$10000)) -> 14.11 | I121: =IF(F121="","",SUMIF(الدخول!$B$3:$B$10000,D121,الدخول!$H$3:$H$10000)+SUMIF(الدخول!$B$3:$B$10000,D121,الدخول!$U$3:$U$10000)+F121-SUMIF(الدخول!$B$3:$B$10000,D121,الدخول!$N$3:$N$10000)) -> 2820 | J121: =IF(G121="","",SUMIF(الدخول!$B$3:$B$1311,D121,الدخول!$I$3:$I$1311)+SUMIF(الدخول!$B$3:$B$1311,D121,الدخول!$V$3:$V$1311)+G121-SUMIF(الدخول!$B$3:$B$1311,D121,الدخول!$O$3:$O$1311)) -> 
A122: بينك | B122: ووفين فستون | C122: 1.3cm | D122: بينك ووفين فستون 1.3cm | H122: =IF(E122="","",SUMIF(الدخول!$B$3:$B$10000,D122,الدخول!$F$3:$F$10000)+SUMIF(الدخول!$B$3:$B$10000,D122,الدخول!$S$3:$S$10000)+E122-SUMIF(الدخول!$B$3:$B$10000,D122,الدخول!$L$3:$L$10000)) ->  | I122: =IF(F122="","",SUMIF(الدخول!$B$3:$B$10000,D122,الدخول!$H$3:$H$10000)+SUMIF(الدخول!$B$3:$B$10000,D122,الدخول!$U$3:$U$10000)+F122-SUMIF(الدخول!$B$3:$B$10000,D122,الدخول!$N$3:$N$10000)) ->  | J122: =IF(G122="","",SUMIF(الدخول!$B$3:$B$1311,D122,الدخول!$I$3:$I$1311)+SUMIF(الدخول!$B$3:$B$1311,D122,الدخول!$V$3:$V$1311)+G122-SUMIF(الدخول!$B$3:$B$1311,D122,الدخول!$O$3:$O$1311)) -> 
A123: بينك | B123: ووفين فستون | C123: 1cm | D123: بينك ووفين فستون 1cm | H123: =IF(E123="","",SUMIF(الدخول!$B$3:$B$10000,D123,الدخول!$F$3:$F$10000)+SUMIF(الدخول!$B$3:$B$10000,D123,الدخول!$S$3:$S$10000)+E123-SUMIF(الدخول!$B$3:$B$10000,D123,الدخول!$L$3:$L$10000)) ->  | I123: =IF(F123="","",SUMIF(الدخول!$B$3:$B$10000,D123,الدخول!$H$3:$H$10000)+SUMIF(الدخول!$B$3:$B$10000,D123,الدخول!$U$3:$U$10000)+F123-SUMIF(الدخول!$B$3:$B$10000,D123,الدخول!$N$3:$N$10000)) ->  | J123: =IF(G123="","",SUMIF(الدخول!$B$3:$B$1311,D123,الدخول!$I$3:$I$1311)+SUMIF(الدخول!$B$3:$B$1311,D123,الدخول!$V$3:$V$1311)+G123-SUMIF(الدخول!$B$3:$B$1311,D123,الدخول!$O$3:$O$1311)) -> 
A124: تركواز X ابيض | B124: بايبينج | C124: 1cm | D124: تركواز X ابيض بايبينج 1cm | E124: 119.56 | F124: 16296 | H124: =IF(E124="","",SUMIF(الدخول!$B$3:$B$10000,D124,الدخول!$F$3:$F$10000)+SUMIF(الدخول!$B$3:$B$10000,D124,الدخول!$S$3:$S$10000)+E124-SUMIF(الدخول!$B$3:$B$10000,D124,الدخول!$L$3:$L$10000)) -> 119.56 | I124: =IF(F124="","",SUMIF(الدخول!$B$3:$B$10000,D124,الدخول!$H$3:$H$10000)+SUMIF(الدخول!$B$3:$B$10000,D124,الدخول!$U$3:$U$10000)+F124-SUMIF(الدخول!$B$3:$B$10000,D124,الدخول!$N$3:$N$10000)) -> 16296 | J124: =IF(G124="","",SUMIF(الدخول!$B$3:$B$1311,D124,الدخول!$I$3:$I$1311)+SUMIF(الدخول!$B$3:$B$1311,D124,الدخول!$V$3:$V$1311)+G124-SUMIF(الدخول!$B$3:$B$1311,D124,الدخول!$O$3:$O$1311)) -> 
A125: تركواز X اسود | B125: بايبينج | C125: 1cm | D125: تركواز X اسود بايبينج 1cm | E125: 5511.45 | F125: 9564 | H125: =IF(E125="","",SUMIF(الدخول!$B$3:$B$10000,D125,الدخول!$F$3:$F$10000)+SUMIF(الدخول!$B$3:$B$10000,D125,الدخول!$S$3:$S$10000)+E125-SUMIF(الدخول!$B$3:$B$10000,D125,الدخول!$L$3:$L$10000)) -> 5511.45 | I125: =IF(F125="","",SUMIF(الدخول!$B$3:$B$10000,D125,الدخول!$H$3:$H$10000)+SUMIF(الدخول!$B$3:$B$10000,D125,الدخول!$U$3:$U$10000)+F125-SUMIF(الدخول!$B$3:$B$10000,D125,الدخول!$N$3:$N$10000)) -> 9564 | J125: =IF(G125="","",SUMIF(الدخول!$B$3:$B$1311,D125,الدخول!$I$3:$I$1311)+SUMIF(الدخول!$B$3:$B$1311,D125,الدخول!$V$3:$V$1311)+G125-SUMIF(الدخول!$B$3:$B$1311,D125,الدخول!$O$3:$O$1311)) -> 
A126: رصاصي استريب | B126: كروشيه | C126: 3cm | D126: رصاصي استريب كروشيه 3cm | E126: 175.18 | F126: 10127 | H126: =IF(E126="","",SUMIF(الدخول!$B$3:$B$10000,D126,الدخول!$F$3:$F$10000)+SUMIF(الدخول!$B$3:$B$10000,D126,الدخول!$S$3:$S$10000)+E126-SUMIF(الدخول!$B$3:$B$10000,D126,الدخول!$L$3:$L$10000)) -> 175.18 | I126: =IF(F126="","",SUMIF(الدخول!$B$3:$B$10000,D126,الدخول!$H$3:$H$10000)+SUMIF(الدخول!$B$3:$B$10000,D126,الدخول!$U$3:$U$10000)+F126-SUMIF(الدخول!$B$3:$B$10000,D126,الدخول!$N$3:$N$10000)) -> 10127 | J126: =IF(G126="","",SUMIF(الدخول!$B$3:$B$1311,D126,الدخول!$I$3:$I$1311)+SUMIF(الدخول!$B$3:$B$1311,D126,الدخول!$V$3:$V$1311)+G126-SUMIF(الدخول!$B$3:$B$1311,D126,الدخول!$O$3:$O$1311)) -> 
A127: زهري | B127: كورد | C127: مبطط | D127: زهري كورد مبطط | H127: =IF(E127="","",SUMIF(الدخول!$B$3:$B$10000,D127,الدخول!$F$3:$F$10000)+SUMIF(الدخول!$B$3:$B$10000,D127,الدخول!$S$3:$S$10000)+E127-SUMIF(الدخول!$B$3:$B$10000,D127,الدخول!$L$3:$L$10000)) ->  | I127: =IF(F127="","",SUMIF(الدخول!$B$3:$B$10000,D127,الدخول!$H$3:$H$10000)+SUMIF(الدخول!$B$3:$B$10000,D127,الدخول!$U$3:$U$10000)+F127-SUMIF(الدخول!$B$3:$B$10000,D127,الدخول!$N$3:$N$10000)) ->  | J127: =IF(G127="","",SUMIF(الدخول!$B$3:$B$1311,D127,الدخول!$I$3:$I$1311)+SUMIF(الدخول!$B$3:$B$1311,D127,الدخول!$V$3:$V$1311)+G127-SUMIF(الدخول!$B$3:$B$1311,D127,الدخول!$O$3:$O$1311)) -> 
A128: شاركول | B128: كورد | C128: مبطط | D128: شاركول كورد مبطط | H128: =IF(E128="","",SUMIF(الدخول!$B$3:$B$10000,D128,الدخول!$F$3:$F$10000)+SUMIF(الدخول!$B$3:$B$10000,D128,الدخول!$S$3:$S$10000)+E128-SUMIF(الدخول!$B$3:$B$10000,D128,الدخول!$L$3:$L$10000)) ->  | I128: =IF(F128="","",SUMIF(الدخول!$B$3:$B$10000,D128,الدخول!$H$3:$H$10000)+SUMIF(الدخول!$B$3:$B$10000,D128,الدخول!$U$3:$U$10000)+F128-SUMIF(الدخول!$B$3:$B$10000,D128,الدخول!$N$3:$N$10000)) ->  | J128: =IF(G128="","",SUMIF(الدخول!$B$3:$B$1311,D128,الدخول!$I$3:$I$1311)+SUMIF(الدخول!$B$3:$B$1311,D128,الدخول!$V$3:$V$1311)+G128-SUMIF(الدخول!$B$3:$B$1311,D128,الدخول!$O$3:$O$1311)) -> 
A129: موف غامق | B129: كروشيه | C129: 1.6cm | D129: موف غامق كروشيه 1.6cm | H129: =IF(E129="","",SUMIF(الدخول!$B$3:$B$10000,D129,الدخول!$F$3:$F$10000)+SUMIF(الدخول!$B$3:$B$10000,D129,الدخول!$S$3:$S$10000)+E129-SUMIF(الدخول!$B$3:$B$10000,D129,الدخول!$L$3:$L$10000)) ->  | I129: =IF(F129="","",SUMIF(الدخول!$B$3:$B$10000,D129,الدخول!$H$3:$H$10000)+SUMIF(الدخول!$B$3:$B$10000,D129,الدخول!$U$3:$U$10000)+F129-SUMIF(الدخول!$B$3:$B$10000,D129,الدخول!$N$3:$N$10000)) ->  | J129: =IF(G129="","",SUMIF(الدخول!$B$3:$B$1311,D129,الدخول!$I$3:$I$1311)+SUMIF(الدخول!$B$3:$B$1311,D129,الدخول!$V$3:$V$1311)+G129-SUMIF(الدخول!$B$3:$B$1311,D129,الدخول!$O$3:$O$1311)) -> 
D130: =A130&" "&B130&" "&C130 ->  | H130: =IF(E130="","",SUMIF(الدخول!$B$3:$B$10000,D130,الدخول!$F$3:$F$10000)+SUMIF(الدخول!$B$3:$B$10000,D130,الدخول!$S$3:$S$10000)+E130-SUMIF(الدخول!$B$3:$B$10000,D130,الدخول!$L$3:$L$10000)) ->  | I130: =IF(F130="","",SUMIF(الدخول!$B$3:$B$10000,D130,الدخول!$H$3:$H$10000)+SUMIF(الدخول!$B$3:$B$10000,D130,الدخول!$U$3:$U$10000)+F130-SUMIF(الدخول!$B$3:$B$10000,D130,الدخول!$N$3:$N$10000)) ->  | J130: =IF(G130="","",SUMIF(الدخول!$B$3:$B$1311,D130,الدخول!$I$3:$I$1311)+SUMIF(الدخول!$B$3:$B$1311,D130,الدخول!$V$3:$V$1311)+G130-SUMIF(الدخول!$B$3:$B$1311,D130,الدخول!$O$3:$O$1311)) -> 
H131: =IF(E131="","",SUMIF(الدخول!$B$3:$B$10000,D131,الدخول!$F$3:$F$10000)+SUMIF(الدخول!$B$3:$B$10000,D131,الدخول!$S$3:$S$10000)+E131-SUMIF(الدخول!$B$3:$B$10000,D131,الدخول!$L$3:$L$10000)) ->  | I131: =IF(F131="","",SUMIF(الدخول!$B$3:$B$10000,D131,الدخول!$H$3:$H$10000)+SUMIF(الدخول!$B$3:$B$10000,D131,الدخول!$U$3:$U$10000)+F131-SUMIF(الدخول!$B$3:$B$10000,D131,الدخول!$N$3:$N$10000)) ->  | J131: =IF(G131="","",SUMIF(الدخول!$B$3:$B$1311,D131,الدخول!$I$3:$I$1311)+SUMIF(الدخول!$B$3:$B$1311,D131,الدخول!$V$3:$V$1311)+G131-SUMIF(الدخول!$B$3:$B$1311,D131,الدخول!$O$3:$O$1311)) -> 
H132: =IF(E132="","",SUMIF(الدخول!$B$3:$B$10000,D132,الدخول!$F$3:$F$10000)+SUMIF(الدخول!$B$3:$B$10000,D132,الدخول!$S$3:$S$10000)+E132-SUMIF(الدخول!$B$3:$B$10000,D132,الدخول!$L$3:$L$10000)) ->  | I132: =IF(F132="","",SUMIF(الدخول!$B$3:$B$10000,D132,الدخول!$H$3:$H$10000)+SUMIF(الدخول!$B$3:$B$10000,D132,الدخول!$U$3:$U$10000)+F132-SUMIF(الدخول!$B$3:$B$10000,D132,الدخول!$N$3:$N$10000)) ->  | J132: =IF(G132="","",SUMIF(الدخول!$B$3:$B$1311,D132,الدخول!$I$3:$I$1311)+SUMIF(الدخول!$B$3:$B$1311,D132,الدخول!$V$3:$V$1311)+G132-SUMIF(الدخول!$B$3:$B$1311,D132,الدخول!$O$3:$O$1311)) -> 
H133: =IF(E133="","",SUMIF(الدخول!$B$3:$B$10000,D133,الدخول!$F$3:$F$10000)+SUMIF(الدخول!$B$3:$B$10000,D133,الدخول!$S$3:$S$10000)+E133-SUMIF(الدخول!$B$3:$B$10000,D133,الدخول!$L$3:$L$10000)) ->  | I133: =IF(F133="","",SUMIF(الدخول!$B$3:$B$10000,D133,الدخول!$H$3:$H$10000)+SUMIF(الدخول!$B$3:$B$10000,D133,الدخول!$U$3:$U$10000)+F133-SUMIF(الدخول!$B$3:$B$10000,D133,الدخول!$N$3:$N$10000)) ->  | J133: =IF(G133="","",SUMIF(الدخول!$B$3:$B$1311,D133,الدخول!$I$3:$I$1311)+SUMIF(الدخول!$B$3:$B$1311,D133,الدخول!$V$3:$V$1311)+G133-SUMIF(الدخول!$B$3:$B$1311,D133,الدخول!$O$3:$O$1311)) -> 
H134: =IF(E134="","",SUMIF(الدخول!$B$3:$B$10000,D134,الدخول!$F$3:$F$10000)+SUMIF(الدخول!$B$3:$B$10000,D134,الدخول!$S$3:$S$10000)+E134-SUMIF(الدخول!$B$3:$B$10000,D134,الدخول!$L$3:$L$10000)) ->  | I134: =IF(F134="","",SUMIF(الدخول!$B$3:$B$10000,D134,الدخول!$H$3:$H$10000)+SUMIF(الدخول!$B$3:$B$10000,D134,الدخول!$U$3:$U$10000)+F134-SUMIF(الدخول!$B$3:$B$10000,D134,الدخول!$N$3:$N$10000)) ->  | J134: =IF(G134="","",SUMIF(الدخول!$B$3:$B$1311,D134,الدخول!$I$3:$I$1311)+SUMIF(الدخول!$B$3:$B$1311,D134,الدخول!$V$3:$V$1311)+G134-SUMIF(الدخول!$B$3:$B$1311,D134,الدخول!$O$3:$O$1311)) -> 
H135: =IF(E135="","",SUMIF(الدخول!$B$3:$B$10000,D135,الدخول!$F$3:$F$10000)+SUMIF(الدخول!$B$3:$B$10000,D135,الدخول!$S$3:$S$10000)+E135-SUMIF(الدخول!$B$3:$B$10000,D135,الدخول!$L$3:$L$10000)) ->  | I135: =IF(F135="","",SUMIF(الدخول!$B$3:$B$10000,D135,الدخول!$H$3:$H$10000)+SUMIF(الدخول!$B$3:$B$10000,D135,الدخول!$U$3:$U$10000)+F135-SUMIF(الدخول!$B$3:$B$10000,D135,الدخول!$N$3:$N$10000)) ->  | J135: =IF(G135="","",SUMIF(الدخول!$B$3:$B$1311,D135,الدخول!$I$3:$I$1311)+SUMIF(الدخول!$B$3:$B$1311,D135,الدخول!$V$3:$V$1311)+G135-SUMIF(الدخول!$B$3:$B$1311,D135,الدخول!$O$3:$O$1311)) -> 
H136: =IF(E136="","",SUMIF(الدخول!$B$3:$B$10000,D136,الدخول!$F$3:$F$10000)+SUMIF(الدخول!$B$3:$B$10000,D136,الدخول!$S$3:$S$10000)+E136-SUMIF(الدخول!$B$3:$B$10000,D136,الدخول!$L$3:$L$10000)) ->  | I136: =IF(F136="","",SUMIF(الدخول!$B$3:$B$10000,D136,الدخول!$H$3:$H$10000)+SUMIF(الدخول!$B$3:$B$10000,D136,الدخول!$U$3:$U$10000)+F136-SUMIF(الدخول!$B$3:$B$10000,D136,الدخول!$N$3:$N$10000)) ->  | J136: =IF(G136="","",SUMIF(الدخول!$B$3:$B$1311,D136,الدخول!$I$3:$I$1311)+SUMIF(الدخول!$B$3:$B$1311,D136,الدخول!$V$3:$V$1311)+G136-SUMIF(الدخول!$B$3:$B$1311,D136,الدخول!$O$3:$O$1311)) -> 
H137: =IF(E137="","",SUMIF(الدخول!$B$3:$B$10000,D137,الدخول!$F$3:$F$10000)+SUMIF(الدخول!$B$3:$B$10000,D137,الدخول!$S$3:$S$10000)+E137-SUMIF(الدخول!$B$3:$B$10000,D137,الدخول!$L$3:$L$10000)) ->  | I137: =IF(F137="","",SUMIF(الدخول!$B$3:$B$10000,D137,الدخول!$H$3:$H$10000)+SUMIF(الدخول!$B$3:$B$10000,D137,الدخول!$U$3:$U$10000)+F137-SUMIF(الدخول!$B$3:$B$10000,D137,الدخول!$N$3:$N$10000)) ->  | J137: =IF(G137="","",SUMIF(الدخول!$B$3:$B$1311,D137,الدخول!$I$3:$I$1311)+SUMIF(الدخول!$B$3:$B$1311,D137,الدخول!$V$3:$V$1311)+G137-SUMIF(الدخول!$B$3:$B$1311,D137,الدخول!$O$3:$O$1311)) -> 
H138: =IF(E138="","",SUMIF(الدخول!$B$3:$B$10000,D138,الدخول!$F$3:$F$10000)+SUMIF(الدخول!$B$3:$B$10000,D138,الدخول!$S$3:$S$10000)+E138-SUMIF(الدخول!$B$3:$B$10000,D138,الدخول!$L$3:$L$10000)) ->  | I138: =IF(F138="","",SUMIF(الدخول!$B$3:$B$10000,D138,الدخول!$H$3:$H$10000)+SUMIF(الدخول!$B$3:$B$10000,D138,الدخول!$U$3:$U$10000)+F138-SUMIF(الدخول!$B$3:$B$10000,D138,الدخول!$N$3:$N$10000)) ->  | J138: =IF(G138="","",SUMIF(الدخول!$B$3:$B$1311,D138,الدخول!$I$3:$I$1311)+SUMIF(الدخول!$B$3:$B$1311,D138,الدخول!$V$3:$V$1311)+G138-SUMIF(الدخول!$B$3:$B$1311,D138,الدخول!$O$3:$O$1311)) -> 
H139: =IF(E139="","",SUMIF(الدخول!$B$3:$B$10000,D139,الدخول!$F$3:$F$10000)+SUMIF(الدخول!$B$3:$B$10000,D139,الدخول!$S$3:$S$10000)+E139-SUMIF(الدخول!$B$3:$B$10000,D139,الدخول!$L$3:$L$10000)) ->  | I139: =IF(F139="","",SUMIF(الدخول!$B$3:$B$10000,D139,الدخول!$H$3:$H$10000)+SUMIF(الدخول!$B$3:$B$10000,D139,الدخول!$U$3:$U$10000)+F139-SUMIF(الدخول!$B$3:$B$10000,D139,الدخول!$N$3:$N$10000)) ->  | J139: =IF(G139="","",SUMIF(الدخول!$B$3:$B$1311,D139,الدخول!$I$3:$I$1311)+SUMIF(الدخول!$B$3:$B$1311,D139,الدخول!$V$3:$V$1311)+G139-SUMIF(الدخول!$B$3:$B$1311,D139,الدخول!$O$3:$O$1311)) -> 
H140: =IF(E140="","",SUMIF(الدخول!$B$3:$B$10000,D140,الدخول!$F$3:$F$10000)+SUMIF(الدخول!$B$3:$B$10000,D140,الدخول!$S$3:$S$10000)+E140-SUMIF(الدخول!$B$3:$B$10000,D140,الدخول!$L$3:$L$10000)) ->  | I140: =IF(F140="","",SUMIF(الدخول!$B$3:$B$10000,D140,الدخول!$H$3:$H$10000)+SUMIF(الدخول!$B$3:$B$10000,D140,الدخول!$U$3:$U$10000)+F140-SUMIF(الدخول!$B$3:$B$10000,D140,الدخول!$N$3:$N$10000)) ->  | J140: =IF(G140="","",SUMIF(الدخول!$B$3:$B$1311,D140,الدخول!$I$3:$I$1311)+SUMIF(الدخول!$B$3:$B$1311,D140,الدخول!$V$3:$V$1311)+G140-SUMIF(الدخول!$B$3:$B$1311,D140,الدخول!$O$3:$O$1311)) -> 
H141: =IF(E141="","",SUMIF(الدخول!$B$3:$B$10000,D141,الدخول!$F$3:$F$10000)+SUMIF(الدخول!$B$3:$B$10000,D141,الدخول!$S$3:$S$10000)+E141-SUMIF(الدخول!$B$3:$B$10000,D141,الدخول!$L$3:$L$10000)) ->  | I141: =IF(F141="","",SUMIF(الدخول!$B$3:$B$10000,D141,الدخول!$H$3:$H$10000)+SUMIF(الدخول!$B$3:$B$10000,D141,الدخول!$U$3:$U$10000)+F141-SUMIF(الدخول!$B$3:$B$10000,D141,الدخول!$N$3:$N$10000)) ->  | J141: =IF(G141="","",SUMIF(الدخول!$B$3:$B$1311,D141,الدخول!$I$3:$I$1311)+SUMIF(الدخول!$B$3:$B$1311,D141,الدخول!$V$3:$V$1311)+G141-SUMIF(الدخول!$B$3:$B$1311,D141,الدخول!$O$3:$O$1311)) -> 
H142: =IF(E142="","",SUMIF(الدخول!$B$3:$B$10000,D142,الدخول!$F$3:$F$10000)+SUMIF(الدخول!$B$3:$B$10000,D142,الدخول!$S$3:$S$10000)+E142-SUMIF(الدخول!$B$3:$B$10000,D142,الدخول!$L$3:$L$10000)) ->  | I142: =IF(F142="","",SUMIF(الدخول!$B$3:$B$10000,D142,الدخول!$H$3:$H$10000)+SUMIF(الدخول!$B$3:$B$10000,D142,الدخول!$U$3:$U$10000)+F142-SUMIF(الدخول!$B$3:$B$10000,D142,الدخول!$N$3:$N$10000)) ->  | J142: =IF(G142="","",SUMIF(الدخول!$B$3:$B$1311,D142,الدخول!$I$3:$I$1311)+SUMIF(الدخول!$B$3:$B$1311,D142,الدخول!$V$3:$V$1311)+G142-SUMIF(الدخول!$B$3:$B$1311,D142,الدخول!$O$3:$O$1311)) -> 
H143: =IF(E143="","",SUMIF(الدخول!$B$3:$B$10000,D143,الدخول!$F$3:$F$10000)+SUMIF(الدخول!$B$3:$B$10000,D143,الدخول!$S$3:$S$10000)+E143-SUMIF(الدخول!$B$3:$B$10000,D143,الدخول!$L$3:$L$10000)) ->  | I143: =IF(F143="","",SUMIF(الدخول!$B$3:$B$10000,D143,الدخول!$H$3:$H$10000)+SUMIF(الدخول!$B$3:$B$10000,D143,الدخول!$U$3:$U$10000)+F143-SUMIF(الدخول!$B$3:$B$10000,D143,الدخول!$N$3:$N$10000)) ->  | J143: =IF(G143="","",SUMIF(الدخول!$B$3:$B$1311,D143,الدخول!$I$3:$I$1311)+SUMIF(الدخول!$B$3:$B$1311,D143,الدخول!$V$3:$V$1311)+G143-SUMIF(الدخول!$B$3:$B$1311,D143,الدخول!$O$3:$O$1311)) -> 
H144: =IF(E144="","",SUMIF(الدخول!$B$3:$B$10000,D144,الدخول!$F$3:$F$10000)+SUMIF(الدخول!$B$3:$B$10000,D144,الدخول!$S$3:$S$10000)+E144-SUMIF(الدخول!$B$3:$B$10000,D144,الدخول!$L$3:$L$10000)) ->  | I144: =IF(F144="","",SUMIF(الدخول!$B$3:$B$10000,D144,الدخول!$H$3:$H$10000)+SUMIF(الدخول!$B$3:$B$10000,D144,الدخول!$U$3:$U$10000)+F144-SUMIF(الدخول!$B$3:$B$10000,D144,الدخول!$N$3:$N$10000)) ->  | J144: =IF(G144="","",SUMIF(الدخول!$B$3:$B$1311,D144,الدخول!$I$3:$I$1311)+SUMIF(الدخول!$B$3:$B$1311,D144,الدخول!$V$3:$V$1311)+G144-SUMIF(الدخول!$B$3:$B$1311,D144,الدخول!$O$3:$O$1311)) -> 
H145: =IF(E145="","",SUMIF(الدخول!$B$3:$B$10000,D145,الدخول!$F$3:$F$10000)+SUMIF(الدخول!$B$3:$B$10000,D145,الدخول!$S$3:$S$10000)+E145-SUMIF(الدخول!$B$3:$B$10000,D145,الدخول!$L$3:$L$10000)) ->  | I145: =IF(F145="","",SUMIF(الدخول!$B$3:$B$10000,D145,الدخول!$H$3:$H$10000)+SUMIF(الدخول!$B$3:$B$10000,D145,الدخول!$U$3:$U$10000)+F145-SUMIF(الدخول!$B$3:$B$10000,D145,الدخول!$N$3:$N$10000)) ->  | J145: =IF(G145="","",SUMIF(الدخول!$B$3:$B$1311,D145,الدخول!$I$3:$I$1311)+SUMIF(الدخول!$B$3:$B$1311,D145,الدخول!$V$3:$V$1311)+G145-SUMIF(الدخول!$B$3:$B$1311,D145,الدخول!$O$3:$O$1311)) -> 
H146: =IF(E146="","",SUMIF(الدخول!$B$3:$B$10000,D146,الدخول!$F$3:$F$10000)+SUMIF(الدخول!$B$3:$B$10000,D146,الدخول!$S$3:$S$10000)+E146-SUMIF(الدخول!$B$3:$B$10000,D146,الدخول!$L$3:$L$10000)) ->  | I146: =IF(F146="","",SUMIF(الدخول!$B$3:$B$10000,D146,الدخول!$H$3:$H$10000)+SUMIF(الدخول!$B$3:$B$10000,D146,الدخول!$U$3:$U$10000)+F146-SUMIF(الدخول!$B$3:$B$10000,D146,الدخول!$N$3:$N$10000)) ->  | J146: =IF(G146="","",SUMIF(الدخول!$B$3:$B$1311,D146,الدخول!$I$3:$I$1311)+SUMIF(الدخول!$B$3:$B$1311,D146,الدخول!$V$3:$V$1311)+G146-SUMIF(الدخول!$B$3:$B$1311,D146,الدخول!$O$3:$O$1311)) -> 
H147: =IF(E147="","",SUMIF(الدخول!$B$3:$B$10000,D147,الدخول!$F$3:$F$10000)+SUMIF(الدخول!$B$3:$B$10000,D147,الدخول!$S$3:$S$10000)+E147-SUMIF(الدخول!$B$3:$B$10000,D147,الدخول!$L$3:$L$10000)) ->  | I147: =IF(F147="","",SUMIF(الدخول!$B$3:$B$10000,D147,الدخول!$H$3:$H$10000)+SUMIF(الدخول!$B$3:$B$10000,D147,الدخول!$U$3:$U$10000)+F147-SUMIF(الدخول!$B$3:$B$10000,D147,الدخول!$N$3:$N$10000)) ->  | J147: =IF(G147="","",SUMIF(الدخول!$B$3:$B$1311,D147,الدخول!$I$3:$I$1311)+SUMIF(الدخول!$B$3:$B$1311,D147,الدخول!$V$3:$V$1311)+G147-SUMIF(الدخول!$B$3:$B$1311,D147,الدخول!$O$3:$O$1311)) -> 
H148: =IF(E148="","",SUMIF(الدخول!$B$3:$B$10000,D148,الدخول!$F$3:$F$10000)+SUMIF(الدخول!$B$3:$B$10000,D148,الدخول!$S$3:$S$10000)+E148-SUMIF(الدخول!$B$3:$B$10000,D148,الدخول!$L$3:$L$10000)) ->  | I148: =IF(F148="","",SUMIF(الدخول!$B$3:$B$10000,D148,الدخول!$H$3:$H$10000)+SUMIF(الدخول!$B$3:$B$10000,D148,الدخول!$U$3:$U$10000)+F148-SUMIF(الدخول!$B$3:$B$10000,D148,الدخول!$N$3:$N$10000)) ->  | J148: =IF(G148="","",SUMIF(الدخول!$B$3:$B$1311,D148,الدخول!$I$3:$I$1311)+SUMIF(الدخول!$B$3:$B$1311,D148,الدخول!$V$3:$V$1311)+G148-SUMIF(الدخول!$B$3:$B$1311,D148,الدخول!$O$3:$O$1311)) -> 
H149: =IF(E149="","",SUMIF(الدخول!$B$3:$B$10000,D149,الدخول!$F$3:$F$10000)+SUMIF(الدخول!$B$3:$B$10000,D149,الدخول!$S$3:$S$10000)+E149-SUMIF(الدخول!$B$3:$B$10000,D149,الدخول!$L$3:$L$10000)) ->  | I149: =IF(F149="","",SUMIF(الدخول!$B$3:$B$10000,D149,الدخول!$H$3:$H$10000)+SUMIF(الدخول!$B$3:$B$10000,D149,الدخول!$U$3:$U$10000)+F149-SUMIF(الدخول!$B$3:$B$10000,D149,الدخول!$N$3:$N$10000)) ->  | J149: =IF(G149="","",SUMIF(الدخول!$B$3:$B$1311,D149,الدخول!$I$3:$I$1311)+SUMIF(الدخول!$B$3:$B$1311,D149,الدخول!$V$3:$V$1311)+G149-SUMIF(الدخول!$B$3:$B$1311,D149,الدخول!$O$3:$O$1311)) -> 
H150: =IF(E150="","",SUMIF(الدخول!$B$3:$B$10000,D150,الدخول!$F$3:$F$10000)+SUMIF(الدخول!$B$3:$B$10000,D150,الدخول!$S$3:$S$10000)+E150-SUMIF(الدخول!$B$3:$B$10000,D150,الدخول!$L$3:$L$10000)) ->  | I150: =IF(F150="","",SUMIF(الدخول!$B$3:$B$10000,D150,الدخول!$H$3:$H$10000)+SUMIF(الدخول!$B$3:$B$10000,D150,الدخول!$U$3:$U$10000)+F150-SUMIF(الدخول!$B$3:$B$10000,D150,الدخول!$N$3:$N$10000)) ->  | J150: =IF(G150="","",SUMIF(الدخول!$B$3:$B$1311,D150,الدخول!$I$3:$I$1311)+SUMIF(الدخول!$B$3:$B$1311,D150,الدخول!$V$3:$V$1311)+G150-SUMIF(الدخول!$B$3:$B$1311,D150,الدخول!$O$3:$O$1311)) -> 
H151: =IF(E151="","",SUMIF(الدخول!$B$3:$B$10000,D151,الدخول!$F$3:$F$10000)+SUMIF(الدخول!$B$3:$B$10000,D151,الدخول!$S$3:$S$10000)+E151-SUMIF(الدخول!$B$3:$B$10000,D151,الدخول!$L$3:$L$10000)) ->  | I151: =IF(F151="","",SUMIF(الدخول!$B$3:$B$10000,D151,الدخول!$H$3:$H$10000)+SUMIF(الدخول!$B$3:$B$10000,D151,الدخول!$U$3:$U$10000)+F151-SUMIF(الدخول!$B$3:$B$10000,D151,الدخول!$N$3:$N$10000)) ->  | J151: =IF(G151="","",SUMIF(الدخول!$B$3:$B$1311,D151,الدخول!$I$3:$I$1311)+SUMIF(الدخول!$B$3:$B$1311,D151,الدخول!$V$3:$V$1311)+G151-SUMIF(الدخول!$B$3:$B$1311,D151,الدخول!$O$3:$O$1311)) -> 
H152: =IF(E152="","",SUMIF(الدخول!$B$3:$B$10000,D152,الدخول!$F$3:$F$10000)+SUMIF(الدخول!$B$3:$B$10000,D152,الدخول!$S$3:$S$10000)+E152-SUMIF(الدخول!$B$3:$B$10000,D152,الدخول!$L$3:$L$10000)) ->  | I152: =IF(F152="","",SUMIF(الدخول!$B$3:$B$10000,D152,الدخول!$H$3:$H$10000)+SUMIF(الدخول!$B$3:$B$10000,D152,الدخول!$U$3:$U$10000)+F152-SUMIF(الدخول!$B$3:$B$10000,D152,الدخول!$N$3:$N$10000)) ->  | J152: =IF(G152="","",SUMIF(الدخول!$B$3:$B$1311,D152,الدخول!$I$3:$I$1311)+SUMIF(الدخول!$B$3:$B$1311,D152,الدخول!$V$3:$V$1311)+G152-SUMIF(الدخول!$B$3:$B$1311,D152,الدخول!$O$3:$O$1311)) -> 
H153: =IF(E153="","",SUMIF(الدخول!$B$3:$B$10000,D153,الدخول!$F$3:$F$10000)+SUMIF(الدخول!$B$3:$B$10000,D153,الدخول!$S$3:$S$10000)+E153-SUMIF(الدخول!$B$3:$B$10000,D153,الدخول!$L$3:$L$10000)) ->  | I153: =IF(F153="","",SUMIF(الدخول!$B$3:$B$10000,D153,الدخول!$H$3:$H$10000)+SUMIF(الدخول!$B$3:$B$10000,D153,الدخول!$U$3:$U$10000)+F153-SUMIF(الدخول!$B$3:$B$10000,D153,الدخول!$N$3:$N$10000)) ->  | J153: =IF(G153="","",SUMIF(الدخول!$B$3:$B$1311,D153,الدخول!$I$3:$I$1311)+SUMIF(الدخول!$B$3:$B$1311,D153,الدخول!$V$3:$V$1311)+G153-SUMIF(الدخول!$B$3:$B$1311,D153,الدخول!$O$3:$O$1311)) -> 
H154: =IF(E154="","",SUMIF(الدخول!$B$3:$B$10000,D154,الدخول!$F$3:$F$10000)+SUMIF(الدخول!$B$3:$B$10000,D154,الدخول!$S$3:$S$10000)+E154-SUMIF(الدخول!$B$3:$B$10000,D154,الدخول!$L$3:$L$10000)) ->  | I154: =IF(F154="","",SUMIF(الدخول!$B$3:$B$10000,D154,الدخول!$H$3:$H$10000)+SUMIF(الدخول!$B$3:$B$10000,D154,الدخول!$U$3:$U$10000)+F154-SUMIF(الدخول!$B$3:$B$10000,D154,الدخول!$N$3:$N$10000)) ->  | J154: =IF(G154="","",SUMIF(الدخول!$B$3:$B$1311,D154,الدخول!$I$3:$I$1311)+SUMIF(الدخول!$B$3:$B$1311,D154,الدخول!$V$3:$V$1311)+G154-SUMIF(الدخول!$B$3:$B$1311,D154,الدخول!$O$3:$O$1311)) -> 
H155: =IF(E155="","",SUMIF(الدخول!$B$3:$B$10000,D155,الدخول!$F$3:$F$10000)+SUMIF(الدخول!$B$3:$B$10000,D155,الدخول!$S$3:$S$10000)+E155-SUMIF(الدخول!$B$3:$B$10000,D155,الدخول!$L$3:$L$10000)) ->  | I155: =IF(F155="","",SUMIF(الدخول!$B$3:$B$10000,D155,الدخول!$H$3:$H$10000)+SUMIF(الدخول!$B$3:$B$10000,D155,الدخول!$U$3:$U$10000)+F155-SUMIF(الدخول!$B$3:$B$10000,D155,الدخول!$N$3:$N$10000)) ->  | J155: =IF(G155="","",SUMIF(الدخول!$B$3:$B$1311,D155,الدخول!$I$3:$I$1311)+SUMIF(الدخول!$B$3:$B$1311,D155,الدخول!$V$3:$V$1311)+G155-SUMIF(الدخول!$B$3:$B$1311,D155,الدخول!$O$3:$O$1311)) -> 
H156: =IF(E156="","",SUMIF(الدخول!$B$3:$B$10000,D156,الدخول!$F$3:$F$10000)+SUMIF(الدخول!$B$3:$B$10000,D156,الدخول!$S$3:$S$10000)+E156-SUMIF(الدخول!$B$3:$B$10000,D156,الدخول!$L$3:$L$10000)) ->  | I156: =IF(F156="","",SUMIF(الدخول!$B$3:$B$10000,D156,الدخول!$H$3:$H$10000)+SUMIF(الدخول!$B$3:$B$10000,D156,الدخول!$U$3:$U$10000)+F156-SUMIF(الدخول!$B$3:$B$10000,D156,الدخول!$N$3:$N$10000)) ->  | J156: =IF(G156="","",SUMIF(الدخول!$B$3:$B$1311,D156,الدخول!$I$3:$I$1311)+SUMIF(الدخول!$B$3:$B$1311,D156,الدخول!$V$3:$V$1311)+G156-SUMIF(الدخول!$B$3:$B$1311,D156,الدخول!$O$3:$O$1311)) -> 
H157: =IF(E157="","",SUMIF(الدخول!$B$3:$B$10000,D157,الدخول!$F$3:$F$10000)+SUMIF(الدخول!$B$3:$B$10000,D157,الدخول!$S$3:$S$10000)+E157-SUMIF(الدخول!$B$3:$B$10000,D157,الدخول!$L$3:$L$10000)) ->  | I157: =IF(F157="","",SUMIF(الدخول!$B$3:$B$10000,D157,الدخول!$H$3:$H$10000)+SUMIF(الدخول!$B$3:$B$10000,D157,الدخول!$U$3:$U$10000)+F157-SUMIF(الدخول!$B$3:$B$10000,D157,الدخول!$N$3:$N$10000)) ->  | J157: =IF(G157="","",SUMIF(الدخول!$B$3:$B$1311,D157,الدخول!$I$3:$I$1311)+SUMIF(الدخول!$B$3:$B$1311,D157,الدخول!$V$3:$V$1311)+G157-SUMIF(الدخول!$B$3:$B$1311,D157,الدخول!$O$3:$O$1311)) -> 
H158: =IF(E158="","",SUMIF(الدخول!$B$3:$B$10000,D158,الدخول!$F$3:$F$10000)+SUMIF(الدخول!$B$3:$B$10000,D158,الدخول!$S$3:$S$10000)+E158-SUMIF(الدخول!$B$3:$B$10000,D158,الدخول!$L$3:$L$10000)) ->  | I158: =IF(F158="","",SUMIF(الدخول!$B$3:$B$10000,D158,الدخول!$H$3:$H$10000)+SUMIF(الدخول!$B$3:$B$10000,D158,الدخول!$U$3:$U$10000)+F158-SUMIF(الدخول!$B$3:$B$10000,D158,الدخول!$N$3:$N$10000)) ->  | J158: =IF(G158="","",SUMIF(الدخول!$B$3:$B$1311,D158,الدخول!$I$3:$I$1311)+SUMIF(الدخول!$B$3:$B$1311,D158,الدخول!$V$3:$V$1311)+G158-SUMIF(الدخول!$B$3:$B$1311,D158,الدخول!$O$3:$O$1311)) -> 
H159: =IF(E159="","",SUMIF(الدخول!$B$3:$B$10000,D159,الدخول!$F$3:$F$10000)+SUMIF(الدخول!$B$3:$B$10000,D159,الدخول!$S$3:$S$10000)+E159-SUMIF(الدخول!$B$3:$B$10000,D159,الدخول!$L$3:$L$10000)) ->  | I159: =IF(F159="","",SUMIF(الدخول!$B$3:$B$10000,D159,الدخول!$H$3:$H$10000)+SUMIF(الدخول!$B$3:$B$10000,D159,الدخول!$U$3:$U$10000)+F159-SUMIF(الدخول!$B$3:$B$10000,D159,الدخول!$N$3:$N$10000)) ->  | J159: =IF(G159="","",SUMIF(الدخول!$B$3:$B$1311,D159,الدخول!$I$3:$I$1311)+SUMIF(الدخول!$B$3:$B$1311,D159,الدخول!$V$3:$V$1311)+G159-SUMIF(الدخول!$B$3:$B$1311,D159,الدخول!$O$3:$O$1311)) -> 
H160: =IF(E160="","",SUMIF(الدخول!$B$3:$B$10000,D160,الدخول!$F$3:$F$10000)+SUMIF(الدخول!$B$3:$B$10000,D160,الدخول!$S$3:$S$10000)+E160-SUMIF(الدخول!$B$3:$B$10000,D160,الدخول!$L$3:$L$10000)) ->  | I160: =IF(F160="","",SUMIF(الدخول!$B$3:$B$10000,D160,الدخول!$H$3:$H$10000)+SUMIF(الدخول!$B$3:$B$10000,D160,الدخول!$U$3:$U$10000)+F160-SUMIF(الدخول!$B$3:$B$10000,D160,الدخول!$N$3:$N$10000)) ->  | J160: =IF(G160="","",SUMIF(الدخول!$B$3:$B$1311,D160,الدخول!$I$3:$I$1311)+SUMIF(الدخول!$B$3:$B$1311,D160,الدخول!$V$3:$V$1311)+G160-SUMIF(الدخول!$B$3:$B$1311,D160,الدخول!$O$3:$O$1311)) -> 
H161: =IF(E161="","",SUMIF(الدخول!$B$3:$B$10000,D161,الدخول!$F$3:$F$10000)+SUMIF(الدخول!$B$3:$B$10000,D161,الدخول!$S$3:$S$10000)+E161-SUMIF(الدخول!$B$3:$B$10000,D161,الدخول!$L$3:$L$10000)) ->  | I161: =IF(F161="","",SUMIF(الدخول!$B$3:$B$10000,D161,الدخول!$H$3:$H$10000)+SUMIF(الدخول!$B$3:$B$10000,D161,الدخول!$U$3:$U$10000)+F161-SUMIF(الدخول!$B$3:$B$10000,D161,الدخول!$N$3:$N$10000)) ->  | J161: =IF(G161="","",SUMIF(الدخول!$B$3:$B$1311,D161,الدخول!$I$3:$I$1311)+SUMIF(الدخول!$B$3:$B$1311,D161,الدخول!$V$3:$V$1311)+G161-SUMIF(الدخول!$B$3:$B$1311,D161,الدخول!$O$3:$O$1311)) -> 
H162: =IF(E162="","",SUMIF(الدخول!$B$3:$B$10000,D162,الدخول!$F$3:$F$10000)+SUMIF(الدخول!$B$3:$B$10000,D162,الدخول!$S$3:$S$10000)+E162-SUMIF(الدخول!$B$3:$B$10000,D162,الدخول!$L$3:$L$10000)) ->  | I162: =IF(F162="","",SUMIF(الدخول!$B$3:$B$10000,D162,الدخول!$H$3:$H$10000)+SUMIF(الدخول!$B$3:$B$10000,D162,الدخول!$U$3:$U$10000)+F162-SUMIF(الدخول!$B$3:$B$10000,D162,الدخول!$N$3:$N$10000)) ->  | J162: =IF(G162="","",SUMIF(الدخول!$B$3:$B$1311,D162,الدخول!$I$3:$I$1311)+SUMIF(الدخول!$B$3:$B$1311,D162,الدخول!$V$3:$V$1311)+G162-SUMIF(الدخول!$B$3:$B$1311,D162,الدخول!$O$3:$O$1311)) -> 
H163: =IF(E163="","",SUMIF(الدخول!$B$3:$B$10000,D163,الدخول!$F$3:$F$10000)+SUMIF(الدخول!$B$3:$B$10000,D163,الدخول!$S$3:$S$10000)+E163-SUMIF(الدخول!$B$3:$B$10000,D163,الدخول!$L$3:$L$10000)) ->  | I163: =IF(F163="","",SUMIF(الدخول!$B$3:$B$10000,D163,الدخول!$H$3:$H$10000)+SUMIF(الدخول!$B$3:$B$10000,D163,الدخول!$U$3:$U$10000)+F163-SUMIF(الدخول!$B$3:$B$10000,D163,الدخول!$N$3:$N$10000)) ->  | J163: =IF(G163="","",SUMIF(الدخول!$B$3:$B$1311,D163,الدخول!$I$3:$I$1311)+SUMIF(الدخول!$B$3:$B$1311,D163,الدخول!$V$3:$V$1311)+G163-SUMIF(الدخول!$B$3:$B$1311,D163,الدخول!$O$3:$O$1311)) -> 
H164: =IF(E164="","",SUMIF(الدخول!$B$3:$B$10000,D164,الدخول!$F$3:$F$10000)+SUMIF(الدخول!$B$3:$B$10000,D164,الدخول!$S$3:$S$10000)+E164-SUMIF(الدخول!$B$3:$B$10000,D164,الدخول!$L$3:$L$10000)) ->  | I164: =IF(F164="","",SUMIF(الدخول!$B$3:$B$10000,D164,الدخول!$H$3:$H$10000)+SUMIF(الدخول!$B$3:$B$10000,D164,الدخول!$U$3:$U$10000)+F164-SUMIF(الدخول!$B$3:$B$10000,D164,الدخول!$N$3:$N$10000)) ->  | J164: =IF(G164="","",SUMIF(الدخول!$B$3:$B$1311,D164,الدخول!$I$3:$I$1311)+SUMIF(الدخول!$B$3:$B$1311,D164,الدخول!$V$3:$V$1311)+G164-SUMIF(الدخول!$B$3:$B$1311,D164,الدخول!$O$3:$O$1311)) -> 
H165: =IF(E165="","",SUMIF(الدخول!$B$3:$B$10000,D165,الدخول!$F$3:$F$10000)+SUMIF(الدخول!$B$3:$B$10000,D165,الدخول!$S$3:$S$10000)+E165-SUMIF(الدخول!$B$3:$B$10000,D165,الدخول!$L$3:$L$10000)) ->  | I165: =IF(F165="","",SUMIF(الدخول!$B$3:$B$10000,D165,الدخول!$H$3:$H$10000)+SUMIF(الدخول!$B$3:$B$10000,D165,الدخول!$U$3:$U$10000)+F165-SUMIF(الدخول!$B$3:$B$10000,D165,الدخول!$N$3:$N$10000)) ->  | J165: =IF(G165="","",SUMIF(الدخول!$B$3:$B$1311,D165,الدخول!$I$3:$I$1311)+SUMIF(الدخول!$B$3:$B$1311,D165,الدخول!$V$3:$V$1311)+G165-SUMIF(الدخول!$B$3:$B$1311,D165,الدخول!$O$3:$O$1311)) -> 
H166: =IF(E166="","",SUMIF(الدخول!$B$3:$B$10000,D166,الدخول!$F$3:$F$10000)+SUMIF(الدخول!$B$3:$B$10000,D166,الدخول!$S$3:$S$10000)+E166-SUMIF(الدخول!$B$3:$B$10000,D166,الدخول!$L$3:$L$10000)) ->  | I166: =IF(F166="","",SUMIF(الدخول!$B$3:$B$10000,D166,الدخول!$H$3:$H$10000)+SUMIF(الدخول!$B$3:$B$10000,D166,الدخول!$U$3:$U$10000)+F166-SUMIF(الدخول!$B$3:$B$10000,D166,الدخول!$N$3:$N$10000)) ->  | J166: =IF(G166="","",SUMIF(الدخول!$B$3:$B$1311,D166,الدخول!$I$3:$I$1311)+SUMIF(الدخول!$B$3:$B$1311,D166,الدخول!$V$3:$V$1311)+G166-SUMIF(الدخول!$B$3:$B$1311,D166,الدخول!$O$3:$O$1311)) -> 
H167: =IF(E167="","",SUMIF(الدخول!$B$3:$B$10000,D167,الدخول!$F$3:$F$10000)+SUMIF(الدخول!$B$3:$B$10000,D167,الدخول!$S$3:$S$10000)+E167-SUMIF(الدخول!$B$3:$B$10000,D167,الدخول!$L$3:$L$10000)) ->  | I167: =IF(F167="","",SUMIF(الدخول!$B$3:$B$10000,D167,الدخول!$H$3:$H$10000)+SUMIF(الدخول!$B$3:$B$10000,D167,الدخول!$U$3:$U$10000)+F167-SUMIF(الدخول!$B$3:$B$10000,D167,الدخول!$N$3:$N$10000)) ->  | J167: =IF(G167="","",SUMIF(الدخول!$B$3:$B$1311,D167,الدخول!$I$3:$I$1311)+SUMIF(الدخول!$B$3:$B$1311,D167,الدخول!$V$3:$V$1311)+G167-SUMIF(الدخول!$B$3:$B$1311,D167,الدخول!$O$3:$O$1311)) -> 
H168: =IF(E168="","",SUMIF(الدخول!$B$3:$B$10000,D168,الدخول!$F$3:$F$10000)+SUMIF(الدخول!$B$3:$B$10000,D168,الدخول!$S$3:$S$10000)+E168-SUMIF(الدخول!$B$3:$B$10000,D168,الدخول!$L$3:$L$10000)) ->  | I168: =IF(F168="","",SUMIF(الدخول!$B$3:$B$10000,D168,الدخول!$H$3:$H$10000)+SUMIF(الدخول!$B$3:$B$10000,D168,الدخول!$U$3:$U$10000)+F168-SUMIF(الدخول!$B$3:$B$10000,D168,الدخول!$N$3:$N$10000)) ->  | J168: =IF(G168="","",SUMIF(الدخول!$B$3:$B$1311,D168,الدخول!$I$3:$I$1311)+SUMIF(الدخول!$B$3:$B$1311,D168,الدخول!$V$3:$V$1311)+G168-SUMIF(الدخول!$B$3:$B$1311,D168,الدخول!$O$3:$O$1311)) -> 
H169: =IF(E169="","",SUMIF(الدخول!$B$3:$B$10000,D169,الدخول!$F$3:$F$10000)+SUMIF(الدخول!$B$3:$B$10000,D169,الدخول!$S$3:$S$10000)+E169-SUMIF(الدخول!$B$3:$B$10000,D169,الدخول!$L$3:$L$10000)) ->  | I169: =IF(F169="","",SUMIF(الدخول!$B$3:$B$10000,D169,الدخول!$H$3:$H$10000)+SUMIF(الدخول!$B$3:$B$10000,D169,الدخول!$U$3:$U$10000)+F169-SUMIF(الدخول!$B$3:$B$10000,D169,الدخول!$N$3:$N$10000)) ->  | J169: =IF(G169="","",SUMIF(الدخول!$B$3:$B$1311,D169,الدخول!$I$3:$I$1311)+SUMIF(الدخول!$B$3:$B$1311,D169,الدخول!$V$3:$V$1311)+G169-SUMIF(الدخول!$B$3:$B$1311,D169,الدخول!$O$3:$O$1311)) -> 
H170: =IF(E170="","",SUMIF(الدخول!$B$3:$B$10000,D170,الدخول!$F$3:$F$10000)+SUMIF(الدخول!$B$3:$B$10000,D170,الدخول!$S$3:$S$10000)+E170-SUMIF(الدخول!$B$3:$B$10000,D170,الدخول!$L$3:$L$10000)) ->  | I170: =IF(F170="","",SUMIF(الدخول!$B$3:$B$10000,D170,الدخول!$H$3:$H$10000)+SUMIF(الدخول!$B$3:$B$10000,D170,الدخول!$U$3:$U$10000)+F170-SUMIF(الدخول!$B$3:$B$10000,D170,الدخول!$N$3:$N$10000)) ->  | J170: =IF(G170="","",SUMIF(الدخول!$B$3:$B$1311,D170,الدخول!$I$3:$I$1311)+SUMIF(الدخول!$B$3:$B$1311,D170,الدخول!$V$3:$V$1311)+G170-SUMIF(الدخول!$B$3:$B$1311,D170,الدخول!$O$3:$O$1311)) -> 
H171: =IF(E171="","",SUMIF(الدخول!$B$3:$B$10000,D171,الدخول!$F$3:$F$10000)+SUMIF(الدخول!$B$3:$B$10000,D171,الدخول!$S$3:$S$10000)+E171-SUMIF(الدخول!$B$3:$B$10000,D171,الدخول!$L$3:$L$10000)) ->  | I171: =IF(F171="","",SUMIF(الدخول!$B$3:$B$10000,D171,الدخول!$H$3:$H$10000)+SUMIF(الدخول!$B$3:$B$10000,D171,الدخول!$U$3:$U$10000)+F171-SUMIF(الدخول!$B$3:$B$10000,D171,الدخول!$N$3:$N$10000)) ->  | J171: =IF(G171="","",SUMIF(الدخول!$B$3:$B$1311,D171,الدخول!$I$3:$I$1311)+SUMIF(الدخول!$B$3:$B$1311,D171,الدخول!$V$3:$V$1311)+G171-SUMIF(الدخول!$B$3:$B$1311,D171,الدخول!$O$3:$O$1311)) -> 
H172: =IF(E172="","",SUMIF(الدخول!$B$3:$B$10000,D172,الدخول!$F$3:$F$10000)+SUMIF(الدخول!$B$3:$B$10000,D172,الدخول!$S$3:$S$10000)+E172-SUMIF(الدخول!$B$3:$B$10000,D172,الدخول!$L$3:$L$10000)) ->  | I172: =IF(F172="","",SUMIF(الدخول!$B$3:$B$10000,D172,الدخول!$H$3:$H$10000)+SUMIF(الدخول!$B$3:$B$10000,D172,الدخول!$U$3:$U$10000)+F172-SUMIF(الدخول!$B$3:$B$10000,D172,الدخول!$N$3:$N$10000)) ->  | J172: =IF(G172="","",SUMIF(الدخول!$B$3:$B$1311,D172,الدخول!$I$3:$I$1311)+SUMIF(الدخول!$B$3:$B$1311,D172,الدخول!$V$3:$V$1311)+G172-SUMIF(الدخول!$B$3:$B$1311,D172,الدخول!$O$3:$O$1311)) -> 
H173: =IF(E173="","",SUMIF(الدخول!$B$3:$B$10000,D173,الدخول!$F$3:$F$10000)+SUMIF(الدخول!$B$3:$B$10000,D173,الدخول!$S$3:$S$10000)+E173-SUMIF(الدخول!$B$3:$B$10000,D173,الدخول!$L$3:$L$10000)) ->  | I173: =IF(F173="","",SUMIF(الدخول!$B$3:$B$10000,D173,الدخول!$H$3:$H$10000)+SUMIF(الدخول!$B$3:$B$10000,D173,الدخول!$U$3:$U$10000)+F173-SUMIF(الدخول!$B$3:$B$10000,D173,الدخول!$N$3:$N$10000)) ->  | J173: =IF(G173="","",SUMIF(الدخول!$B$3:$B$1311,D173,الدخول!$I$3:$I$1311)+SUMIF(الدخول!$B$3:$B$1311,D173,الدخول!$V$3:$V$1311)+G173-SUMIF(الدخول!$B$3:$B$1311,D173,الدخول!$O$3:$O$1311)) -> 
H174: =IF(E174="","",SUMIF(الدخول!$B$3:$B$10000,D174,الدخول!$F$3:$F$10000)+SUMIF(الدخول!$B$3:$B$10000,D174,الدخول!$S$3:$S$10000)+E174-SUMIF(الدخول!$B$3:$B$10000,D174,الدخول!$L$3:$L$10000)) ->  | I174: =IF(F174="","",SUMIF(الدخول!$B$3:$B$10000,D174,الدخول!$H$3:$H$10000)+SUMIF(الدخول!$B$3:$B$10000,D174,الدخول!$U$3:$U$10000)+F174-SUMIF(الدخول!$B$3:$B$10000,D174,الدخول!$N$3:$N$10000)) ->  | J174: =IF(G174="","",SUMIF(الدخول!$B$3:$B$1311,D174,الدخول!$I$3:$I$1311)+SUMIF(الدخول!$B$3:$B$1311,D174,الدخول!$V$3:$V$1311)+G174-SUMIF(الدخول!$B$3:$B$1311,D174,الدخول!$O$3:$O$1311)) -> 
H175: =IF(E175="","",SUMIF(الدخول!$B$3:$B$10000,D175,الدخول!$F$3:$F$10000)+SUMIF(الدخول!$B$3:$B$10000,D175,الدخول!$S$3:$S$10000)+E175-SUMIF(الدخول!$B$3:$B$10000,D175,الدخول!$L$3:$L$10000)) ->  | I175: =IF(F175="","",SUMIF(الدخول!$B$3:$B$10000,D175,الدخول!$H$3:$H$10000)+SUMIF(الدخول!$B$3:$B$10000,D175,الدخول!$U$3:$U$10000)+F175-SUMIF(الدخول!$B$3:$B$10000,D175,الدخول!$N$3:$N$10000)) ->  | J175: =IF(G175="","",SUMIF(الدخول!$B$3:$B$1311,D175,الدخول!$I$3:$I$1311)+SUMIF(الدخول!$B$3:$B$1311,D175,الدخول!$V$3:$V$1311)+G175-SUMIF(الدخول!$B$3:$B$1311,D175,الدخول!$O$3:$O$1311)) -> 
H176: =IF(E176="","",SUMIF(الدخول!$B$3:$B$10000,D176,الدخول!$F$3:$F$10000)+SUMIF(الدخول!$B$3:$B$10000,D176,الدخول!$S$3:$S$10000)+E176-SUMIF(الدخول!$B$3:$B$10000,D176,الدخول!$L$3:$L$10000)) ->  | I176: =IF(F176="","",SUMIF(الدخول!$B$3:$B$10000,D176,الدخول!$H$3:$H$10000)+SUMIF(الدخول!$B$3:$B$10000,D176,الدخول!$U$3:$U$10000)+F176-SUMIF(الدخول!$B$3:$B$10000,D176,الدخول!$N$3:$N$10000)) ->  | J176: =IF(G176="","",SUMIF(الدخول!$B$3:$B$1311,D176,الدخول!$I$3:$I$1311)+SUMIF(الدخول!$B$3:$B$1311,D176,الدخول!$V$3:$V$1311)+G176-SUMIF(الدخول!$B$3:$B$1311,D176,الدخول!$O$3:$O$1311)) -> 
H177: =IF(E177="","",SUMIF(الدخول!$B$3:$B$10000,D177,الدخول!$F$3:$F$10000)+SUMIF(الدخول!$B$3:$B$10000,D177,الدخول!$S$3:$S$10000)+E177-SUMIF(الدخول!$B$3:$B$10000,D177,الدخول!$L$3:$L$10000)) ->  | I177: =IF(F177="","",SUMIF(الدخول!$B$3:$B$10000,D177,الدخول!$H$3:$H$10000)+SUMIF(الدخول!$B$3:$B$10000,D177,الدخول!$U$3:$U$10000)+F177-SUMIF(الدخول!$B$3:$B$10000,D177,الدخول!$N$3:$N$10000)) ->  | J177: =IF(G177="","",SUMIF(الدخول!$B$3:$B$1311,D177,الدخول!$I$3:$I$1311)+SUMIF(الدخول!$B$3:$B$1311,D177,الدخول!$V$3:$V$1311)+G177-SUMIF(الدخول!$B$3:$B$1311,D177,الدخول!$O$3:$O$1311)) -> 
H178: =IF(E178="","",SUMIF(الدخول!$B$3:$B$10000,D178,الدخول!$F$3:$F$10000)+SUMIF(الدخول!$B$3:$B$10000,D178,الدخول!$S$3:$S$10000)+E178-SUMIF(الدخول!$B$3:$B$10000,D178,الدخول!$L$3:$L$10000)) ->  | I178: =IF(F178="","",SUMIF(الدخول!$B$3:$B$10000,D178,الدخول!$H$3:$H$10000)+SUMIF(الدخول!$B$3:$B$10000,D178,الدخول!$U$3:$U$10000)+F178-SUMIF(الدخول!$B$3:$B$10000,D178,الدخول!$N$3:$N$10000)) ->  | J178: =IF(G178="","",SUMIF(الدخول!$B$3:$B$1311,D178,الدخول!$I$3:$I$1311)+SUMIF(الدخول!$B$3:$B$1311,D178,الدخول!$V$3:$V$1311)+G178-SUMIF(الدخول!$B$3:$B$1311,D178,الدخول!$O$3:$O$1311)) -> 
H179: =IF(E179="","",SUMIF(الدخول!$B$3:$B$10000,D179,الدخول!$F$3:$F$10000)+SUMIF(الدخول!$B$3:$B$10000,D179,الدخول!$S$3:$S$10000)+E179-SUMIF(الدخول!$B$3:$B$10000,D179,الدخول!$L$3:$L$10000)) ->  | I179: =IF(F179="","",SUMIF(الدخول!$B$3:$B$10000,D179,الدخول!$H$3:$H$10000)+SUMIF(الدخول!$B$3:$B$10000,D179,الدخول!$U$3:$U$10000)+F179-SUMIF(الدخول!$B$3:$B$10000,D179,الدخول!$N$3:$N$10000)) ->  | J179: =IF(G179="","",SUMIF(الدخول!$B$3:$B$1311,D179,الدخول!$I$3:$I$1311)+SUMIF(الدخول!$B$3:$B$1311,D179,الدخول!$V$3:$V$1311)+G179-SUMIF(الدخول!$B$3:$B$1311,D179,الدخول!$O$3:$O$1311)) -> 
H180: =IF(E180="","",SUMIF(الدخول!$B$3:$B$10000,D180,الدخول!$F$3:$F$10000)+SUMIF(الدخول!$B$3:$B$10000,D180,الدخول!$S$3:$S$10000)+E180-SUMIF(الدخول!$B$3:$B$10000,D180,الدخول!$L$3:$L$10000)) ->  | I180: =IF(F180="","",SUMIF(الدخول!$B$3:$B$10000,D180,الدخول!$H$3:$H$10000)+SUMIF(الدخول!$B$3:$B$10000,D180,الدخول!$U$3:$U$10000)+F180-SUMIF(الدخول!$B$3:$B$10000,D180,الدخول!$N$3:$N$10000)) ->  | J180: =IF(G180="","",SUMIF(الدخول!$B$3:$B$1311,D180,الدخول!$I$3:$I$1311)+SUMIF(الدخول!$B$3:$B$1311,D180,الدخول!$V$3:$V$1311)+G180-SUMIF(الدخول!$B$3:$B$1311,D180,الدخول!$O$3:$O$1311)) -> 
H181: =IF(E181="","",SUMIF(الدخول!$B$3:$B$10000,D181,الدخول!$F$3:$F$10000)+SUMIF(الدخول!$B$3:$B$10000,D181,الدخول!$S$3:$S$10000)+E181-SUMIF(الدخول!$B$3:$B$10000,D181,الدخول!$L$3:$L$10000)) ->  | I181: =IF(F181="","",SUMIF(الدخول!$B$3:$B$10000,D181,الدخول!$H$3:$H$10000)+SUMIF(الدخول!$B$3:$B$10000,D181,الدخول!$U$3:$U$10000)+F181-SUMIF(الدخول!$B$3:$B$10000,D181,الدخول!$N$3:$N$10000)) ->  | J181: =IF(G181="","",SUMIF(الدخول!$B$3:$B$1311,D181,الدخول!$I$3:$I$1311)+SUMIF(الدخول!$B$3:$B$1311,D181,الدخول!$V$3:$V$1311)+G181-SUMIF(الدخول!$B$3:$B$1311,D181,الدخول!$O$3:$O$1311)) -> 
H182: =IF(E182="","",SUMIF(الدخول!$B$3:$B$10000,D182,الدخول!$F$3:$F$10000)+SUMIF(الدخول!$B$3:$B$10000,D182,الدخول!$S$3:$S$10000)+E182-SUMIF(الدخول!$B$3:$B$10000,D182,الدخول!$L$3:$L$10000)) ->  | I182: =IF(F182="","",SUMIF(الدخول!$B$3:$B$10000,D182,الدخول!$H$3:$H$10000)+SUMIF(الدخول!$B$3:$B$10000,D182,الدخول!$U$3:$U$10000)+F182-SUMIF(الدخول!$B$3:$B$10000,D182,الدخول!$N$3:$N$10000)) ->  | J182: =IF(G182="","",SUMIF(الدخول!$B$3:$B$1311,D182,الدخول!$I$3:$I$1311)+SUMIF(الدخول!$B$3:$B$1311,D182,الدخول!$V$3:$V$1311)+G182-SUMIF(الدخول!$B$3:$B$1311,D182,الدخول!$O$3:$O$1311)) -> 
H183: =IF(E183="","",SUMIF(الدخول!$B$3:$B$10000,D183,الدخول!$F$3:$F$10000)+SUMIF(الدخول!$B$3:$B$10000,D183,الدخول!$S$3:$S$10000)+E183-SUMIF(الدخول!$B$3:$B$10000,D183,الدخول!$L$3:$L$10000)) ->  | I183: =IF(F183="","",SUMIF(الدخول!$B$3:$B$10000,D183,الدخول!$H$3:$H$10000)+SUMIF(الدخول!$B$3:$B$10000,D183,الدخول!$U$3:$U$10000)+F183-SUMIF(الدخول!$B$3:$B$10000,D183,الدخول!$N$3:$N$10000)) ->  | J183: =IF(G183="","",SUMIF(الدخول!$B$3:$B$1311,D183,الدخول!$I$3:$I$1311)+SUMIF(الدخول!$B$3:$B$1311,D183,الدخول!$V$3:$V$1311)+G183-SUMIF(الدخول!$B$3:$B$1311,D183,الدخول!$O$3:$O$1311)) -> 
H184: =IF(E184="","",SUMIF(الدخول!$B$3:$B$10000,D184,الدخول!$F$3:$F$10000)+SUMIF(الدخول!$B$3:$B$10000,D184,الدخول!$S$3:$S$10000)+E184-SUMIF(الدخول!$B$3:$B$10000,D184,الدخول!$L$3:$L$10000)) ->  | I184: =IF(F184="","",SUMIF(الدخول!$B$3:$B$10000,D184,الدخول!$H$3:$H$10000)+SUMIF(الدخول!$B$3:$B$10000,D184,الدخول!$U$3:$U$10000)+F184-SUMIF(الدخول!$B$3:$B$10000,D184,الدخول!$N$3:$N$10000)) ->  | J184: =IF(G184="","",SUMIF(الدخول!$B$3:$B$1311,D184,الدخول!$I$3:$I$1311)+SUMIF(الدخول!$B$3:$B$1311,D184,الدخول!$V$3:$V$1311)+G184-SUMIF(الدخول!$B$3:$B$1311,D184,الدخول!$O$3:$O$1311)) -> 
H185: =IF(E185="","",SUMIF(الدخول!$B$3:$B$10000,D185,الدخول!$F$3:$F$10000)+SUMIF(الدخول!$B$3:$B$10000,D185,الدخول!$S$3:$S$10000)+E185-SUMIF(الدخول!$B$3:$B$10000,D185,الدخول!$L$3:$L$10000)) ->  | I185: =IF(F185="","",SUMIF(الدخول!$B$3:$B$10000,D185,الدخول!$H$3:$H$10000)+SUMIF(الدخول!$B$3:$B$10000,D185,الدخول!$U$3:$U$10000)+F185-SUMIF(الدخول!$B$3:$B$10000,D185,الدخول!$N$3:$N$10000)) ->  | J185: =IF(G185="","",SUMIF(الدخول!$B$3:$B$1311,D185,الدخول!$I$3:$I$1311)+SUMIF(الدخول!$B$3:$B$1311,D185,الدخول!$V$3:$V$1311)+G185-SUMIF(الدخول!$B$3:$B$1311,D185,الدخول!$O$3:$O$1311)) -> 
H186: =IF(E186="","",SUMIF(الدخول!$B$3:$B$10000,D186,الدخول!$F$3:$F$10000)+SUMIF(الدخول!$B$3:$B$10000,D186,الدخول!$S$3:$S$10000)+E186-SUMIF(الدخول!$B$3:$B$10000,D186,الدخول!$L$3:$L$10000)) ->  | I186: =IF(F186="","",SUMIF(الدخول!$B$3:$B$10000,D186,الدخول!$H$3:$H$10000)+SUMIF(الدخول!$B$3:$B$10000,D186,الدخول!$U$3:$U$10000)+F186-SUMIF(الدخول!$B$3:$B$10000,D186,الدخول!$N$3:$N$10000)) ->  | J186: =IF(G186="","",SUMIF(الدخول!$B$3:$B$1311,D186,الدخول!$I$3:$I$1311)+SUMIF(الدخول!$B$3:$B$1311,D186,الدخول!$V$3:$V$1311)+G186-SUMIF(الدخول!$B$3:$B$1311,D186,الدخول!$O$3:$O$1311)) -> 
H187: =IF(E187="","",SUMIF(الدخول!$B$3:$B$10000,D187,الدخول!$F$3:$F$10000)+SUMIF(الدخول!$B$3:$B$10000,D187,الدخول!$S$3:$S$10000)+E187-SUMIF(الدخول!$B$3:$B$10000,D187,الدخول!$L$3:$L$10000)) ->  | I187: =IF(F187="","",SUMIF(الدخول!$B$3:$B$10000,D187,الدخول!$H$3:$H$10000)+SUMIF(الدخول!$B$3:$B$10000,D187,الدخول!$U$3:$U$10000)+F187-SUMIF(الدخول!$B$3:$B$10000,D187,الدخول!$N$3:$N$10000)) ->  | J187: =IF(G187="","",SUMIF(الدخول!$B$3:$B$1311,D187,الدخول!$I$3:$I$1311)+SUMIF(الدخول!$B$3:$B$1311,D187,الدخول!$V$3:$V$1311)+G187-SUMIF(الدخول!$B$3:$B$1311,D187,الدخول!$O$3:$O$1311)) -> 
H188: =IF(E188="","",SUMIF(الدخول!$B$3:$B$10000,D188,الدخول!$F$3:$F$10000)+SUMIF(الدخول!$B$3:$B$10000,D188,الدخول!$S$3:$S$10000)+E188-SUMIF(الدخول!$B$3:$B$10000,D188,الدخول!$L$3:$L$10000)) ->  | I188: =IF(F188="","",SUMIF(الدخول!$B$3:$B$10000,D188,الدخول!$H$3:$H$10000)+SUMIF(الدخول!$B$3:$B$10000,D188,الدخول!$U$3:$U$10000)+F188-SUMIF(الدخول!$B$3:$B$10000,D188,الدخول!$N$3:$N$10000)) ->  | J188: =IF(G188="","",SUMIF(الدخول!$B$3:$B$1311,D188,الدخول!$I$3:$I$1311)+SUMIF(الدخول!$B$3:$B$1311,D188,الدخول!$V$3:$V$1311)+G188-SUMIF(الدخول!$B$3:$B$1311,D188,الدخول!$O$3:$O$1311)) -> 
H189: =IF(E189="","",SUMIF(الدخول!$B$3:$B$10000,D189,الدخول!$F$3:$F$10000)+SUMIF(الدخول!$B$3:$B$10000,D189,الدخول!$S$3:$S$10000)+E189-SUMIF(الدخول!$B$3:$B$10000,D189,الدخول!$L$3:$L$10000)) ->  | I189: =IF(F189="","",SUMIF(الدخول!$B$3:$B$10000,D189,الدخول!$H$3:$H$10000)+SUMIF(الدخول!$B$3:$B$10000,D189,الدخول!$U$3:$U$10000)+F189-SUMIF(الدخول!$B$3:$B$10000,D189,الدخول!$N$3:$N$10000)) ->  | J189: =IF(G189="","",SUMIF(الدخول!$B$3:$B$1311,D189,الدخول!$I$3:$I$1311)+SUMIF(الدخول!$B$3:$B$1311,D189,الدخول!$V$3:$V$1311)+G189-SUMIF(الدخول!$B$3:$B$1311,D189,الدخول!$O$3:$O$1311)) -> 
H190: =IF(E190="","",SUMIF(الدخول!$B$3:$B$10000,D190,الدخول!$F$3:$F$10000)+SUMIF(الدخول!$B$3:$B$10000,D190,الدخول!$S$3:$S$10000)+E190-SUMIF(الدخول!$B$3:$B$10000,D190,الدخول!$L$3:$L$10000)) ->  | I190: =IF(F190="","",SUMIF(الدخول!$B$3:$B$10000,D190,الدخول!$H$3:$H$10000)+SUMIF(الدخول!$B$3:$B$10000,D190,الدخول!$U$3:$U$10000)+F190-SUMIF(الدخول!$B$3:$B$10000,D190,الدخول!$N$3:$N$10000)) ->  | J190: =IF(G190="","",SUMIF(الدخول!$B$3:$B$1311,D190,الدخول!$I$3:$I$1311)+SUMIF(الدخول!$B$3:$B$1311,D190,الدخول!$V$3:$V$1311)+G190-SUMIF(الدخول!$B$3:$B$1311,D190,الدخول!$O$3:$O$1311)) -> 
H191: =IF(E191="","",SUMIF(الدخول!$B$3:$B$10000,D191,الدخول!$F$3:$F$10000)+SUMIF(الدخول!$B$3:$B$10000,D191,الدخول!$S$3:$S$10000)+E191-SUMIF(الدخول!$B$3:$B$10000,D191,الدخول!$L$3:$L$10000)) ->  | I191: =IF(F191="","",SUMIF(الدخول!$B$3:$B$10000,D191,الدخول!$H$3:$H$10000)+SUMIF(الدخول!$B$3:$B$10000,D191,الدخول!$U$3:$U$10000)+F191-SUMIF(الدخول!$B$3:$B$10000,D191,الدخول!$N$3:$N$10000)) ->  | J191: =IF(G191="","",SUMIF(الدخول!$B$3:$B$1311,D191,الدخول!$I$3:$I$1311)+SUMIF(الدخول!$B$3:$B$1311,D191,الدخول!$V$3:$V$1311)+G191-SUMIF(الدخول!$B$3:$B$1311,D191,الدخول!$O$3:$O$1311)) -> 
H192: =IF(E192="","",SUMIF(الدخول!$B$3:$B$10000,D192,الدخول!$F$3:$F$10000)+SUMIF(الدخول!$B$3:$B$10000,D192,الدخول!$S$3:$S$10000)+E192-SUMIF(الدخول!$B$3:$B$10000,D192,الدخول!$L$3:$L$10000)) ->  | I192: =IF(F192="","",SUMIF(الدخول!$B$3:$B$10000,D192,الدخول!$H$3:$H$10000)+SUMIF(الدخول!$B$3:$B$10000,D192,الدخول!$U$3:$U$10000)+F192-SUMIF(الدخول!$B$3:$B$10000,D192,الدخول!$N$3:$N$10000)) ->  | J192: =IF(G192="","",SUMIF(الدخول!$B$3:$B$1311,D192,الدخول!$I$3:$I$1311)+SUMIF(الدخول!$B$3:$B$1311,D192,الدخول!$V$3:$V$1311)+G192-SUMIF(الدخول!$B$3:$B$1311,D192,الدخول!$O$3:$O$1311)) -> 
H193: =IF(E193="","",SUMIF(الدخول!$B$3:$B$10000,D193,الدخول!$F$3:$F$10000)+SUMIF(الدخول!$B$3:$B$10000,D193,الدخول!$S$3:$S$10000)+E193-SUMIF(الدخول!$B$3:$B$10000,D193,الدخول!$L$3:$L$10000)) ->  | I193: =IF(F193="","",SUMIF(الدخول!$B$3:$B$10000,D193,الدخول!$H$3:$H$10000)+SUMIF(الدخول!$B$3:$B$10000,D193,الدخول!$U$3:$U$10000)+F193-SUMIF(الدخول!$B$3:$B$10000,D193,الدخول!$N$3:$N$10000)) ->  | J193: =IF(G193="","",SUMIF(الدخول!$B$3:$B$1311,D193,الدخول!$I$3:$I$1311)+SUMIF(الدخول!$B$3:$B$1311,D193,الدخول!$V$3:$V$1311)+G193-SUMIF(الدخول!$B$3:$B$1311,D193,الدخول!$O$3:$O$1311)) -> 
D194: =A194&" "&B194&" "&C194 ->  | H194: =IF(E194="","",SUMIF(الدخول!$B$3:$B$10000,D194,الدخول!$F$3:$F$10000)+SUMIF(الدخول!$B$3:$B$10000,D194,الدخول!$S$3:$S$10000)+E194-SUMIF(الدخول!$B$3:$B$10000,D194,الدخول!$L$3:$L$10000)) ->  | I194: =IF(F194="","",SUMIF(الدخول!$B$3:$B$10000,D194,الدخول!$H$3:$H$10000)+SUMIF(الدخول!$B$3:$B$10000,D194,الدخول!$U$3:$U$10000)+F194-SUMIF(الدخول!$B$3:$B$10000,D194,الدخول!$N$3:$N$10000)) ->  | J194: =IF(G194="","",SUMIF(الدخول!$B$3:$B$1311,D194,الدخول!$I$3:$I$1311)+SUMIF(الدخول!$B$3:$B$1311,D194,الدخول!$V$3:$V$1311)+G194-SUMIF(الدخول!$B$3:$B$1311,D194,الدخول!$O$3:$O$1311)) -> 
H195: =IF(E195="","",SUMIF(الدخول!$B$3:$B$10000,D195,الدخول!$F$3:$F$10000)+SUMIF(الدخول!$B$3:$B$10000,D195,الدخول!$S$3:$S$10000)+E195-SUMIF(الدخول!$B$3:$B$10000,D195,الدخول!$L$3:$L$10000)) ->  | I195: =IF(F195="","",SUMIF(الدخول!$B$3:$B$10000,D195,الدخول!$H$3:$H$10000)+SUMIF(الدخول!$B$3:$B$10000,D195,الدخول!$U$3:$U$10000)+F195-SUMIF(الدخول!$B$3:$B$10000,D195,الدخول!$N$3:$N$10000)) ->  | J195: =IF(G195="","",SUMIF(الدخول!$B$3:$B$1311,D195,الدخول!$I$3:$I$1311)+SUMIF(الدخول!$B$3:$B$1311,D195,الدخول!$V$3:$V$1311)+G195-SUMIF(الدخول!$B$3:$B$1311,D195,الدخول!$O$3:$O$1311)) -> 
H196: =IF(E196="","",SUMIF(الدخول!$B$3:$B$10000,D196,الدخول!$F$3:$F$10000)+SUMIF(الدخول!$B$3:$B$10000,D196,الدخول!$S$3:$S$10000)+E196-SUMIF(الدخول!$B$3:$B$10000,D196,الدخول!$L$3:$L$10000)) ->  | I196: =IF(F196="","",SUMIF(الدخول!$B$3:$B$10000,D196,الدخول!$H$3:$H$10000)+SUMIF(الدخول!$B$3:$B$10000,D196,الدخول!$U$3:$U$10000)+F196-SUMIF(الدخول!$B$3:$B$10000,D196,الدخول!$N$3:$N$10000)) ->  | J196: =IF(G196="","",SUMIF(الدخول!$B$3:$B$1311,D196,الدخول!$I$3:$I$1311)+SUMIF(الدخول!$B$3:$B$1311,D196,الدخول!$V$3:$V$1311)+G196-SUMIF(الدخول!$B$3:$B$1311,D196,الدخول!$O$3:$O$1311)) -> 
H197: =IF(E197="","",SUMIF(الدخول!$B$3:$B$10000,D197,الدخول!$F$3:$F$10000)+SUMIF(الدخول!$B$3:$B$10000,D197,الدخول!$S$3:$S$10000)+E197-SUMIF(الدخول!$B$3:$B$10000,D197,الدخول!$L$3:$L$10000)) ->  | I197: =IF(F197="","",SUMIF(الدخول!$B$3:$B$10000,D197,الدخول!$H$3:$H$10000)+SUMIF(الدخول!$B$3:$B$10000,D197,الدخول!$U$3:$U$10000)+F197-SUMIF(الدخول!$B$3:$B$10000,D197,الدخول!$N$3:$N$10000)) ->  | J197: =IF(G197="","",SUMIF(الدخول!$B$3:$B$1311,D197,الدخول!$I$3:$I$1311)+SUMIF(الدخول!$B$3:$B$1311,D197,الدخول!$V$3:$V$1311)+G197-SUMIF(الدخول!$B$3:$B$1311,D197,الدخول!$O$3:$O$1311)) -> 
H198: =IF(E198="","",SUMIF(الدخول!$B$3:$B$10000,D198,الدخول!$F$3:$F$10000)+SUMIF(الدخول!$B$3:$B$10000,D198,الدخول!$S$3:$S$10000)+E198-SUMIF(الدخول!$B$3:$B$10000,D198,الدخول!$L$3:$L$10000)) ->  | I198: =IF(F198="","",SUMIF(الدخول!$B$3:$B$10000,D198,الدخول!$H$3:$H$10000)+SUMIF(الدخول!$B$3:$B$10000,D198,الدخول!$U$3:$U$10000)+F198-SUMIF(الدخول!$B$3:$B$10000,D198,الدخول!$N$3:$N$10000)) ->  | J198: =IF(G198="","",SUMIF(الدخول!$B$3:$B$1311,D198,الدخول!$I$3:$I$1311)+SUMIF(الدخول!$B$3:$B$1311,D198,الدخول!$V$3:$V$1311)+G198-SUMIF(الدخول!$B$3:$B$1311,D198,الدخول!$O$3:$O$1311)) -> 
H199: =IF(E199="","",SUMIF(الدخول!$B$3:$B$10000,D199,الدخول!$F$3:$F$10000)+SUMIF(الدخول!$B$3:$B$10000,D199,الدخول!$S$3:$S$10000)+E199-SUMIF(الدخول!$B$3:$B$10000,D199,الدخول!$L$3:$L$10000)) ->  | I199: =IF(F199="","",SUMIF(الدخول!$B$3:$B$10000,D199,الدخول!$H$3:$H$10000)+SUMIF(الدخول!$B$3:$B$10000,D199,الدخول!$U$3:$U$10000)+F199-SUMIF(الدخول!$B$3:$B$10000,D199,الدخول!$N$3:$N$10000)) ->  | J199: =IF(G199="","",SUMIF(الدخول!$B$3:$B$1311,D199,الدخول!$I$3:$I$1311)+SUMIF(الدخول!$B$3:$B$1311,D199,الدخول!$V$3:$V$1311)+G199-SUMIF(الدخول!$B$3:$B$1311,D199,الدخول!$O$3:$O$1311)) -> 
H200: =IF(E200="","",SUMIF(الدخول!$B$3:$B$10000,D200,الدخول!$F$3:$F$10000)+SUMIF(الدخول!$B$3:$B$10000,D200,الدخول!$S$3:$S$10000)+E200-SUMIF(الدخول!$B$3:$B$10000,D200,الدخول!$L$3:$L$10000)) ->  | I200: =IF(F200="","",SUMIF(الدخول!$B$3:$B$10000,D200,الدخول!$H$3:$H$10000)+SUMIF(الدخول!$B$3:$B$10000,D200,الدخول!$U$3:$U$10000)+F200-SUMIF(الدخول!$B$3:$B$10000,D200,الدخول!$N$3:$N$10000)) ->  | J200: =IF(G200="","",SUMIF(الدخول!$B$3:$B$1311,D200,الدخول!$I$3:$I$1311)+SUMIF(الدخول!$B$3:$B$1311,D200,الدخول!$V$3:$V$1311)+G200-SUMIF(الدخول!$B$3:$B$1311,D200,الدخول!$O$3:$O$1311)) -> 
... 1900 more rows

Sheet الدخول
A1: التاريخ | B1: اللون | C1: رصيد ختامي بالكيلو | D1: رصيد ختامي بالمتر | E1: رصيد ختامي بالقطع | F1: أضافة | H1: وزن المتر | I1: اجمالي القطع | J1: رقم اذن اضافة | K1: العميل | L1: صرف | N1: وزن المتر | O1: اجمالي القطع | P1: رقم اذن صرف | Q1: جرد | R1: العميل | S1: مرتجع | U1: وزن المتر | V1: اجمالي القطع | W1: رقم اذن المرتجع | X1: العميل | Y1: ملاحظات
F2: كيلو | G2: متر | L2: كيلو | M2: متر | S2: كيلو | T2: متر | AA2: ابيض استك طبي 2.58 | AC2: ابيض كروشيه 5.8cm | AD2: ابيض كروشيه 5.8cm
A3: 2023-07-17T08:33:04 | B3: ابيض كروشيه 3.5cm | C3: =IF(B3="","",SUMIF('الرصيد الثابت'!$D$2:$D$2100,B3,'الرصيد الثابت'!$H$2:$H$2100)) -> 5665.3 | D3: =IF(B3="","",SUMIF('الرصيد الثابت'!$D$2:$D$2100,B3,'الرصيد الثابت'!$I$2:$I$2100)) -> 298273 | E3: =IF(B3="","",SUMIF('الرصيد الثابت'!$D$2:$D$2100,B3,'الرصيد الثابت'!$J$2:$J$2100)) -> 0 | G3: =SUM(H3*F3) -> 0 | L3: 5 | M3: =SUM(N3*L3) -> 10 | N3: 2 | P3: 11 | R3: cc | T3: =SUM(U3*S3) -> 0 | AA3: ابيض استك طبي 2.78 | AC3: ابيض كروشيه 5.5cm | AD3: ابيض كروشيه 5.5cm
A4: 2023-07-17T08:34:26 | B4: ابيض كروشيه 3cm | C4: =IF(B4="","",SUMIF('الرصيد الثابت'!$D$2:$D$2100,B4,'الرصيد الثابت'!$H$2:$H$2100)) -> 40003.7 | D4: =IF(B4="","",SUMIF('الرصيد الثابت'!$D$2:$D$2100,B4,'الرصيد الثابت'!$I$2:$I$2100)) -> 242728 | E4: =IF(B4="","",SUMIF('الرصيد الثابت'!$D$2:$D$2100,B4,'الرصيد الثابت'!$J$2:$J$2100)) -> 0 | G4: 0 | L4: 7 | M4: 14 | N4: 2 | P4: 11 | R4: cc | T4: =SUM(U4*S4) -> 0 | AA4: ابيض استك طبي 3.02 | AC4: ابيض كروشيه 5.3cm | AD4: ابيض كروشيه 5.3cm
A5: 2023-07-17T08:35:55 | B5: اسود كروشيه 3cm | C5: =IF(B5="","",SUMIF('الرصيد الثابت'!$D$2:$D$2100,B5,'الرصيد الثابت'!$H$2:$H$2100)) -> 120.08 | D5: =IF(B5="","",SUMIF('الرصيد الثابت'!$D$2:$D$2100,B5,'الرصيد الثابت'!$I$2:$I$2100)) -> 7907 | E5: =IF(B5="","",SUMIF('الرصيد الثابت'!$D$2:$D$2100,B5,'الرصيد الثابت'!$J$2:$J$2100)) -> 0 | G5: 0 | L5: 9 | M5: 27 | N5: 3 | P5: 11 | R5: cc | T5: =SUM(U5*S5) -> 0 | AA5: ابيض استك طبي 3.18 | AC5: ابيض كروشيه 5cm | AD5: ابيض كروشيه 5cm
A6: 2023-07-17T08:36:28 | B6: ابيض كروشيه 1.5cm | C6: =IF(B6="","",SUMIF('الرصيد الثابت'!$D$2:$D$2100,B6,'الرصيد الثابت'!$H$2:$H$2100)) -> 3.64 | D6: =IF(B6="","",SUMIF('الرصيد الثابت'!$D$2:$D$2100,B6,'الرصيد الثابت'!$I$2:$I$2100)) -> 1483 | E6: =IF(B6="","",SUMIF('الرصيد الثابت'!$D$2:$D$2100,B6,'الرصيد الثابت'!$J$2:$J$2100)) -> 0 | G6: 0 | L6: 2 | M6: 4 | N6: 2 | P6: 12 | R6: pp | T6: =SUM(U6*S6) -> 0 | AA6: ابيض استك طبي 3.3 | AC6: ابيض كروشيه 4.5cm | AD6: ابيض كروشيه 4.5cm
A7: 2023-07-18T10:35:35 | B7: ابيض كروشيه 1.5cm | C7: =IF(B7="","",SUMIF('الرصيد الثابت'!$D$2:$D$2100,B7,'الرصيد الثابت'!$H$2:$H$2100)) -> 3.64 | D7: =IF(B7="","",SUMIF('الرصيد الثابت'!$D$2:$D$2100,B7,'الرصيد الثابت'!$I$2:$I$2100)) -> 1483 | E7: =IF(B7="","",SUMIF('الرصيد الثابت'!$D$2:$D$2100,B7,'الرصيد الثابت'!$J$2:$J$2100)) -> 0 | G7: 0 | L7: 2 | M7: 6 | N7: 3 | P7: 13 | R7: kk | T7: =SUM(U7*S7) -> 0 | AA7: ابيض استك طبي 3.36 | AC7: ابيض كروشيه 4cm | AD7: ابيض كروشيه 4cm
C8: =IF(B8="","",SUMIF('الرصيد الثابت'!$D$2:$D$2100,B8,'الرصيد الثابت'!$H$2:$H$2100)) ->  | D8: =IF(B8="","",SUMIF('الرصيد الثابت'!$D$2:$D$2100,B8,'الرصيد الثابت'!$I$2:$I$2100)) ->  | E8: =IF(B8="","",SUMIF('الرصيد الثابت'!$D$2:$D$2100,B8,'الرصيد الثابت'!$J$2:$J$2100)) ->  | G8: 0 | M8: 0 | T8: =SUM(U8*S8) -> 0 | AA8: ابيض استك طبي 3.5 | AC8: ابيض كروشيه 3.5cm | AD8: ابيض كروشيه 3.5cm
C9: =IF(B9="","",SUMIF('الرصيد الثابت'!$D$2:$D$2100,B9,'الرصيد الثابت'!$H$2:$H$2100)) ->  | D9: =IF(B9="","",SUMIF('الرصيد الثابت'!$D$2:$D$2100,B9,'الرصيد الثابت'!$I$2:$I$2100)) ->  | E9: =IF(B9="","",SUMIF('الرصيد الثابت'!$D$2:$D$2100,B9,'الرصيد الثابت'!$J$2:$J$2100)) ->  | G9: 0 | M9: 0 | T9: 0 | AA9: ابيض استك طبي 4.14 | AC9: ابيض كروشيه 3.2cm | AD9: ابيض كروشيه 3.2cm
C10: =IF(B10="","",SUMIF('الرصيد الثابت'!$D$2:$D$2100,B10,'الرصيد الثابت'!$H$2:$H$2100)) ->  | D10: =IF(B10="","",SUMIF('الرصيد الثابت'!$D$2:$D$2100,B10,'الرصيد الثابت'!$I$2:$I$2100)) ->  | E10: =IF(B10="","",SUMIF('الرصيد الثابت'!$D$2:$D$2100,B10,'الرصيد الثابت'!$J$2:$J$2100)) ->  | G10: 0 | M10: 0 | T10: 0 | AA10: ابيض استك طبي 4.92 | AC10: ابيض كروشيه 3cm | AD10: ابيض كروشيه 3cm
C11: =IF(B11="","",SUMIF('الرصيد الثابت'!$D$2:$D$2100,B11,'الرصيد الثابت'!$H$2:$H$2100)) ->  | D11: =IF(B11="","",SUMIF('الرصيد الثابت'!$D$2:$D$2100,B11,'الرصيد الثابت'!$I$2:$I$2100)) ->  | E11: =IF(B11="","",SUMIF('الرصيد الثابت'!$D$2:$D$2100,B11,'الرصيد الثابت'!$J$2:$J$2100)) ->  | G11: 0 | M11: 0 | Q11: =SUM(F11-L11) -> 0 | T11: 0 | AA11: ابيض استك طبي 7.52 | AC11: ابيض كروشيه 2.2cm | AD11: ابيض كروشيه 2.2cm
C12: =IF(B12="","",SUMIF('الرصيد الثابت'!$D$2:$D$2100,B12,'الرصيد الثابت'!$H$2:$H$2100)) ->  | D12: =IF(B12="","",SUMIF('الرصيد الثابت'!$D$2:$D$2100,B12,'الرصيد الثابت'!$I$2:$I$2100)) ->  | E12: =IF(B12="","",SUMIF('الرصيد الثابت'!$D$2:$D$2100,B12,'الرصيد الثابت'!$J$2:$J$2100)) ->  | G12: 0 | M12: 0 | Q12: 0 | T12: 0 | AA12: ابيض كروشيه 1.2cm | AC12: ابيض كروشيه 2cm | AD12: ابيض كروشيه 2cm
C13: =IF(B13="","",SUMIF('الرصيد الثابت'!$D$2:$D$2100,B13,'الرصيد الثابت'!$H$2:$H$2100)) ->  | D13: =IF(B13="","",SUMIF('الرصيد الثابت'!$D$2:$D$2100,B13,'الرصيد الثابت'!$I$2:$I$2100)) ->  | E13: =IF(B13="","",SUMIF('الرصيد الثابت'!$D$2:$D$2100,B13,'الرصيد الثابت'!$J$2:$J$2100)) ->  | G13: 0 | M13: 0 | Q13: 0 | T13: 0 | AA13: ابيض كروشيه 1.3cm | AC13: ابيض كروشيه 1.5cm | AD13: ابيض كروشيه 1.5cm
C14: =IF(B14="","",SUMIF('الرصيد الثابت'!$D$2:$D$2100,B14,'الرصيد الثابت'!$H$2:$H$2100)) ->  | D14: =IF(B14="","",SUMIF('الرصيد الثابت'!$D$2:$D$2100,B14,'الرصيد الثابت'!$I$2:$I$2100)) ->  | E14: =IF(B14="","",SUMIF('الرصيد الثابت'!$D$2:$D$2100,B14,'الرصيد الثابت'!$J$2:$J$2100)) ->  | G14: 0 | M14: 0 | Q14: 0 | T14: 0 | AA14: ابيض كروشيه 1.5cm | AC14: ابيض كروشيه 1.2cm | AD14: ابيض كروشيه 1.2cm
C15: =IF(B15="","",SUMIF('الرصيد الثابت'!$D$2:$D$2100,B15,'الرصيد الثابت'!$H$2:$H$2100)) ->  | D15: =IF(B15="","",SUMIF('الرصيد الثابت'!$D$2:$D$2100,B15,'الرصيد الثابت'!$I$2:$I$2100)) ->  | E15: =IF(B15="","",SUMIF('الرصيد الثابت'!$D$2:$D$2100,B15,'الرصيد الثابت'!$J$2:$J$2100)) ->  | G15: 0 | M15: 0 | Q15: 0 | T15: 0 | AA15: ابيض كروشيه 1.6cm | AC15: ابيض كروشيه 1cm | AD15: ابيض كروشيه 1cm
C16: =IF(B16="","",SUMIF('الرصيد الثابت'!$D$2:$D$2100,B16,'الرصيد الثابت'!$H$2:$H$2100)) ->  | D16: =IF(B16="","",SUMIF('الرصيد الثابت'!$D$2:$D$2100,B16,'الرصيد الثابت'!$I$2:$I$2100)) ->  | E16: =IF(B16="","",SUMIF('الرصيد الثابت'!$D$2:$D$2100,B16,'الرصيد الثابت'!$J$2:$J$2100)) ->  | G16: 0 | M16: 0 | Q16: 0 | T16: 0 | AA16: ابيض كروشيه 1.8cm | AC16: ابيض كروشيه 8mm | AD16: ابيض كروشيه 8mm
C17: =IF(B17="","",SUMIF('الرصيد الثابت'!$D$2:$D$2100,B17,'الرصيد الثابت'!$H$2:$H$2100)) ->  | D17: =IF(B17="","",SUMIF('الرصيد الثابت'!$D$2:$D$2100,B17,'الرصيد الثابت'!$I$2:$I$2100)) ->  | E17: =IF(B17="","",SUMIF('الرصيد الثابت'!$D$2:$D$2100,B17,'الرصيد الثابت'!$J$2:$J$2100)) ->  | G17: 0 | M17: 0 | Q17: 0 | T17: 0 | AA17: ابيض كروشيه 1cm | AC17: ابيض كروشيه 7mm | AD17: ابيض كروشيه 7mm
C18: =IF(B18="","",SUMIF('الرصيد الثابت'!$D$2:$D$2100,B18,'الرصيد الثابت'!$H$2:$H$2100)) ->  | D18: =IF(B18="","",SUMIF('الرصيد الثابت'!$D$2:$D$2100,B18,'الرصيد الثابت'!$I$2:$I$2100)) ->  | E18: =IF(B18="","",SUMIF('الرصيد الثابت'!$D$2:$D$2100,B18,'الرصيد الثابت'!$J$2:$J$2100)) ->  | G18: 0 | M18: 0 | Q18: 0 | T18: 0 | AA18: ابيض كروشيه 2.2cm | AC18: ابيض كروشيه 6mm | AD18: ابيض كروشيه 6mm
C19: =IF(B19="","",SUMIF('الرصيد الثابت'!$D$2:$D$2100,B19,'الرصيد الثابت'!$H$2:$H$2100)) ->  | D19: =IF(B19="","",SUMIF('الرصيد الثابت'!$D$2:$D$2100,B19,'الرصيد الثابت'!$I$2:$I$2100)) ->  | E19: =IF(B19="","",SUMIF('الرصيد الثابت'!$D$2:$D$2100,B19,'الرصيد الثابت'!$J$2:$J$2100)) ->  | G19: 0 | M19: 0 | Q19: 0 | T19: 0 | AA19: ابيض كروشيه 2.5cm | AC19: ابيض كروشيه 5mm | AD19: ابيض كروشيه 5mm
C20: =IF(B20="","",SUMIF('الرصيد الثابت'!$D$2:$D$2100,B20,'الرصيد الثابت'!$H$2:$H$2100)) ->  | D20: =IF(B20="","",SUMIF('الرصيد الثابت'!$D$2:$D$2100,B20,'الرصيد الثابت'!$I$2:$I$2100)) ->  | E20: =IF(B20="","",SUMIF('الرصيد الثابت'!$D$2:$D$2100,B20,'الرصيد الثابت'!$J$2:$J$2100)) ->  | G20: 0 | M20: 0 | Q20: 0 | T20: 0 | AA20: ابيض كروشيه 2cm | AC20: ابيض كروشيه 2.5cm | AD20: ابيض كروشيه 2.5cm
C21: =IF(B21="","",SUMIF('الرصيد الثابت'!$D$2:$D$2100,B21,'الرصيد الثابت'!$H$2:$H$2100)) ->  | D21: =IF(B21="","",SUMIF('الرصيد الثابت'!$D$2:$D$2100,B21,'الرصيد الثابت'!$I$2:$I$2100)) ->  | E21: =IF(B21="","",SUMIF('الرصيد الثابت'!$D$2:$D$2100,B21,'الرصيد الثابت'!$J$2:$J$2100)) ->  | G21: 0 | M21: 0 | Q21: 0 | T21: 0 | AA21: ابيض كروشيه 2m | AC21: ابيض كروشيه 6.5cm | AD21: ابيض كروشيه 6.5cm
C22: =IF(B22="","",SUMIF('الرصيد الثابت'!$D$2:$D$2100,B22,'الرصيد الثابت'!$H$2:$H$2100)) ->  | D22: =IF(B22="","",SUMIF('الرصيد الثابت'!$D$2:$D$2100,B22,'الرصيد الثابت'!$I$2:$I$2100)) ->  | E22: =IF(B22="","",SUMIF('الرصيد الثابت'!$D$2:$D$2100,B22,'الرصيد الثابت'!$J$2:$J$2100)) ->  | G22: 0 | M22: 0 | Q22: 0 | T22: 0 | AA22: ابيض كروشيه 3.2cm | AC22: ابيض كروشيه 1.8cm | AD22: ابيض كروشيه 1.8cm
C23: =IF(B23="","",SUMIF('الرصيد الثابت'!$D$2:$D$2100,B23,'الرصيد الثابت'!$H$2:$H$2100)) ->  | D23: =IF(B23="","",SUMIF('الرصيد الثابت'!$D$2:$D$2100,B23,'الرصيد الثابت'!$I$2:$I$2100)) ->  | E23: =IF(B23="","",SUMIF('الرصيد الثابت'!$D$2:$D$2100,B23,'الرصيد الثابت'!$J$2:$J$2100)) ->  | G23: 0 | M23: 0 | Q23: 0 | T23: 0 | AA23: ابيض كروشيه 3.5cm | AC23: ابيض كروشيه 1,8 | AD23: ابيض كروشيه 1,8
C24: =IF(B24="","",SUMIF('الرصيد الثابت'!$D$2:$D$2100,B24,'الرصيد الثابت'!$H$2:$H$2100)) ->  | D24: =IF(B24="","",SUMIF('الرصيد الثابت'!$D$2:$D$2100,B24,'الرصيد الثابت'!$I$2:$I$2100)) ->  | E24: =IF(B24="","",SUMIF('الرصيد الثابت'!$D$2:$D$2100,B24,'الرصيد الثابت'!$J$2:$J$2100)) ->  | G24: 0 | M24: 0 | Q24: 0 | T24: 0 | AA24: ابيض كروشيه 3cm | AC24: ابيض كروشيه .8m | AD24: ابيض كروشيه .8m
C25: =IF(B25="","",SUMIF('الرصيد الثابت'!$D$2:$D$2100,B25,'الرصيد الثابت'!$H$2:$H$2100)) ->  | D25: =IF(B25="","",SUMIF('الرصيد الثابت'!$D$2:$D$2100,B25,'الرصيد الثابت'!$I$2:$I$2100)) ->  | E25: =IF(B25="","",SUMIF('الرصيد الثابت'!$D$2:$D$2100,B25,'الرصيد الثابت'!$J$2:$J$2100)) ->  | G25: 0 | M25: 0 | Q25: 0 | T25: 0 | AA25: ابيض كروشيه 4.5cm | AC25: ابيض كروشيه 7cm | AD25: ابيض كروشيه 7cm
C26: =IF(B26="","",SUMIF('الرصيد الثابت'!$D$2:$D$2100,B26,'الرصيد الثابت'!$H$2:$H$2100)) ->  | D26: =IF(B26="","",SUMIF('الرصيد الثابت'!$D$2:$D$2100,B26,'الرصيد الثابت'!$I$2:$I$2100)) ->  | E26: =IF(B26="","",SUMIF('الرصيد الثابت'!$D$2:$D$2100,B26,'الرصيد الثابت'!$J$2:$J$2100)) ->  | G26: 0 | M26: 0 | Q26: 0 | T26: 0 | AA26: ابيض كروشيه 4cm | AC26: ابيض كروشيه 6.3cm | AD26: ابيض كروشيه 6.3cm
C27: =IF(B27="","",SUMIF('الرصيد الثابت'!$D$2:$D$2100,B27,'الرصيد الثابت'!$H$2:$H$2100)) ->  | D27: =IF(B27="","",SUMIF('الرصيد الثابت'!$D$2:$D$2100,B27,'الرصيد الثابت'!$I$2:$I$2100)) ->  | E27: =IF(B27="","",SUMIF('الرصيد الثابت'!$D$2:$D$2100,B27,'الرصيد الثابت'!$J$2:$J$2100)) ->  | G27: 0 | M27: 0 | Q27: 0 | T27: 0 | AA27: ابيض كروشيه 5.3cm | AC27: ابيض كروشيه 0.2m | AD27: ابيض كروشيه 0.2m
C28: =IF(B28="","",SUMIF('الرصيد الثابت'!$D$2:$D$2100,B28,'الرصيد الثابت'!$H$2:$H$2100)) ->  | D28: =IF(B28="","",SUMIF('الرصيد الثابت'!$D$2:$D$2100,B28,'الرصيد الثابت'!$I$2:$I$2100)) ->  | E28: =IF(B28="","",SUMIF('الرصيد الثابت'!$D$2:$D$2100,B28,'الرصيد الثابت'!$J$2:$J$2100)) ->  | G28: 0 | M28: 0 | Q28: 0 | T28: 0 | AA28: ابيض كروشيه 5.5cm | AC28: ابيض كروشيه .5m | AD28: ابيض كروشيه .5m
C29: =IF(B29="","",SUMIF('الرصيد الثابت'!$D$2:$D$2100,B29,'الرصيد الثابت'!$H$2:$H$2100)) ->  | D29: =IF(B29="","",SUMIF('الرصيد الثابت'!$D$2:$D$2100,B29,'الرصيد الثابت'!$I$2:$I$2100)) ->  | E29: =IF(B29="","",SUMIF('الرصيد الثابت'!$D$2:$D$2100,B29,'الرصيد الثابت'!$J$2:$J$2100)) ->  | G29: 0 | M29: 0 | Q29: 0 | T29: 0 | AA29: ابيض كروشيه 5.8cm | AC29: ابيض كروشيه .6m | AD29: ابيض كروشيه .6m
C30: =IF(B30="","",SUMIF('الرصيد الثابت'!$D$2:$D$2100,B30,'الرصيد الثابت'!$H$2:$H$2100)) ->  | D30: =IF(B30="","",SUMIF('الرصيد الثابت'!$D$2:$D$2100,B30,'الرصيد الثابت'!$I$2:$I$2100)) ->  | E30: =IF(B30="","",SUMIF('الرصيد الثابت'!$D$2:$D$2100,B30,'الرصيد الثابت'!$J$2:$J$2100)) ->  | G30: 0 | M30: 0 | Q30: 0 | T30: 0 | AA30: ابيض كروشيه 5cm | AC30: ابيض كروشيه .7m | AD30: ابيض كروشيه .7m
C31: =IF(B31="","",SUMIF('الرصيد الثابت'!$D$2:$D$2100,B31,'الرصيد الثابت'!$H$2:$H$2100)) ->  | D31: =IF(B31="","",SUMIF('الرصيد الثابت'!$D$2:$D$2100,B31,'الرصيد الثابت'!$I$2:$I$2100)) ->  | E31: =IF(B31="","",SUMIF('الرصيد الثابت'!$D$2:$D$2100,B31,'الرصيد الثابت'!$J$2:$J$2100)) ->  | G31: 0 | M31: 0 | Q31: 0 | T31: 0 | AA31: ابيض كروشيه 5m | AC31: ابيض كروشيه 1.6cm | AD31: ابيض كروشيه 1.6cm
C32: =IF(B32="","",SUMIF('الرصيد الثابت'!$D$2:$D$2100,B32,'الرصيد الثابت'!$H$2:$H$2100)) ->  | D32: =IF(B32="","",SUMIF('الرصيد الثابت'!$D$2:$D$2100,B32,'الرصيد الثابت'!$I$2:$I$2100)) ->  | E32: =IF(B32="","",SUMIF('الرصيد الثابت'!$D$2:$D$2100,B32,'الرصيد الثابت'!$J$2:$J$2100)) ->  | G32: 0 | M32: 0 | Q32: 0 | T32: 0 | AA32: ابيض كروشيه 5mm | AC32: ابيض كروشيه 1.3cm | AD32: ابيض كروشيه 1.3cm
C33: =IF(B33="","",SUMIF('الرصيد الثابت'!$D$2:$D$2100,B33,'الرصيد الثابت'!$H$2:$H$2100)) ->  | D33: =IF(B33="","",SUMIF('الرصيد الثابت'!$D$2:$D$2100,B33,'الرصيد الثابت'!$I$2:$I$2100)) ->  | E33: =IF(B33="","",SUMIF('الرصيد الثابت'!$D$2:$D$2100,B33,'الرصيد الثابت'!$J$2:$J$2100)) ->  | G33: 0 | M33: 0 | Q33: 0 | T33: 0 | AA33: ابيض كروشيه 6.3cm | AC33: ابيض كروشيه 1.8.cm | AD33: ابيض كروشيه 1.8.cm
C34: =IF(B34="","",SUMIF('الرصيد الثابت'!$D$2:$D$2100,B34,'الرصيد الثابت'!$H$2:$H$2100)) ->  | D34: =IF(B34="","",SUMIF('الرصيد الثابت'!$D$2:$D$2100,B34,'الرصيد الثابت'!$I$2:$I$2100)) ->  | E34: =IF(B34="","",SUMIF('الرصيد الثابت'!$D$2:$D$2100,B34,'الرصيد الثابت'!$J$2:$J$2100)) ->  | G34: 0 | M34: 0 | Q34: 0 | T34: 0 | AA34: ابيض كروشيه 6.5cm | AC34: ابيض ووفين فستون 1cm | AD34: ابيض ووفين فستون 1cm
C35: =IF(B35="","",SUMIF('الرصيد الثابت'!$D$2:$D$2100,B35,'الرصيد الثابت'!$H$2:$H$2100)) ->  | D35: =IF(B35="","",SUMIF('الرصيد الثابت'!$D$2:$D$2100,B35,'الرصيد الثابت'!$I$2:$I$2100)) ->  | E35: =IF(B35="","",SUMIF('الرصيد الثابت'!$D$2:$D$2100,B35,'الرصيد الثابت'!$J$2:$J$2100)) ->  | G35: 0 | M35: 0 | Q35: 0 | T35: 0 | AA35: ابيض كروشيه 6m | AC35: ابيض استك طبي 3,18 | AD35: ابيض استك طبي 3,18
C36: =IF(B36="","",SUMIF('الرصيد الثابت'!$D$2:$D$2100,B36,'الرصيد الثابت'!$H$2:$H$2100)) ->  | D36: =IF(B36="","",SUMIF('الرصيد الثابت'!$D$2:$D$2100,B36,'الرصيد الثابت'!$I$2:$I$2100)) ->  | E36: =IF(B36="","",SUMIF('الرصيد الثابت'!$D$2:$D$2100,B36,'الرصيد الثابت'!$J$2:$J$2100)) ->  | G36: 0 | M36: 0 | Q36: 0 | T36: 0 | AA36: ابيض كروشيه 6mm | AC36: ابيض استك طبي 4,14 | AD36: ابيض استك طبي 4,14
C37: =IF(B37="","",SUMIF('الرصيد الثابت'!$D$2:$D$2100,B37,'الرصيد الثابت'!$H$2:$H$2100)) ->  | D37: =IF(B37="","",SUMIF('الرصيد الثابت'!$D$2:$D$2100,B37,'الرصيد الثابت'!$I$2:$I$2100)) ->  | E37: =IF(B37="","",SUMIF('الرصيد الثابت'!$D$2:$D$2100,B37,'الرصيد الثابت'!$J$2:$J$2100)) ->  | G37: 0 | M37: 0 | Q37: 0 | T37: 0 | AA37: ابيض كروشيه 7cm | AC37: ابيض استك طبي 2,78 | AD37: ابيض استك طبي 2,78
C38: =IF(B38="","",SUMIF('الرصيد الثابت'!$D$2:$D$2100,B38,'الرصيد الثابت'!$H$2:$H$2100)) ->  | D38: =IF(B38="","",SUMIF('الرصيد الثابت'!$D$2:$D$2100,B38,'الرصيد الثابت'!$I$2:$I$2100)) ->  | E38: =IF(B38="","",SUMIF('الرصيد الثابت'!$D$2:$D$2100,B38,'الرصيد الثابت'!$J$2:$J$2100)) ->  | G38: 0 | M38: 0 | Q38: 0 | T38: 0 | AA38: ابيض كروشيه 7m | AC38: ابيض استك طبي 7,52 | AD38: ابيض استك طبي 7,52
C39: =IF(B39="","",SUMIF('الرصيد الثابت'!$D$2:$D$2100,B39,'الرصيد الثابت'!$H$2:$H$2100)) ->  | D39: =IF(B39="","",SUMIF('الرصيد الثابت'!$D$2:$D$2100,B39,'الرصيد الثابت'!$I$2:$I$2100)) ->  | E39: =IF(B39="","",SUMIF('الرصيد الثابت'!$D$2:$D$2100,B39,'الرصيد الثابت'!$J$2:$J$2100)) ->  | G39: 0 | M39: 0 | Q39: 0 | T39: 0 | AA39: ابيض كروشيه 7mm | AC39: ابيض استك طبي 3,5 | AD39: ابيض استك طبي 3,5
C40: =IF(B40="","",SUMIF('الرصيد الثابت'!$D$2:$D$2100,B40,'الرصيد الثابت'!$H$2:$H$2100)) ->  | D40: =IF(B40="","",SUMIF('الرصيد الثابت'!$D$2:$D$2100,B40,'الرصيد الثابت'!$I$2:$I$2100)) ->  | E40: =IF(B40="","",SUMIF('الرصيد الثابت'!$D$2:$D$2100,B40,'الرصيد الثابت'!$J$2:$J$2100)) ->  | G40: 0 | M40: 0 | Q40: 0 | T40: 0 | AA40: ابيض كروشيه 8mm | AC40: ابيض استك طبي 3,3 | AD40: ابيض استك طبي 3,3
C41: =IF(B41="","",SUMIF('الرصيد الثابت'!$D$2:$D$2100,B41,'الرصيد الثابت'!$H$2:$H$2100)) ->  | D41: =IF(B41="","",SUMIF('الرصيد الثابت'!$D$2:$D$2100,B41,'الرصيد الثابت'!$I$2:$I$2100)) ->  | E41: =IF(B41="","",SUMIF('الرصيد الثابت'!$D$2:$D$2100,B41,'الرصيد الثابت'!$J$2:$J$2100)) ->  | G41: 0 | M41: 0 | Q41: 0 | T41: 0 | AA41: ابيض ووفين 1.5cm | AC41: ابيض استك طبي 3,36 | AD41: ابيض استك طبي 3,36
C42: =IF(B42="","",SUMIF('الرصيد الثابت'!$D$2:$D$2100,B42,'الرصيد الثابت'!$H$2:$H$2100)) ->  | D42: =IF(B42="","",SUMIF('الرصيد الثابت'!$D$2:$D$2100,B42,'الرصيد الثابت'!$I$2:$I$2100)) ->  | E42: =IF(B42="","",SUMIF('الرصيد الثابت'!$D$2:$D$2100,B42,'الرصيد الثابت'!$J$2:$J$2100)) ->  | G42: 0 | M42: 0 | Q42: 0 | T42: 0 | AA42: ابيض ووفين 2.5cm | AC42: ابيض استك طبي 2,58 | AD42: ابيض استك طبي 2,58
C43: =IF(B43="","",SUMIF('الرصيد الثابت'!$D$2:$D$2100,B43,'الرصيد الثابت'!$H$2:$H$2100)) ->  | D43: =IF(B43="","",SUMIF('الرصيد الثابت'!$D$2:$D$2100,B43,'الرصيد الثابت'!$I$2:$I$2100)) ->  | E43: =IF(B43="","",SUMIF('الرصيد الثابت'!$D$2:$D$2100,B43,'الرصيد الثابت'!$J$2:$J$2100)) ->  | G43: 0 | M43: 0 | Q43: 0 | T43: 0 | AA43: ابيض ووفين ساندوتش 1.5cm | AC43: ابيض استك طبي 3,02 | AD43: ابيض استك طبي 3,02
C44: =IF(B44="","",SUMIF('الرصيد الثابت'!$D$2:$D$2100,B44,'الرصيد الثابت'!$H$2:$H$2100)) ->  | D44: =IF(B44="","",SUMIF('الرصيد الثابت'!$D$2:$D$2100,B44,'الرصيد الثابت'!$I$2:$I$2100)) ->  | E44: =IF(B44="","",SUMIF('الرصيد الثابت'!$D$2:$D$2100,B44,'الرصيد الثابت'!$J$2:$J$2100)) ->  | G44: 0 | M44: 0 | Q44: 0 | T44: 0 | AA44: ابيض ووفين ساندوتش 2.2cm | AC44: ابيض استك طبي 4,92 | AD44: ابيض استك طبي 4,92
C45: =IF(B45="","",SUMIF('الرصيد الثابت'!$D$2:$D$2100,B45,'الرصيد الثابت'!$H$2:$H$2100)) ->  | D45: =IF(B45="","",SUMIF('الرصيد الثابت'!$D$2:$D$2100,B45,'الرصيد الثابت'!$I$2:$I$2100)) ->  | E45: =IF(B45="","",SUMIF('الرصيد الثابت'!$D$2:$D$2100,B45,'الرصيد الثابت'!$J$2:$J$2100)) ->  | G45: 0 | M45: 0 | Q45: 0 | T45: 0 | AA45: ابيض ووفين ساندوتش 2.5cm | AC45: ابيض فلاش كروشيه 5cm | AD45: ابيض فلاش كروشيه 5cm
C46: =IF(B46="","",SUMIF('الرصيد الثابت'!$D$2:$D$2100,B46,'الرصيد الثابت'!$H$2:$H$2100)) ->  | D46: =IF(B46="","",SUMIF('الرصيد الثابت'!$D$2:$D$2100,B46,'الرصيد الثابت'!$I$2:$I$2100)) ->  | E46: =IF(B46="","",SUMIF('الرصيد الثابت'!$D$2:$D$2100,B46,'الرصيد الثابت'!$J$2:$J$2100)) ->  | G46: 0 | M46: 0 | Q46: 0 | T46: 0 | AA46: ابيض ووفين ساندوتش القطة 2.5cm | AC46: ابيض فلاش كروشيه 4.5cm | AD46: ابيض فلاش كروشيه 4.5cm
C47: =IF(B47="","",SUMIF('الرصيد الثابت'!$D$2:$D$2100,B47,'الرصيد الثابت'!$H$2:$H$2100)) ->  | D47: =IF(B47="","",SUMIF('الرصيد الثابت'!$D$2:$D$2100,B47,'الرصيد الثابت'!$I$2:$I$2100)) ->  | E47: =IF(B47="","",SUMIF('الرصيد الثابت'!$D$2:$D$2100,B47,'الرصيد الثابت'!$J$2:$J$2100)) ->  | G47: 0 | M47: 0 | Q47: 0 | T47: 0 | AA47: ابيض ووفين ساندوتش قديم 1.5cm | AC47: ابيض فلاش كروشيه 3.5cm | AD47: ابيض فلاش كروشيه 3.5cm
C48: =IF(B48="","",SUMIF('الرصيد الثابت'!$D$2:$D$2100,B48,'الرصيد الثابت'!$H$2:$H$2100)) ->  | D48: =IF(B48="","",SUMIF('الرصيد الثابت'!$D$2:$D$2100,B48,'الرصيد الثابت'!$I$2:$I$2100)) ->  | E48: =IF(B48="","",SUMIF('الرصيد الثابت'!$D$2:$D$2100,B48,'الرصيد الثابت'!$J$2:$J$2100)) ->  | G48: 0 | M48: 0 | Q48: 0 | T48: 0 | AA48: ابيض ووفين ساندوتش قديم 1.6 cm | AC48: ابيض فلاش كروشيه 2cm | AD48: ابيض فلاش كروشيه 2cm
C49: =IF(B49="","",SUMIF('الرصيد الثابت'!$D$2:$D$2100,B49,'الرصيد الثابت'!$H$2:$H$2100)) ->  | D49: =IF(B49="","",SUMIF('الرصيد الثابت'!$D$2:$D$2100,B49,'الرصيد الثابت'!$I$2:$I$2100)) ->  | E49: =IF(B49="","",SUMIF('الرصيد الثابت'!$D$2:$D$2100,B49,'الرصيد الثابت'!$J$2:$J$2100)) ->  | G49: 0 | M49: 0 | Q49: 0 | T49: 0 | AA49: ابيض ووفين فستون 1cm | AC49: ابيض كانون كروشيه 5.5cm | AD49: ابيض كانون كروشيه 5.5cm
C50: =IF(B50="","",SUMIF('الرصيد الثابت'!$D$2:$D$2100,B50,'الرصيد الثابت'!$H$2:$H$2100)) ->  | D50: =IF(B50="","",SUMIF('الرصيد الثابت'!$D$2:$D$2100,B50,'الرصيد الثابت'!$I$2:$I$2100)) ->  | E50: =IF(B50="","",SUMIF('الرصيد الثابت'!$D$2:$D$2100,B50,'الرصيد الثابت'!$J$2:$J$2100)) ->  | G50: 0 | M50: 0 | Q50: 0 | T50: 0 | AA50: ابيض 406 كروشيه 5 cm | AC50: ابيض كانون كروشيه 4.5cm | AD50: ابيض كانون كروشيه 4.5cm
C51: =IF(B51="","",SUMIF('الرصيد الثابت'!$D$2:$D$2100,B51,'الرصيد الثابت'!$H$2:$H$2100)) ->  | D51: =IF(B51="","",SUMIF('الرصيد الثابت'!$D$2:$D$2100,B51,'الرصيد الثابت'!$I$2:$I$2100)) ->  | E51: =IF(B51="","",SUMIF('الرصيد الثابت'!$D$2:$D$2100,B51,'الرصيد الثابت'!$J$2:$J$2100)) ->  | G51: 0 | M51: 0 | Q51: 0 | T51: 0 | AA51: ابيض 510 كروشيه 2.3 cm | AC51: ابيض510 كروشيه 3cm | AD51: ابيض510 كروشيه 3cm
C52: =IF(B52="","",SUMIF('الرصيد الثابت'!$D$2:$D$2100,B52,'الرصيد الثابت'!$H$2:$H$2100)) ->  | D52: =IF(B52="","",SUMIF('الرصيد الثابت'!$D$2:$D$2100,B52,'الرصيد الثابت'!$I$2:$I$2100)) ->  | E52: =IF(B52="","",SUMIF('الرصيد الثابت'!$D$2:$D$2100,B52,'الرصيد الثابت'!$J$2:$J$2100)) ->  | G52: 0 | M52: 0 | Q52: =SUM(F2000-L2000) -> 0 | T52: 0 | AA52: ابيض 510 كروشيه 5 cm | AC52: ابيض510 كروشيه 4cm | AD52: ابيض510 كروشيه 4cm
C53: =IF(B53="","",SUMIF('الرصيد الثابت'!$D$2:$D$2100,B53,'الرصيد الثابت'!$H$2:$H$2100)) ->  | D53: =IF(B53="","",SUMIF('الرصيد الثابت'!$D$2:$D$2100,B53,'الرصيد الثابت'!$I$2:$I$2100)) ->  | E53: =IF(B53="","",SUMIF('الرصيد الثابت'!$D$2:$D$2100,B53,'الرصيد الثابت'!$J$2:$J$2100)) ->  | G53: 0 | M53: 0 | Q53: 0 | T53: 0 | AA53: ابيض فلاش كروشيه 2cm | AC53: احمر كورد مبطط | AD53: احمر كورد مبطط
C54: =IF(B54="","",SUMIF('الرصيد الثابت'!$D$2:$D$2100,B54,'الرصيد الثابت'!$H$2:$H$2100)) ->  | D54: =IF(B54="","",SUMIF('الرصيد الثابت'!$D$2:$D$2100,B54,'الرصيد الثابت'!$I$2:$I$2100)) ->  | E54: =IF(B54="","",SUMIF('الرصيد الثابت'!$D$2:$D$2100,B54,'الرصيد الثابت'!$J$2:$J$2100)) ->  | G54: 0 | M54: 0 | Q54: 0 | T54: 0 | AA54: ابيض فلاش كروشيه 3.5cm | AC54: احمر كورد كبسله بلاستك | AD54: احمر كورد كبسله بلاستك
C55: =IF(B55="","",SUMIF('الرصيد الثابت'!$D$2:$D$2100,B55,'الرصيد الثابت'!$H$2:$H$2100)) ->  | D55: =IF(B55="","",SUMIF('الرصيد الثابت'!$D$2:$D$2100,B55,'الرصيد الثابت'!$I$2:$I$2100)) ->  | E55: =IF(B55="","",SUMIF('الرصيد الثابت'!$D$2:$D$2100,B55,'الرصيد الثابت'!$J$2:$J$2100)) ->  | G55: 0 | M55: 0 | Q55: 0 | T55: 0 | AA55: ابيض فلاش كروشيه 4.5cm | AC55: اخضر كورد مبطط | AD55: اخضر كورد مبطط
C56: =IF(B56="","",SUMIF('الرصيد الثابت'!$D$2:$D$2100,B56,'الرصيد الثابت'!$H$2:$H$2100)) ->  | D56: =IF(B56="","",SUMIF('الرصيد الثابت'!$D$2:$D$2100,B56,'الرصيد الثابت'!$I$2:$I$2100)) ->  | E56: =IF(B56="","",SUMIF('الرصيد الثابت'!$D$2:$D$2100,B56,'الرصيد الثابت'!$J$2:$J$2100)) ->  | G56: 0 | M56: 0 | Q56: 0 | T56: 0 | AA56: ابيض فلاش كروشيه 5cm | AC56: اسود كروشيه 5.8cm | AD56: اسود كروشيه 5.8cm
C57: =IF(B57="","",SUMIF('الرصيد الثابت'!$D$2:$D$2100,B57,'الرصيد الثابت'!$H$2:$H$2100)) ->  | D57: =IF(B57="","",SUMIF('الرصيد الثابت'!$D$2:$D$2100,B57,'الرصيد الثابت'!$I$2:$I$2100)) ->  | E57: =IF(B57="","",SUMIF('الرصيد الثابت'!$D$2:$D$2100,B57,'الرصيد الثابت'!$J$2:$J$2100)) ->  | G57: 0 | M57: 0 | Q57: 0 | T57: 0 | AA57: ابيض كانون كروشيه 4.5cm | AC57: اسود كروشيه 5.5cm | AD57: اسود كروشيه 5.5cm
C58: =IF(B58="","",SUMIF('الرصيد الثابت'!$D$2:$D$2100,B58,'الرصيد الثابت'!$H$2:$H$2100)) ->  | D58: =IF(B58="","",SUMIF('الرصيد الثابت'!$D$2:$D$2100,B58,'الرصيد الثابت'!$I$2:$I$2100)) ->  | E58: =IF(B58="","",SUMIF('الرصيد الثابت'!$D$2:$D$2100,B58,'الرصيد الثابت'!$J$2:$J$2100)) ->  | G58: 0 | M58: 0 | Q58: 0 | T58: 0 | AA58: ابيض كانون كروشيه 5.5cm | AC58: اسود كروشيه 5cm | AD58: اسود كروشيه 5cm
C59: =IF(B59="","",SUMIF('الرصيد الثابت'!$D$2:$D$2100,B59,'الرصيد الثابت'!$H$2:$H$2100)) ->  | D59: =IF(B59="","",SUMIF('الرصيد الثابت'!$D$2:$D$2100,B59,'الرصيد الثابت'!$I$2:$I$2100)) ->  | E59: =IF(B59="","",SUMIF('الرصيد الثابت'!$D$2:$D$2100,B59,'الرصيد الثابت'!$J$2:$J$2100)) ->  | G59: 0 | M59: 0 | Q59: 0 | T59: 0 | AA59: ابيض510 كروشيه 3cm | AC59: اسود كروشيه 4.8cm | AD59: اسود كروشيه 4.8cm
C60: =IF(B60="","",SUMIF('الرصيد الثابت'!$D$2:$D$2100,B60,'الرصيد الثابت'!$H$2:$H$2100)) ->  | D60: =IF(B60="","",SUMIF('الرصيد الثابت'!$D$2:$D$2100,B60,'الرصيد الثابت'!$I$2:$I$2100)) ->  | E60: =IF(B60="","",SUMIF('الرصيد الثابت'!$D$2:$D$2100,B60,'الرصيد الثابت'!$J$2:$J$2100)) ->  | G60: 0 | M60: 0 | Q60: 0 | T60: 0 | AA60: ابيض510 كروشيه 4cm | AC60: اسود كروشيه 4.5cm | AD60: اسود كروشيه 4.5cm
C61: =IF(B61="","",SUMIF('الرصيد الثابت'!$D$2:$D$2100,B61,'الرصيد الثابت'!$H$2:$H$2100)) ->  | D61: =IF(B61="","",SUMIF('الرصيد الثابت'!$D$2:$D$2100,B61,'الرصيد الثابت'!$I$2:$I$2100)) ->  | E61: =IF(B61="","",SUMIF('الرصيد الثابت'!$D$2:$D$2100,B61,'الرصيد الثابت'!$J$2:$J$2100)) ->  | G61: 0 | M61: 0 | Q61: 0 | T61: 0 | AA61: احمر كورد كبسله بلاستك | AC61: اسود كروشيه 4cm | AD61: اسود كروشيه 4cm
C62: =IF(B62="","",SUMIF('الرصيد الثابت'!$D$2:$D$2100,B62,'الرصيد الثابت'!$H$2:$H$2100)) ->  | D62: =IF(B62="","",SUMIF('الرصيد الثابت'!$D$2:$D$2100,B62,'الرصيد الثابت'!$I$2:$I$2100)) ->  | E62: =IF(B62="","",SUMIF('الرصيد الثابت'!$D$2:$D$2100,B62,'الرصيد الثابت'!$J$2:$J$2100)) ->  | G62: 0 | M62: 0 | Q62: 0 | T62: 0 | AA62: احمر كورد مبطط | AC62: اسود كروشيه 3.5cm | AD62: اسود كروشيه 3.5cm
C63: =IF(B63="","",SUMIF('الرصيد الثابت'!$D$2:$D$2100,B63,'الرصيد الثابت'!$H$2:$H$2100)) ->  | D63: =IF(B63="","",SUMIF('الرصيد الثابت'!$D$2:$D$2100,B63,'الرصيد الثابت'!$I$2:$I$2100)) ->  | E63: =IF(B63="","",SUMIF('الرصيد الثابت'!$D$2:$D$2100,B63,'الرصيد الثابت'!$J$2:$J$2100)) ->  | G63: 0 | M63: 0 | Q63: 0 | T63: 0 | AA63: اخضر كورد مبطط | AC63: اسود كروشيه 3cm | AD63: اسود كروشيه 3cm
C64: =IF(B64="","",SUMIF('الرصيد الثابت'!$D$2:$D$2100,B64,'الرصيد الثابت'!$H$2:$H$2100)) ->  | D64: =IF(B64="","",SUMIF('الرصيد الثابت'!$D$2:$D$2100,B64,'الرصيد الثابت'!$I$2:$I$2100)) ->  | E64: =IF(B64="","",SUMIF('الرصيد الثابت'!$D$2:$D$2100,B64,'الرصيد الثابت'!$J$2:$J$2100)) ->  | G64: 0 | M64: 0 | Q64: 0 | T64: 0 | AA64: اخضر X زيتي بايبينج 1cm | AC64: اسود كروشيه 2.5cm | AD64: اسود كروشيه 2.5cm
C65: =IF(B65="","",SUMIF('الرصيد الثابت'!$D$2:$D$2100,B65,'الرصيد الثابت'!$H$2:$H$2100)) ->  | D65: =IF(B65="","",SUMIF('الرصيد الثابت'!$D$2:$D$2100,B65,'الرصيد الثابت'!$I$2:$I$2100)) ->  | E65: =IF(B65="","",SUMIF('الرصيد الثابت'!$D$2:$D$2100,B65,'الرصيد الثابت'!$J$2:$J$2100)) ->  | G65: 0 | M65: 0 | Q65: 0 | T65: 0 | AA65: اسود استك طبي 2.26 | AC65: اسود كروشيه 2cm | AD65: اسود كروشيه 2cm
C66: =IF(B66="","",SUMIF('الرصيد الثابت'!$D$2:$D$2100,B66,'الرصيد الثابت'!$H$2:$H$2100)) ->  | D66: =IF(B66="","",SUMIF('الرصيد الثابت'!$D$2:$D$2100,B66,'الرصيد الثابت'!$I$2:$I$2100)) ->  | E66: =IF(B66="","",SUMIF('الرصيد الثابت'!$D$2:$D$2100,B66,'الرصيد الثابت'!$J$2:$J$2100)) ->  | G66: 0 | M66: 0 | Q66: 0 | T66: 0 | AA66: اسود استك طبي 2.98 | AC66: اسود كروشيه 1.7cm | AD66: اسود كروشيه 1.7cm
C67: =IF(B67="","",SUMIF('الرصيد الثابت'!$D$2:$D$2100,B67,'الرصيد الثابت'!$H$2:$H$2100)) ->  | D67: =IF(B67="","",SUMIF('الرصيد الثابت'!$D$2:$D$2100,B67,'الرصيد الثابت'!$I$2:$I$2100)) ->  | E67: =IF(B67="","",SUMIF('الرصيد الثابت'!$D$2:$D$2100,B67,'الرصيد الثابت'!$J$2:$J$2100)) ->  | G67: 0 | M67: =SUM(N67*L67) -> 0 | Q67: 0 | T67: 0 | AA67: اسود كروشيه 1.2cm | AC67: اسود كروشيه 1.5cm | AD67: اسود كروشيه 1.5cm
C68: =IF(B68="","",SUMIF('الرصيد الثابت'!$D$2:$D$2100,B68,'الرصيد الثابت'!$H$2:$H$2100)) ->  | D68: =IF(B68="","",SUMIF('الرصيد الثابت'!$D$2:$D$2100,B68,'الرصيد الثابت'!$I$2:$I$2100)) ->  | E68: =IF(B68="","",SUMIF('الرصيد الثابت'!$D$2:$D$2100,B68,'الرصيد الثابت'!$J$2:$J$2100)) ->  | G68: =SUM(H68*F68) -> 0 | M68: 0 | Q68: =SUM(F68-L68) -> 0 | T68: 0 | AA68: اسود كروشيه 1.3cm | AC68: اسود كروشيه 1.3cm | AD68: اسود كروشيه 1.3cm
C69: =IF(B69="","",SUMIF('الرصيد الثابت'!$D$2:$D$2100,B69,'الرصيد الثابت'!$H$2:$H$2100)) ->  | D69: =IF(B69="","",SUMIF('الرصيد الثابت'!$D$2:$D$2100,B69,'الرصيد الثابت'!$I$2:$I$2100)) ->  | E69: =IF(B69="","",SUMIF('الرصيد الثابت'!$D$2:$D$2100,B69,'الرصيد الثابت'!$J$2:$J$2100)) ->  | G69: 0 | M69: 0 | Q69: 0 | T69: 0 | AA69: اسود كروشيه 1.4cm | AC69: اسود كروشيه 1cm | AD69: اسود كروشيه 1cm
C70: =IF(B70="","",SUMIF('الرصيد الثابت'!$D$2:$D$2100,B70,'الرصيد الثابت'!$H$2:$H$2100)) ->  | D70: =IF(B70="","",SUMIF('الرصيد الثابت'!$D$2:$D$2100,B70,'الرصيد الثابت'!$I$2:$I$2100)) ->  | E70: =IF(B70="","",SUMIF('الرصيد الثابت'!$D$2:$D$2100,B70,'الرصيد الثابت'!$J$2:$J$2100)) ->  | G70: 0 | M70: 0 | Q70: 0 | T70: 0 | AA70: اسود كروشيه 1.5cm | AC70: اسود كروشيه 8mm | AD70: اسود كروشيه 8mm
C71: =IF(B71="","",SUMIF('الرصيد الثابت'!$D$2:$D$2100,B71,'الرصيد الثابت'!$H$2:$H$2100)) ->  | D71: =IF(B71="","",SUMIF('الرصيد الثابت'!$D$2:$D$2100,B71,'الرصيد الثابت'!$I$2:$I$2100)) ->  | E71: =IF(B71="","",SUMIF('الرصيد الثابت'!$D$2:$D$2100,B71,'الرصيد الثابت'!$J$2:$J$2100)) ->  | G71: 0 | M71: 0 | Q71: 0 | T71: =SUM(U71*S71) -> 0 | AA71: اسود كروشيه 1.7cm | AC71: اسود كروشيه 3.8cm | AD71: اسود كروشيه 3.8cm
C72: =IF(B72="","",SUMIF('الرصيد الثابت'!$D$2:$D$2100,B72,'الرصيد الثابت'!$H$2:$H$2100)) ->  | D72: =IF(B72="","",SUMIF('الرصيد الثابت'!$D$2:$D$2100,B72,'الرصيد الثابت'!$I$2:$I$2100)) ->  | E72: =IF(B72="","",SUMIF('الرصيد الثابت'!$D$2:$D$2100,B72,'الرصيد الثابت'!$J$2:$J$2100)) ->  | G72: 0 | M72: 0 | Q72: 0 | T72: 0 | AA72: اسود كروشيه 1cm | AC72: اسود كروشيه .8m | AD72: اسود كروشيه .8m
C73: =IF(B73="","",SUMIF('الرصيد الثابت'!$D$2:$D$2100,B73,'الرصيد الثابت'!$H$2:$H$2100)) ->  | D73: =IF(B73="","",SUMIF('الرصيد الثابت'!$D$2:$D$2100,B73,'الرصيد الثابت'!$I$2:$I$2100)) ->  | E73: =IF(B73="","",SUMIF('الرصيد الثابت'!$D$2:$D$2100,B73,'الرصيد الثابت'!$J$2:$J$2100)) ->  | G73: 0 | M73: 0 | Q73: 0 | T73: 0 | AA73: اسود كروشيه 2.2cm | AC73: اسود كروشيه 1.2cm | AD73: اسود كروشيه 1.2cm
C74: =IF(B74="","",SUMIF('الرصيد الثابت'!$D$2:$D$2100,B74,'الرصيد الثابت'!$H$2:$H$2100)) ->  | D74: =IF(B74="","",SUMIF('الرصيد الثابت'!$D$2:$D$2100,B74,'الرصيد الثابت'!$I$2:$I$2100)) ->  | E74: =IF(B74="","",SUMIF('الرصيد الثابت'!$D$2:$D$2100,B74,'الرصيد الثابت'!$J$2:$J$2100)) ->  | G74: 0 | M74: 0 | Q74: 0 | T74: 0 | AA74: اسود كروشيه 2.5cm | AC74: اسود كروشيه .4m | AD74: اسود كروشيه .4m
C75: =IF(B75="","",SUMIF('الرصيد الثابت'!$D$2:$D$2100,B75,'الرصيد الثابت'!$H$2:$H$2100)) ->  | D75: =IF(B75="","",SUMIF('الرصيد الثابت'!$D$2:$D$2100,B75,'الرصيد الثابت'!$I$2:$I$2100)) ->  | E75: =IF(B75="","",SUMIF('الرصيد الثابت'!$D$2:$D$2100,B75,'الرصيد الثابت'!$J$2:$J$2100)) ->  | G75: 0 | M75: 0 | Q75: 0 | T75: 0 | AA75: اسود كروشيه 2cm | AC75: اسود كروشيه 1.4cm | AD75: اسود كروشيه 1.4cm
C76: =IF(B76="","",SUMIF('الرصيد الثابت'!$D$2:$D$2100,B76,'الرصيد الثابت'!$H$2:$H$2100)) ->  | D76: =IF(B76="","",SUMIF('الرصيد الثابت'!$D$2:$D$2100,B76,'الرصيد الثابت'!$I$2:$I$2100)) ->  | E76: =IF(B76="","",SUMIF('الرصيد الثابت'!$D$2:$D$2100,B76,'الرصيد الثابت'!$J$2:$J$2100)) ->  | G76: 0 | M76: 0 | Q76: 0 | T76: 0 | AA76: اسود كروشيه 3.5cm | AC76: اسود كروشيه 2.2cm | AD76: اسود كروشيه 2.2cm
C77: =IF(B77="","",SUMIF('الرصيد الثابت'!$D$2:$D$2100,B77,'الرصيد الثابت'!$H$2:$H$2100)) ->  | D77: =IF(B77="","",SUMIF('الرصيد الثابت'!$D$2:$D$2100,B77,'الرصيد الثابت'!$I$2:$I$2100)) ->  | E77: =IF(B77="","",SUMIF('الرصيد الثابت'!$D$2:$D$2100,B77,'الرصيد الثابت'!$J$2:$J$2100)) ->  | G77: 0 | M77: 0 | Q77: 0 | T77: 0 | AA77: اسود كروشيه 3.8cm | AC77: اسود كورد 1cm | AD77: اسود كورد 1cm
C78: =IF(B78="","",SUMIF('الرصيد الثابت'!$D$2:$D$2100,B78,'الرصيد الثابت'!$H$2:$H$2100)) ->  | D78: =IF(B78="","",SUMIF('الرصيد الثابت'!$D$2:$D$2100,B78,'الرصيد الثابت'!$I$2:$I$2100)) ->  | E78: =IF(B78="","",SUMIF('الرصيد الثابت'!$D$2:$D$2100,B78,'الرصيد الثابت'!$J$2:$J$2100)) ->  | G78: 0 | M78: 0 | Q78: 0 | T78: 0 | AA78: اسود كروشيه 3cm | AC78: اسود كورد مبطط | AD78: اسود كورد مبطط
C79: =IF(B79="","",SUMIF('الرصيد الثابت'!$D$2:$D$2100,B79,'الرصيد الثابت'!$H$2:$H$2100)) ->  | D79: =IF(B79="","",SUMIF('الرصيد الثابت'!$D$2:$D$2100,B79,'الرصيد الثابت'!$I$2:$I$2100)) ->  | E79: =IF(B79="","",SUMIF('الرصيد الثابت'!$D$2:$D$2100,B79,'الرصيد الثابت'!$J$2:$J$2100)) ->  | G79: 0 | M79: 0 | Q79: 0 | T79: 0 | AA79: اسود كروشيه 4.5cm | AC79: اسود كورد مبروم | AD79: اسود كورد مبروم
C80: =IF(B80="","",SUMIF('الرصيد الثابت'!$D$2:$D$2100,B80,'الرصيد الثابت'!$H$2:$H$2100)) ->  | D80: =IF(B80="","",SUMIF('الرصيد الثابت'!$D$2:$D$2100,B80,'الرصيد الثابت'!$I$2:$I$2100)) ->  | E80: =IF(B80="","",SUMIF('الرصيد الثابت'!$D$2:$D$2100,B80,'الرصيد الثابت'!$J$2:$J$2100)) ->  | G80: 0 | M80: 0 | Q80: 0 | T80: 0 | AA80: اسود كروشيه 4.8cm | AC80: اسود ووفين ساندوتش 1.5cm | AD80: اسود ووفين ساندوتش 1.5cm
C81: =IF(B81="","",SUMIF('الرصيد الثابت'!$D$2:$D$2100,B81,'الرصيد الثابت'!$H$2:$H$2100)) ->  | D81: =IF(B81="","",SUMIF('الرصيد الثابت'!$D$2:$D$2100,B81,'الرصيد الثابت'!$I$2:$I$2100)) ->  | E81: =IF(B81="","",SUMIF('الرصيد الثابت'!$D$2:$D$2100,B81,'الرصيد الثابت'!$J$2:$J$2100)) ->  | G81: 0 | M81: 0 | Q81: 0 | T81: 0 | AA81: اسود كروشيه 4cm | AC81: اسود ووفين ساندوتش 1.8cm | AD81: اسود ووفين ساندوتش 1.8cm
C82: =IF(B82="","",SUMIF('الرصيد الثابت'!$D$2:$D$2100,B82,'الرصيد الثابت'!$H$2:$H$2100)) ->  | D82: =IF(B82="","",SUMIF('الرصيد الثابت'!$D$2:$D$2100,B82,'الرصيد الثابت'!$I$2:$I$2100)) ->  | E82: =IF(B82="","",SUMIF('الرصيد الثابت'!$D$2:$D$2100,B82,'الرصيد الثابت'!$J$2:$J$2100)) ->  | G82: 0 | M82: 0 | Q82: 0 | T82: 0 | AA82: اسود كروشيه 4m | AC82: اسود ووفين ساندوتش 1.7cm | AD82: اسود ووفين ساندوتش 1.7cm
C83: =IF(B83="","",SUMIF('الرصيد الثابت'!$D$2:$D$2100,B83,'الرصيد الثابت'!$H$2:$H$2100)) ->  | D83: =IF(B83="","",SUMIF('الرصيد الثابت'!$D$2:$D$2100,B83,'الرصيد الثابت'!$I$2:$I$2100)) ->  | E83: =IF(B83="","",SUMIF('الرصيد الثابت'!$D$2:$D$2100,B83,'الرصيد الثابت'!$J$2:$J$2100)) ->  | G83: 0 | M83: 0 | Q83: 0 | T83: 0 | AA83: اسود كروشيه 5.5cm | AC83: اسود ووفين ساندوتش 2cm | AD83: اسود ووفين ساندوتش 2cm
C84: =IF(B84="","",SUMIF('الرصيد الثابت'!$D$2:$D$2100,B84,'الرصيد الثابت'!$H$2:$H$2100)) ->  | D84: =IF(B84="","",SUMIF('الرصيد الثابت'!$D$2:$D$2100,B84,'الرصيد الثابت'!$I$2:$I$2100)) ->  | E84: =IF(B84="","",SUMIF('الرصيد الثابت'!$D$2:$D$2100,B84,'الرصيد الثابت'!$J$2:$J$2100)) ->  | G84: 0 | M84: 0 | Q84: 0 | T84: 0 | AA84: اسود كروشيه 5.8cm | AC84: اسود استك طبي 2,98 | AD84: اسود استك طبي 2,98
C85: =IF(B85="","",SUMIF('الرصيد الثابت'!$D$2:$D$2100,B85,'الرصيد الثابت'!$H$2:$H$2100)) ->  | D85: =IF(B85="","",SUMIF('الرصيد الثابت'!$D$2:$D$2100,B85,'الرصيد الثابت'!$I$2:$I$2100)) ->  | E85: =IF(B85="","",SUMIF('الرصيد الثابت'!$D$2:$D$2100,B85,'الرصيد الثابت'!$J$2:$J$2100)) ->  | G85: 0 | M85: 0 | Q85: 0 | T85: 0 | AA85: اسود كروشيه 5cm | AC85: اسود استك طبي 2,26 | AD85: اسود استك طبي 2,26
C86: =IF(B86="","",SUMIF('الرصيد الثابت'!$D$2:$D$2100,B86,'الرصيد الثابت'!$H$2:$H$2100)) ->  | D86: =IF(B86="","",SUMIF('الرصيد الثابت'!$D$2:$D$2100,B86,'الرصيد الثابت'!$I$2:$I$2100)) ->  | E86: =IF(B86="","",SUMIF('الرصيد الثابت'!$D$2:$D$2100,B86,'الرصيد الثابت'!$J$2:$J$2100)) ->  | G86: 0 | M86: 0 | Q86: 0 | T86: 0 | AA86: اسود كروشيه 8m | AC86: اسود كروشيه 5.8cm | AD86: اسود كروشيه 5.8cm
C87: =IF(B87="","",SUMIF('الرصيد الثابت'!$D$2:$D$2100,B87,'الرصيد الثابت'!$H$2:$H$2100)) ->  | D87: =IF(B87="","",SUMIF('الرصيد الثابت'!$D$2:$D$2100,B87,'الرصيد الثابت'!$I$2:$I$2100)) ->  | E87: =IF(B87="","",SUMIF('الرصيد الثابت'!$D$2:$D$2100,B87,'الرصيد الثابت'!$J$2:$J$2100)) ->  | G87: 0 | M87: 0 | Q87: 0 | T87: 0 | AA87: اسود كروشيه 8mm | AC87: اسود استريب كروشيه 3cm | AD87: اسود استريب كروشيه 3cm
C88: =IF(B88="","",SUMIF('الرصيد الثابت'!$D$2:$D$2100,B88,'الرصيد الثابت'!$H$2:$H$2100)) ->  | D88: =IF(B88="","",SUMIF('الرصيد الثابت'!$D$2:$D$2100,B88,'الرصيد الثابت'!$I$2:$I$2100)) ->  | E88: =IF(B88="","",SUMIF('الرصيد الثابت'!$D$2:$D$2100,B88,'الرصيد الثابت'!$J$2:$J$2100)) ->  | G88: 0 | M88: 0 | Q88: 0 | T88: 0 | AA88: اسود كورد 1cm | AC88: اسود فلاش كروشيه 5.5cm | AD88: اسود فلاش كروشيه 5.5cm
C89: =IF(B89="","",SUMIF('الرصيد الثابت'!$D$2:$D$2100,B89,'الرصيد الثابت'!$H$2:$H$2100)) ->  | D89: =IF(B89="","",SUMIF('الرصيد الثابت'!$D$2:$D$2100,B89,'الرصيد الثابت'!$I$2:$I$2100)) ->  | E89: =IF(B89="","",SUMIF('الرصيد الثابت'!$D$2:$D$2100,B89,'الرصيد الثابت'!$J$2:$J$2100)) ->  | G89: 0 | M89: 0 | Q89: 0 | T89: 0 | AA89: اسود كورد مبروم | AC89: اسود فلاش كروشيه 5cm | AD89: اسود فلاش كروشيه 5cm
C90: =IF(B90="","",SUMIF('الرصيد الثابت'!$D$2:$D$2100,B90,'الرصيد الثابت'!$H$2:$H$2100)) ->  | D90: =IF(B90="","",SUMIF('الرصيد الثابت'!$D$2:$D$2100,B90,'الرصيد الثابت'!$I$2:$I$2100)) ->  | E90: =IF(B90="","",SUMIF('الرصيد الثابت'!$D$2:$D$2100,B90,'الرصيد الثابت'!$J$2:$J$2100)) ->  | G90: 0 | M90: 0 | Q90: 0 | T90: 0 | AA90: اسود كورد مبطط | AC90: اسود فلاش كروشيه 3.5cm | AD90: اسود فلاش كروشيه 3.5cm
C91: =IF(B91="","",SUMIF('الرصيد الثابت'!$D$2:$D$2100,B91,'الرصيد الثابت'!$H$2:$H$2100)) ->  | D91: =IF(B91="","",SUMIF('الرصيد الثابت'!$D$2:$D$2100,B91,'الرصيد الثابت'!$I$2:$I$2100)) ->  | E91: =IF(B91="","",SUMIF('الرصيد الثابت'!$D$2:$D$2100,B91,'الرصيد الثابت'!$J$2:$J$2100)) ->  | G91: 0 | M91: 0 | Q91: 0 | T91: 0 | AA91: اسود ووفين ساندوتش 1.5cm | AC91: اسود510 كروشيه 5cm | AD91: اسود510 كروشيه 5cm
C92: =IF(B92="","",SUMIF('الرصيد الثابت'!$D$2:$D$2100,B92,'الرصيد الثابت'!$H$2:$H$2100)) ->  | D92: =IF(B92="","",SUMIF('الرصيد الثابت'!$D$2:$D$2100,B92,'الرصيد الثابت'!$I$2:$I$2100)) ->  | E92: =IF(B92="","",SUMIF('الرصيد الثابت'!$D$2:$D$2100,B92,'الرصيد الثابت'!$J$2:$J$2100)) ->  | G92: 0 | M92: 0 | Q92: 0 | T92: 0 | AA92: اسود ووفين ساندوتش 1.7cm | AC92: اسود510 كروشيه 3.5cm | AD92: اسود510 كروشيه 3.5cm
C93: =IF(B93="","",SUMIF('الرصيد الثابت'!$D$2:$D$2100,B93,'الرصيد الثابت'!$H$2:$H$2100)) ->  | D93: =IF(B93="","",SUMIF('الرصيد الثابت'!$D$2:$D$2100,B93,'الرصيد الثابت'!$I$2:$I$2100)) ->  | E93: =IF(B93="","",SUMIF('الرصيد الثابت'!$D$2:$D$2100,B93,'الرصيد الثابت'!$J$2:$J$2100)) ->  | G93: 0 | M93: 0 | Q93: 0 | T93: 0 | AA93: اسود ووفين ساندوتش 1.8cm | AC93: الالوان كورد 1.2cm | AD93: الالوان كورد 1.2cm
C94: =IF(B94="","",SUMIF('الرصيد الثابت'!$D$2:$D$2100,B94,'الرصيد الثابت'!$H$2:$H$2100)) ->  | D94: =IF(B94="","",SUMIF('الرصيد الثابت'!$D$2:$D$2100,B94,'الرصيد الثابت'!$I$2:$I$2100)) ->  | E94: =IF(B94="","",SUMIF('الرصيد الثابت'!$D$2:$D$2100,B94,'الرصيد الثابت'!$J$2:$J$2100)) ->  | G94: 0 | M94: 0 | Q94: 0 | T94: 0 | AA94: اسود ووفين ساندوتش 2cm | AC94: اورنج كورد 1.2cm | AD94: اورنج كورد 1.2cm
C95: =IF(B95="","",SUMIF('الرصيد الثابت'!$D$2:$D$2100,B95,'الرصيد الثابت'!$H$2:$H$2100)) ->  | D95: =IF(B95="","",SUMIF('الرصيد الثابت'!$D$2:$D$2100,B95,'الرصيد الثابت'!$I$2:$I$2100)) ->  | E95: =IF(B95="","",SUMIF('الرصيد الثابت'!$D$2:$D$2100,B95,'الرصيد الثابت'!$J$2:$J$2100)) ->  | G95: 0 | M95: 0 | Q95: 0 | T95: 0 | AA95: اسود كروشيه 5.8cm | AC95: اورنح كورد مبطط | AD95: اورنح كورد مبطط
C96: =IF(B96="","",SUMIF('الرصيد الثابت'!$D$2:$D$2100,B96,'الرصيد الثابت'!$H$2:$H$2100)) ->  | D96: =IF(B96="","",SUMIF('الرصيد الثابت'!$D$2:$D$2100,B96,'الرصيد الثابت'!$I$2:$I$2100)) ->  | E96: =IF(B96="","",SUMIF('الرصيد الثابت'!$D$2:$D$2100,B96,'الرصيد الثابت'!$J$2:$J$2100)) ->  | G96: 0 | M96: 0 | Q96: 0 | T96: 0 | AA96: اسود 510 كروشيه 2.3cm | AC96: بينك ووفين فستون 1cm | AD96: بينك ووفين فستون 1cm
C97: =IF(B97="","",SUMIF('الرصيد الثابت'!$D$2:$D$2100,B97,'الرصيد الثابت'!$H$2:$H$2100)) ->  | D97: =IF(B97="","",SUMIF('الرصيد الثابت'!$D$2:$D$2100,B97,'الرصيد الثابت'!$I$2:$I$2100)) ->  | E97: =IF(B97="","",SUMIF('الرصيد الثابت'!$D$2:$D$2100,B97,'الرصيد الثابت'!$J$2:$J$2100)) ->  | G97: 0 | M97: 0 | Q97: 0 | T97: 0 | AA97: اسود 510 كروشيه 2.5cm | AC97: بينك ووفين فستون 1.3cm | AD97: بينك ووفين فستون 1.3cm
C98: =IF(B98="","",SUMIF('الرصيد الثابت'!$D$2:$D$2100,B98,'الرصيد الثابت'!$H$2:$H$2100)) ->  | D98: =IF(B98="","",SUMIF('الرصيد الثابت'!$D$2:$D$2100,B98,'الرصيد الثابت'!$I$2:$I$2100)) ->  | E98: =IF(B98="","",SUMIF('الرصيد الثابت'!$D$2:$D$2100,B98,'الرصيد الثابت'!$J$2:$J$2100)) ->  | G98: 0 | M98: 0 | Q98: 0 | T98: 0 | AA98: اسود 510 كروشيه 3 cm | AC98: رصاصي استريب كروشيه 3cm | AD98: رصاصي استريب كروشيه 3cm
C99: =IF(B99="","",SUMIF('الرصيد الثابت'!$D$2:$D$2100,B99,'الرصيد الثابت'!$H$2:$H$2100)) ->  | D99: =IF(B99="","",SUMIF('الرصيد الثابت'!$D$2:$D$2100,B99,'الرصيد الثابت'!$I$2:$I$2100)) ->  | E99: =IF(B99="","",SUMIF('الرصيد الثابت'!$D$2:$D$2100,B99,'الرصيد الثابت'!$J$2:$J$2100)) ->  | G99: 0 | M99: 0 | Q99: 0 | T99: 0 | AA99: اسود 510 كروشيه 4.5cm | AC99: زهري كورد مبطط | AD99: زهري كورد مبطط
C100: =IF(B100="","",SUMIF('الرصيد الثابت'!$D$2:$D$2100,B100,'الرصيد الثابت'!$H$2:$H$2100)) ->  | D100: =IF(B100="","",SUMIF('الرصيد الثابت'!$D$2:$D$2100,B100,'الرصيد الثابت'!$I$2:$I$2100)) ->  | E100: =IF(B100="","",SUMIF('الرصيد الثابت'!$D$2:$D$2100,B100,'الرصيد الثابت'!$J$2:$J$2100)) ->  | G100: 0 | M100: 0 | Q100: 0 | T100: 0 | AA100: اسود 510 كروشيه 4cm | AC100: شاركول كورد مبطط | AD100: شاركول كورد مبطط
C101: =IF(B101="","",SUMIF('الرصيد الثابت'!$D$2:$D$2100,B101,'الرصيد الثابت'!$H$2:$H$2100)) ->  | D101: =IF(B101="","",SUMIF('الرصيد الثابت'!$D$2:$D$2100,B101,'الرصيد الثابت'!$I$2:$I$2100)) ->  | E101: =IF(B101="","",SUMIF('الرصيد الثابت'!$D$2:$D$2100,B101,'الرصيد الثابت'!$J$2:$J$2100)) ->  | G101: 0 | M101: 0 | Q101: 0 | T101: 0 | AA101: اسود 510 كروشيه 5.2cm | AC101: موف غامق كروشيه 1.6cm | AD101: موف غامق كروشيه 1.6cm
C102: =IF(B102="","",SUMIF('الرصيد الثابت'!$D$2:$D$2100,B102,'الرصيد الثابت'!$H$2:$H$2100)) ->  | D102: =IF(B102="","",SUMIF('الرصيد الثابت'!$D$2:$D$2100,B102,'الرصيد الثابت'!$I$2:$I$2100)) ->  | E102: =IF(B102="","",SUMIF('الرصيد الثابت'!$D$2:$D$2100,B102,'الرصيد الثابت'!$J$2:$J$2100)) ->  | G102: 0 | M102: 0 | Q102: 0 | T102: 0 | AA102: اسود 510 كروشيه 5.5cm | AC102: كروشيه 1.8cm | AD102: كروشيه 1.8cm
C103: =IF(B103="","",SUMIF('الرصيد الثابت'!$D$2:$D$2100,B103,'الرصيد الثابت'!$H$2:$H$2100)) ->  | D103: =IF(B103="","",SUMIF('الرصيد الثابت'!$D$2:$D$2100,B103,'الرصيد الثابت'!$I$2:$I$2100)) ->  | E103: =IF(B103="","",SUMIF('الرصيد الثابت'!$D$2:$D$2100,B103,'الرصيد الثابت'!$J$2:$J$2100)) ->  | G103: 0 | M103: 0 | Q103: 0 | T103: 0 | AA103: اسود 611.2 كروشيه 2cm | AC103: كروشيه 1.9cm | AD103: كروشيه 1.9cm
C104: =IF(B104="","",SUMIF('الرصيد الثابت'!$D$2:$D$2100,B104,'الرصيد الثابت'!$H$2:$H$2100)) ->  | D104: =IF(B104="","",SUMIF('الرصيد الثابت'!$D$2:$D$2100,B104,'الرصيد الثابت'!$I$2:$I$2100)) ->  | E104: =IF(B104="","",SUMIF('الرصيد الثابت'!$D$2:$D$2100,B104,'الرصيد الثابت'!$J$2:$J$2100)) ->  | G104: 0 | M104: 0 | Q104: 0 | T104: 0 | AA104: اسود X ابيض بايبينج 1cm | AC104: موف فاتح كروشيه 4.6 | AD104: موف فاتح كروشيه 4.6
C105: =IF(B105="","",SUMIF('الرصيد الثابت'!$D$2:$D$2100,B105,'الرصيد الثابت'!$H$2:$H$2100)) ->  | D105: =IF(B105="","",SUMIF('الرصيد الثابت'!$D$2:$D$2100,B105,'الرصيد الثابت'!$I$2:$I$2100)) ->  | E105: =IF(B105="","",SUMIF('الرصيد الثابت'!$D$2:$D$2100,B105,'الرصيد الثابت'!$J$2:$J$2100)) ->  | G105: 0 | M105: 0 | Q105: 0 | T105: 0 | AA105: اسود استريب كروشيه 3cm
C106: =IF(B106="","",SUMIF('الرصيد الثابت'!$D$2:$D$2100,B106,'الرصيد الثابت'!$H$2:$H$2100)) ->  | D106: =IF(B106="","",SUMIF('الرصيد الثابت'!$D$2:$D$2100,B106,'الرصيد الثابت'!$I$2:$I$2100)) ->  | E106: =IF(B106="","",SUMIF('الرصيد الثابت'!$D$2:$D$2100,B106,'الرصيد الثابت'!$J$2:$J$2100)) ->  | G106: 0 | M106: 0 | Q106: 0 | T106: 0 | AA106: اسود فلاش كروشيه 3.5cm
C107: =IF(B107="","",SUMIF('الرصيد الثابت'!$D$2:$D$2100,B107,'الرصيد الثابت'!$H$2:$H$2100)) ->  | D107: =IF(B107="","",SUMIF('الرصيد الثابت'!$D$2:$D$2100,B107,'الرصيد الثابت'!$I$2:$I$2100)) ->  | E107: =IF(B107="","",SUMIF('الرصيد الثابت'!$D$2:$D$2100,B107,'الرصيد الثابت'!$J$2:$J$2100)) ->  | G107: 0 | M107: 0 | Q107: 0 | T107: 0 | AA107: اسود فلاش كروشيه 5.5cm
C108: =IF(B108="","",SUMIF('الرصيد الثابت'!$D$2:$D$2100,B108,'الرصيد الثابت'!$H$2:$H$2100)) ->  | D108: =IF(B108="","",SUMIF('الرصيد الثابت'!$D$2:$D$2100,B108,'الرصيد الثابت'!$I$2:$I$2100)) ->  | E108: =IF(B108="","",SUMIF('الرصيد الثابت'!$D$2:$D$2100,B108,'الرصيد الثابت'!$J$2:$J$2100)) ->  | G108: 0 | M108: 0 | Q108: 0 | T108: 0 | AA108: اسود فلاش كروشيه 5cm
C109: =IF(B109="","",SUMIF('الرصيد الثابت'!$D$2:$D$2100,B109,'الرصيد الثابت'!$H$2:$H$2100)) ->  | D109: =IF(B109="","",SUMIF('الرصيد الثابت'!$D$2:$D$2100,B109,'الرصيد الثابت'!$I$2:$I$2100)) ->  | E109: =IF(B109="","",SUMIF('الرصيد الثابت'!$D$2:$D$2100,B109,'الرصيد الثابت'!$J$2:$J$2100)) ->  | G109: 0 | M109: 0 | Q109: 0 | T109: 0 | AA109: اسود510 كروشيه 3.5cm
C110: =IF(B110="","",SUMIF('الرصيد الثابت'!$D$2:$D$2100,B110,'الرصيد الثابت'!$H$2:$H$2100)) ->  | D110: =IF(B110="","",SUMIF('الرصيد الثابت'!$D$2:$D$2100,B110,'الرصيد الثابت'!$I$2:$I$2100)) ->  | E110: =IF(B110="","",SUMIF('الرصيد الثابت'!$D$2:$D$2100,B110,'الرصيد الثابت'!$J$2:$J$2100)) ->  | G110: 0 | M110: 0 | Q110: 0 | T110: 0 | AA110: اسود510 كروشيه 5cm
C111: =IF(B111="","",SUMIF('الرصيد الثابت'!$D$2:$D$2100,B111,'الرصيد الثابت'!$H$2:$H$2100)) ->  | D111: =IF(B111="","",SUMIF('الرصيد الثابت'!$D$2:$D$2100,B111,'الرصيد الثابت'!$I$2:$I$2100)) ->  | E111: =IF(B111="","",SUMIF('الرصيد الثابت'!$D$2:$D$2100,B111,'الرصيد الثابت'!$J$2:$J$2100)) ->  | G111: 0 | M111: 0 | Q111: 0 | T111: 0 | AA111: اصفر X اخضر بايبينج 1cm
C112: =IF(B112="","",SUMIF('الرصيد الثابت'!$D$2:$D$2100,B112,'الرصيد الثابت'!$H$2:$H$2100)) ->  | D112: =IF(B112="","",SUMIF('الرصيد الثابت'!$D$2:$D$2100,B112,'الرصيد الثابت'!$I$2:$I$2100)) ->  | E112: =IF(B112="","",SUMIF('الرصيد الثابت'!$D$2:$D$2100,B112,'الرصيد الثابت'!$J$2:$J$2100)) ->  | G112: 0 | M112: 0 | Q112: 0 | T112: 0 | AA112: اصفر X زيتي بايبينج 1cm
C113: =IF(B113="","",SUMIF('الرصيد الثابت'!$D$2:$D$2100,B113,'الرصيد الثابت'!$H$2:$H$2100)) ->  | D113: =IF(B113="","",SUMIF('الرصيد الثابت'!$D$2:$D$2100,B113,'الرصيد الثابت'!$I$2:$I$2100)) ->  | E113: =IF(B113="","",SUMIF('الرصيد الثابت'!$D$2:$D$2100,B113,'الرصيد الثابت'!$J$2:$J$2100)) ->  | G113: 0 | M113: 0 | Q113: 0 | T113: 0 | AA113: الالوان كورد 1.2cm
C114: =IF(B114="","",SUMIF('الرصيد الثابت'!$D$2:$D$2100,B114,'الرصيد الثابت'!$H$2:$H$2100)) ->  | D114: =IF(B114="","",SUMIF('الرصيد الثابت'!$D$2:$D$2100,B114,'الرصيد الثابت'!$I$2:$I$2100)) ->  | E114: =IF(B114="","",SUMIF('الرصيد الثابت'!$D$2:$D$2100,B114,'الرصيد الثابت'!$J$2:$J$2100)) ->  | G114: 0 | M114: 0 | Q114: 0 | T114: 0 | AA114: الوان فيستون 1cm
C115: =IF(B115="","",SUMIF('الرصيد الثابت'!$D$2:$D$2100,B115,'الرصيد الثابت'!$H$2:$H$2100)) ->  | D115: =IF(B115="","",SUMIF('الرصيد الثابت'!$D$2:$D$2100,B115,'الرصيد الثابت'!$I$2:$I$2100)) ->  | E115: =IF(B115="","",SUMIF('الرصيد الثابت'!$D$2:$D$2100,B115,'الرصيد الثابت'!$J$2:$J$2100)) ->  | G115: 0 | M115: 0 | Q115: 0 | T115: 0 | AA115: اورنج كورد 1.2cm
C116: =IF(B116="","",SUMIF('الرصيد الثابت'!$D$2:$D$2100,B116,'الرصيد الثابت'!$H$2:$H$2100)) ->  | D116: =IF(B116="","",SUMIF('الرصيد الثابت'!$D$2:$D$2100,B116,'الرصيد الثابت'!$I$2:$I$2100)) ->  | E116: =IF(B116="","",SUMIF('الرصيد الثابت'!$D$2:$D$2100,B116,'الرصيد الثابت'!$J$2:$J$2100)) ->  | G116: 0 | M116: 0 | Q116: 0 | T116: 0 | AA116: اورنح كورد مبطط
C117: =IF(B117="","",SUMIF('الرصيد الثابت'!$D$2:$D$2100,B117,'الرصيد الثابت'!$H$2:$H$2100)) ->  | D117: =IF(B117="","",SUMIF('الرصيد الثابت'!$D$2:$D$2100,B117,'الرصيد الثابت'!$I$2:$I$2100)) ->  | E117: =IF(B117="","",SUMIF('الرصيد الثابت'!$D$2:$D$2100,B117,'الرصيد الثابت'!$J$2:$J$2100)) ->  | G117: 0 | M117: 0 | Q117: 0 | T117: 0 | AA117: بنك X اسود بايبينج 1cm
C118: =IF(B118="","",SUMIF('الرصيد الثابت'!$D$2:$D$2100,B118,'الرصيد الثابت'!$H$2:$H$2100)) ->  | D118: =IF(B118="","",SUMIF('الرصيد الثابت'!$D$2:$D$2100,B118,'الرصيد الثابت'!$I$2:$I$2100)) ->  | E118: =IF(B118="","",SUMIF('الرصيد الثابت'!$D$2:$D$2100,B118,'الرصيد الثابت'!$J$2:$J$2100)) ->  | G118: 0 | M118: 0 | Q118: 0 | T118: 0 | AA118: بنك X زيتي بايبينج 1cm
C119: =IF(B119="","",SUMIF('الرصيد الثابت'!$D$2:$D$2100,B119,'الرصيد الثابت'!$H$2:$H$2100)) ->  | D119: =IF(B119="","",SUMIF('الرصيد الثابت'!$D$2:$D$2100,B119,'الرصيد الثابت'!$I$2:$I$2100)) ->  | E119: =IF(B119="","",SUMIF('الرصيد الثابت'!$D$2:$D$2100,B119,'الرصيد الثابت'!$J$2:$J$2100)) ->  | G119: 0 | M119: 0 | Q119: 0 | T119: 0 | AA119: بينك ووفين فستون 1.3cm
C120: =IF(B120="","",SUMIF('الرصيد الثابت'!$D$2:$D$2100,B120,'الرصيد الثابت'!$H$2:$H$2100)) ->  | D120: =IF(B120="","",SUMIF('الرصيد الثابت'!$D$2:$D$2100,B120,'الرصيد الثابت'!$I$2:$I$2100)) ->  | E120: =IF(B120="","",SUMIF('الرصيد الثابت'!$D$2:$D$2100,B120,'الرصيد الثابت'!$J$2:$J$2100)) ->  | G120: 0 | M120: 0 | Q120: 0 | T120: 0 | AA120: بينك ووفين فستون 1cm
C121: =IF(B121="","",SUMIF('الرصيد الثابت'!$D$2:$D$2100,B121,'الرصيد الثابت'!$H$2:$H$2100)) ->  | D121: =IF(B121="","",SUMIF('الرصيد الثابت'!$D$2:$D$2100,B121,'الرصيد الثابت'!$I$2:$I$2100)) ->  | E121: =IF(B121="","",SUMIF('الرصيد الثابت'!$D$2:$D$2100,B121,'الرصيد الثابت'!$J$2:$J$2100)) ->  | G121: 0 | M121: 0 | Q121: 0 | T121: 0 | AA121: تركواز X ابيض بايبينج 1cm
C122: =IF(B122="","",SUMIF('الرصيد الثابت'!$D$2:$D$2100,B122,'الرصيد الثابت'!$H$2:$H$2100)) ->  | D122: =IF(B122="","",SUMIF('الرصيد الثابت'!$D$2:$D$2100,B122,'الرصيد الثابت'!$I$2:$I$2100)) ->  | E122: =IF(B122="","",SUMIF('الرصيد الثابت'!$D$2:$D$2100,B122,'الرصيد الثابت'!$J$2:$J$2100)) ->  | G122: 0 | M122: 0 | Q122: 0 | T122: 0 | AA122: تركواز X اسود بايبينج 1cm
C123: =IF(B123="","",SUMIF('الرصيد الثابت'!$D$2:$D$2100,B123,'الرصيد الثابت'!$H$2:$H$2100)) ->  | D123: =IF(B123="","",SUMIF('الرصيد الثابت'!$D$2:$D$2100,B123,'الرصيد الثابت'!$I$2:$I$2100)) ->  | E123: =IF(B123="","",SUMIF('الرصيد الثابت'!$D$2:$D$2100,B123,'الرصيد الثابت'!$J$2:$J$2100)) ->  | G123: 0 | M123: 0 | Q123: 0 | T123: 0 | AA123: رصاصي استريب كروشيه 3cm
C124: =IF(B124="","",SUMIF('الرصيد الثابت'!$D$2:$D$2100,B124,'الرصيد الثابت'!$H$2:$H$2100)) ->  | D124: =IF(B124="","",SUMIF('الرصيد الثابت'!$D$2:$D$2100,B124,'الرصيد الثابت'!$I$2:$I$2100)) ->  | E124: =IF(B124="","",SUMIF('الرصيد الثابت'!$D$2:$D$2100,B124,'الرصيد الثابت'!$J$2:$J$2100)) ->  | G124: 0 | M124: 0 | Q124: 0 | T124: 0 | AA124: زهري كورد مبطط
C125: =IF(B125="","",SUMIF('الرصيد الثابت'!$D$2:$D$2100,B125,'الرصيد الثابت'!$H$2:$H$2100)) ->  | D125: =IF(B125="","",SUMIF('الرصيد الثابت'!$D$2:$D$2100,B125,'الرصيد الثابت'!$I$2:$I$2100)) ->  | E125: =IF(B125="","",SUMIF('الرصيد الثابت'!$D$2:$D$2100,B125,'الرصيد الثابت'!$J$2:$J$2100)) ->  | G125: 0 | M125: 0 | Q125: 0 | T125: 0 | AA125: شاركول كورد مبطط
C126: =IF(B126="","",SUMIF('الرصيد الثابت'!$D$2:$D$2100,B126,'الرصيد الثابت'!$H$2:$H$2100)) ->  | D126: =IF(B126="","",SUMIF('الرصيد الثابت'!$D$2:$D$2100,B126,'الرصيد الثابت'!$I$2:$I$2100)) ->  | E126: =IF(B126="","",SUMIF('الرصيد الثابت'!$D$2:$D$2100,B126,'الرصيد الثابت'!$J$2:$J$2100)) ->  | G126: 0 | M126: 0 | Q126: 0 | T126: 0 | AA126: موف غامق كروشيه 1.6cm
C127: =IF(B127="","",SUMIF('الرصيد الثابت'!$D$2:$D$2100,B127,'الرصيد الثابت'!$H$2:$H$2100)) ->  | D127: =IF(B127="","",SUMIF('الرصيد الثابت'!$D$2:$D$2100,B127,'الرصيد الثابت'!$I$2:$I$2100)) ->  | E127: =IF(B127="","",SUMIF('الرصيد الثابت'!$D$2:$D$2100,B127,'الرصيد الثابت'!$J$2:$J$2100)) ->  | G127: 0 | M127: 0 | Q127: 0 | T127: 0
C128: =IF(B128="","",SUMIF('الرصيد الثابت'!$D$2:$D$2100,B128,'الرصيد الثابت'!$H$2:$H$2100)) ->  | D128: =IF(B128="","",SUMIF('الرصيد الثابت'!$D$2:$D$2100,B128,'الرصيد الثابت'!$I$2:$I$2100)) ->  | E128: =IF(B128="","",SUMIF('الرصيد الثابت'!$D$2:$D$2100,B128,'الرصيد الثابت'!$J$2:$J$2100)) ->  | G128: 0 | M128: 0 | Q128: 0 | T128: 0
C129: =IF(B129="","",SUMIF('الرصيد الثابت'!$D$2:$D$2100,B129,'الرصيد الثابت'!$H$2:$H$2100)) ->  | D129: =IF(B129="","",SUMIF('الرصيد الثابت'!$D$2:$D$2100,B129,'الرصيد الثابت'!$I$2:$I$2100)) ->  | E129: =IF(B129="","",SUMIF('الرصيد الثابت'!$D$2:$D$2100,B129,'الرصيد الثابت'!$J$2:$J$2100)) ->  | G129: 0 | M129: 0 | Q129: 0 | T129: 0
C130: =IF(B130="","",SUMIF('الرصيد الثابت'!$D$2:$D$2100,B130,'الرصيد الثابت'!$H$2:$H$2100)) ->  | D130: =IF(B130="","",SUMIF('الرصيد الثابت'!$D$2:$D$2100,B130,'الرصيد الثابت'!$I$2:$I$2100)) ->  | E130: =IF(B130="","",SUMIF('الرصيد الثابت'!$D$2:$D$2100,B130,'الرصيد الثابت'!$J$2:$J$2100)) ->  | G130: 0 | M130: 0 | Q130: 0 | T130: 0
C131: =IF(B131="","",SUMIF('الرصيد الثابت'!$D$2:$D$2100,B131,'الرصيد الثابت'!$H$2:$H$2100)) ->  | D131: =IF(B131="","",SUMIF('الرصيد الثابت'!$D$2:$D$2100,B131,'الرصيد الثابت'!$I$2:$I$2100)) ->  | E131: =IF(B131="","",SUMIF('الرصيد الثابت'!$D$2:$D$2100,B131,'الرصيد الثابت'!$J$2:$J$2100)) ->  | G131: 0 | M131: =SUM(N131*L131) -> 0 | Q131: 0 | T131: 0
C132: =IF(B132="","",SUMIF('الرصيد الثابت'!$D$2:$D$2100,B132,'الرصيد الثابت'!$H$2:$H$2100)) ->  | D132: =IF(B132="","",SUMIF('الرصيد الثابت'!$D$2:$D$2100,B132,'الرصيد الثابت'!$I$2:$I$2100)) ->  | E132: =IF(B132="","",SUMIF('الرصيد الثابت'!$D$2:$D$2100,B132,'الرصيد الثابت'!$J$2:$J$2100)) ->  | G132: =SUM(H132*F132) -> 0 | M132: 0 | Q132: =SUM(F132-L132) -> 0 | T132: 0
C133: =IF(B133="","",SUMIF('الرصيد الثابت'!$D$2:$D$2100,B133,'الرصيد الثابت'!$H$2:$H$2100)) ->  | D133: =IF(B133="","",SUMIF('الرصيد الثابت'!$D$2:$D$2100,B133,'الرصيد الثابت'!$I$2:$I$2100)) ->  | E133: =IF(B133="","",SUMIF('الرصيد الثابت'!$D$2:$D$2100,B133,'الرصيد الثابت'!$J$2:$J$2100)) ->  | G133: 0 | M133: 0 | Q133: 0 | T133: 0
C134: =IF(B134="","",SUMIF('الرصيد الثابت'!$D$2:$D$2100,B134,'الرصيد الثابت'!$H$2:$H$2100)) ->  | D134: =IF(B134="","",SUMIF('الرصيد الثابت'!$D$2:$D$2100,B134,'الرصيد الثابت'!$I$2:$I$2100)) ->  | E134: =IF(B134="","",SUMIF('الرصيد الثابت'!$D$2:$D$2100,B134,'الرصيد الثابت'!$J$2:$J$2100)) ->  | G134: 0 | M134: 0 | Q134: 0 | T134: 0
C135: =IF(B135="","",SUMIF('الرصيد الثابت'!$D$2:$D$2100,B135,'الرصيد الثابت'!$H$2:$H$2100)) ->  | D135: =IF(B135="","",SUMIF('الرصيد الثابت'!$D$2:$D$2100,B135,'الرصيد الثابت'!$I$2:$I$2100)) ->  | E135: =IF(B135="","",SUMIF('الرصيد الثابت'!$D$2:$D$2100,B135,'الرصيد الثابت'!$J$2:$J$2100)) ->  | G135: 0 | M135: 0 | Q135: 0 | T135: =SUM(U135*S135) -> 0
C136: =IF(B136="","",SUMIF('الرصيد الثابت'!$D$2:$D$2100,B136,'الرصيد الثابت'!$H$2:$H$2100)) ->  | D136: =IF(B136="","",SUMIF('الرصيد الثابت'!$D$2:$D$2100,B136,'الرصيد الثابت'!$I$2:$I$2100)) ->  | E136: =IF(B136="","",SUMIF('الرصيد الثابت'!$D$2:$D$2100,B136,'الرصيد الثابت'!$J$2:$J$2100)) ->  | G136: 0 | M136: 0 | Q136: 0 | T136: 0
C137: =IF(B137="","",SUMIF('الرصيد الثابت'!$D$2:$D$2100,B137,'الرصيد الثابت'!$H$2:$H$2100)) ->  | D137: =IF(B137="","",SUMIF('الرصيد الثابت'!$D$2:$D$2100,B137,'الرصيد الثابت'!$I$2:$I$2100)) ->  | E137: =IF(B137="","",SUMIF('الرصيد الثابت'!$D$2:$D$2100,B137,'الرصيد الثابت'!$J$2:$J$2100)) ->  | G137: 0 | M137: 0 | Q137: 0 | T137: 0
C138: =IF(B138="","",SUMIF('الرصيد الثابت'!$D$2:$D$2100,B138,'الرصيد الثابت'!$H$2:$H$2100)) ->  | D138: =IF(B138="","",SUMIF('الرصيد الثابت'!$D$2:$D$2100,B138,'الرصيد الثابت'!$I$2:$I$2100)) ->  | E138: =IF(B138="","",SUMIF('الرصيد الثابت'!$D$2:$D$2100,B138,'الرصيد الثابت'!$J$2:$J$2100)) ->  | G138: 0 | M138: 0 | Q138: 0 | T138: 0
C139: =IF(B139="","",SUMIF('الرصيد الثابت'!$D$2:$D$2100,B139,'الرصيد الثابت'!$H$2:$H$2100)) ->  | D139: =IF(B139="","",SUMIF('الرصيد الثابت'!$D$2:$D$2100,B139,'الرصيد الثابت'!$I$2:$I$2100)) ->  | E139: =IF(B139="","",SUMIF('الرصيد الثابت'!$D$2:$D$2100,B139,'الرصيد الثابت'!$J$2:$J$2100)) ->  | G139: 0 | M139: 0 | Q139: 0 | T139: 0
C140: =IF(B140="","",SUMIF('الرصيد الثابت'!$D$2:$D$2100,B140,'الرصيد الثابت'!$H$2:$H$2100)) ->  | D140: =IF(B140="","",SUMIF('الرصيد الثابت'!$D$2:$D$2100,B140,'الرصيد الثابت'!$I$2:$I$2100)) ->  | E140: =IF(B140="","",SUMIF('الرصيد الثابت'!$D$2:$D$2100,B140,'الرصيد الثابت'!$J$2:$J$2100)) ->  | G140: 0 | M140: 0 | Q140: 0 | T140: 0
C141: =IF(B141="","",SUMIF('الرصيد الثابت'!$D$2:$D$2100,B141,'الرصيد الثابت'!$H$2:$H$2100)) ->  | D141: =IF(B141="","",SUMIF('الرصيد الثابت'!$D$2:$D$2100,B141,'الرصيد الثابت'!$I$2:$I$2100)) ->  | E141: =IF(B141="","",SUMIF('الرصيد الثابت'!$D$2:$D$2100,B141,'الرصيد الثابت'!$J$2:$J$2100)) ->  | G141: 0 | M141: 0 | Q141: 0 | T141: 0
C142: =IF(B142="","",SUMIF('الرصيد الثابت'!$D$2:$D$2100,B142,'الرصيد الثابت'!$H$2:$H$2100)) ->  | D142: =IF(B142="","",SUMIF('الرصيد الثابت'!$D$2:$D$2100,B142,'الرصيد الثابت'!$I$2:$I$2100)) ->  | E142: =IF(B142="","",SUMIF('الرصيد الثابت'!$D$2:$D$2100,B142,'الرصيد الثابت'!$J$2:$J$2100)) ->  | G142: 0 | M142: 0 | Q142: 0 | T142: 0
C143: =IF(B143="","",SUMIF('الرصيد الثابت'!$D$2:$D$2100,B143,'الرصيد الثابت'!$H$2:$H$2100)) ->  | D143: =IF(B143="","",SUMIF('الرصيد الثابت'!$D$2:$D$2100,B143,'الرصيد الثابت'!$I$2:$I$2100)) ->  | E143: =IF(B143="","",SUMIF('الرصيد الثابت'!$D$2:$D$2100,B143,'الرصيد الثابت'!$J$2:$J$2100)) ->  | G143: 0 | M143: 0 | Q143: 0 | T143: 0
C144: =IF(B144="","",SUMIF('الرصيد الثابت'!$D$2:$D$2100,B144,'الرصيد الثابت'!$H$2:$H$2100)) ->  | D144: =IF(B144="","",SUMIF('الرصيد الثابت'!$D$2:$D$2100,B144,'الرصيد الثابت'!$I$2:$I$2100)) ->  | E144: =IF(B144="","",SUMIF('الرصيد الثابت'!$D$2:$D$2100,B144,'الرصيد الثابت'!$J$2:$J$2100)) ->  | G144: 0 | M144: 0 | Q144: 0 | T144: 0
C145: =IF(B145="","",SUMIF('الرصيد الثابت'!$D$2:$D$2100,B145,'الرصيد الثابت'!$H$2:$H$2100)) ->  | D145: =IF(B145="","",SUMIF('الرصيد الثابت'!$D$2:$D$2100,B145,'الرصيد الثابت'!$I$2:$I$2100)) ->  | E145: =IF(B145="","",SUMIF('الرصيد الثابت'!$D$2:$D$2100,B145,'الرصيد الثابت'!$J$2:$J$2100)) ->  | G145: 0 | M145: 0 | Q145: 0 | T145: 0
C146: =IF(B146="","",SUMIF('الرصيد الثابت'!$D$2:$D$2100,B146,'الرصيد الثابت'!$H$2:$H$2100)) ->  | D146: =IF(B146="","",SUMIF('الرصيد الثابت'!$D$2:$D$2100,B146,'الرصيد الثابت'!$I$2:$I$2100)) ->  | E146: =IF(B146="","",SUMIF('الرصيد الثابت'!$D$2:$D$2100,B146,'الرصيد الثابت'!$J$2:$J$2100)) ->  | G146: 0 | M146: 0 | Q146: 0 | T146: 0
C147: =IF(B147="","",SUMIF('الرصيد الثابت'!$D$2:$D$2100,B147,'الرصيد الثابت'!$H$2:$H$2100)) ->  | D147: =IF(B147="","",SUMIF('الرصيد الثابت'!$D$2:$D$2100,B147,'الرصيد الثابت'!$I$2:$I$2100)) ->  | E147: =IF(B147="","",SUMIF('الرصيد الثابت'!$D$2:$D$2100,B147,'الرصيد الثابت'!$J$2:$J$2100)) ->  | G147: 0 | M147: 0 | Q147: 0 | T147: 0
C148: =IF(B148="","",SUMIF('الرصيد الثابت'!$D$2:$D$2100,B148,'الرصيد الثابت'!$H$2:$H$2100)) ->  | D148: =IF(B148="","",SUMIF('الرصيد الثابت'!$D$2:$D$2100,B148,'الرصيد الثابت'!$I$2:$I$2100)) ->  | E148: =IF(B148="","",SUMIF('الرصيد الثابت'!$D$2:$D$2100,B148,'الرصيد الثابت'!$J$2:$J$2100)) ->  | G148: 0 | M148: 0 | Q148: 0 | T148: 0
C149: =IF(B149="","",SUMIF('الرصيد الثابت'!$D$2:$D$2100,B149,'الرصيد الثابت'!$H$2:$H$2100)) ->  | D149: =IF(B149="","",SUMIF('الرصيد الثابت'!$D$2:$D$2100,B149,'الرصيد الثابت'!$I$2:$I$2100)) ->  | E149: =IF(B149="","",SUMIF('الرصيد الثابت'!$D$2:$D$2100,B149,'الرصيد الثابت'!$J$2:$J$2100)) ->  | G149: 0 | M149: 0 | Q149: 0 | T149: 0
C150: =IF(B150="","",SUMIF('الرصيد الثابت'!$D$2:$D$2100,B150,'الرصيد الثابت'!$H$2:$H$2100)) ->  | D150: =IF(B150="","",SUMIF('الرصيد الثابت'!$D$2:$D$2100,B150,'الرصيد الثابت'!$I$2:$I$2100)) ->  | E150: =IF(B150="","",SUMIF('الرصيد الثابت'!$D$2:$D$2100,B150,'الرصيد الثابت'!$J$2:$J$2100)) ->  | G150: 0 | M150: 0 | Q150: 0 | T150: 0
C151: =IF(B151="","",SUMIF('الرصيد الثابت'!$D$2:$D$2100,B151,'الرصيد الثابت'!$H$2:$H$2100)) ->  | D151: =IF(B151="","",SUMIF('الرصيد الثابت'!$D$2:$D$2100,B151,'الرصيد الثابت'!$I$2:$I$2100)) ->  | E151: =IF(B151="","",SUMIF('الرصيد الثابت'!$D$2:$D$2100,B151,'الرصيد الثابت'!$J$2:$J$2100)) ->  | G151: 0 | M151: 0 | Q151: 0 | T151: 0
C152: =IF(B152="","",SUMIF('الرصيد الثابت'!$D$2:$D$2100,B152,'الرصيد الثابت'!$H$2:$H$2100)) ->  | D152: =IF(B152="","",SUMIF('الرصيد الثابت'!$D$2:$D$2100,B152,'الرصيد الثابت'!$I$2:$I$2100)) ->  | E152: =IF(B152="","",SUMIF('الرصيد الثابت'!$D$2:$D$2100,B152,'الرصيد الثابت'!$J$2:$J$2100)) ->  | G152: 0 | M152: 0 | Q152: =SUM(#REF!-#REF!) ->  | T152: 0
C153: =IF(B153="","",SUMIF('الرصيد الثابت'!$D$2:$D$2100,B153,'الرصيد الثابت'!$H$2:$H$2100)) ->  | D153: =IF(B153="","",SUMIF('الرصيد الثابت'!$D$2:$D$2100,B153,'الرصيد الثابت'!$I$2:$I$2100)) ->  | E153: =IF(B153="","",SUMIF('الرصيد الثابت'!$D$2:$D$2100,B153,'الرصيد الثابت'!$J$2:$J$2100)) ->  | G153: 0 | M153: 0 | Q153: 0 | T153: 0
C154: =IF(B154="","",SUMIF('الرصيد الثابت'!$D$2:$D$2100,B154,'الرصيد الثابت'!$H$2:$H$2100)) ->  | D154: =IF(B154="","",SUMIF('الرصيد الثابت'!$D$2:$D$2100,B154,'الرصيد الثابت'!$I$2:$I$2100)) ->  | E154: =IF(B154="","",SUMIF('الرصيد الثابت'!$D$2:$D$2100,B154,'الرصيد الثابت'!$J$2:$J$2100)) ->  | G154: 0 | M154: 0 | Q154: 0 | T154: 0
C155: =IF(B155="","",SUMIF('الرصيد الثابت'!$D$2:$D$2100,B155,'الرصيد الثابت'!$H$2:$H$2100)) ->  | D155: =IF(B155="","",SUMIF('الرصيد الثابت'!$D$2:$D$2100,B155,'الرصيد الثابت'!$I$2:$I$2100)) ->  | E155: =IF(B155="","",SUMIF('الرصيد الثابت'!$D$2:$D$2100,B155,'الرصيد الثابت'!$J$2:$J$2100)) ->  | G155: 0 | M155: 0 | Q155: 0 | T155: 0
C156: =IF(B156="","",SUMIF('الرصيد الثابت'!$D$2:$D$2100,B156,'الرصيد الثابت'!$H$2:$H$2100)) ->  | D156: =IF(B156="","",SUMIF('الرصيد الثابت'!$D$2:$D$2100,B156,'الرصيد الثابت'!$I$2:$I$2100)) ->  | E156: =IF(B156="","",SUMIF('الرصيد الثابت'!$D$2:$D$2100,B156,'الرصيد الثابت'!$J$2:$J$2100)) ->  | G156: 0 | M156: 0 | Q156: 0 | T156: 0
C157: =IF(B157="","",SUMIF('الرصيد الثابت'!$D$2:$D$2100,B157,'الرصيد الثابت'!$H$2:$H$2100)) ->  | D157: =IF(B157="","",SUMIF('الرصيد الثابت'!$D$2:$D$2100,B157,'الرصيد الثابت'!$I$2:$I$2100)) ->  | E157: =IF(B157="","",SUMIF('الرصيد الثابت'!$D$2:$D$2100,B157,'الرصيد الثابت'!$J$2:$J$2100)) ->  | G157: 0 | M157: 0 | Q157: 0 | T157: 0
C158: =IF(B158="","",SUMIF('الرصيد الثابت'!$D$2:$D$2100,B158,'الرصيد الثابت'!$H$2:$H$2100)) ->  | D158: =IF(B158="","",SUMIF('الرصيد الثابت'!$D$2:$D$2100,B158,'الرصيد الثابت'!$I$2:$I$2100)) ->  | E158: =IF(B158="","",SUMIF('الرصيد الثابت'!$D$2:$D$2100,B158,'الرصيد الثابت'!$J$2:$J$2100)) ->  | G158: 0 | M158: 0 | Q158: 0 | T158: 0
C159: =IF(B159="","",SUMIF('الرصيد الثابت'!$D$2:$D$2100,B159,'الرصيد الثابت'!$H$2:$H$2100)) ->  | D159: =IF(B159="","",SUMIF('الرصيد الثابت'!$D$2:$D$2100,B159,'الرصيد الثابت'!$I$2:$I$2100)) ->  | E159: =IF(B159="","",SUMIF('الرصيد الثابت'!$D$2:$D$2100,B159,'الرصيد الثابت'!$J$2:$J$2100)) ->  | G159: 0 | M159: 0 | Q159: 0 | T159: 0
C160: =IF(B160="","",SUMIF('الرصيد الثابت'!$D$2:$D$2100,B160,'الرصيد الثابت'!$H$2:$H$2100)) ->  | D160: =IF(B160="","",SUMIF('الرصيد الثابت'!$D$2:$D$2100,B160,'الرصيد الثابت'!$I$2:$I$2100)) ->  | E160: =IF(B160="","",SUMIF('الرصيد الثابت'!$D$2:$D$2100,B160,'الرصيد الثابت'!$J$2:$J$2100)) ->  | G160: 0 | M160: 0 | Q160: 0 | T160: 0
C161: =IF(B161="","",SUMIF('الرصيد الثابت'!$D$2:$D$2100,B161,'الرصيد الثابت'!$H$2:$H$2100)) ->  | D161: =IF(B161="","",SUMIF('الرصيد الثابت'!$D$2:$D$2100,B161,'الرصيد الثابت'!$I$2:$I$2100)) ->  | E161: =IF(B161="","",SUMIF('الرصيد الثابت'!$D$2:$D$2100,B161,'الرصيد الثابت'!$J$2:$J$2100)) ->  | G161: 0 | M161: 0 | Q161: 0 | T161: 0
C162: =IF(B162="","",SUMIF('الرصيد الثابت'!$D$2:$D$2100,B162,'الرصيد الثابت'!$H$2:$H$2100)) ->  | D162: =IF(B162="","",SUMIF('الرصيد الثابت'!$D$2:$D$2100,B162,'الرصيد الثابت'!$I$2:$I$2100)) ->  | E162: =IF(B162="","",SUMIF('الرصيد الثابت'!$D$2:$D$2100,B162,'الرصيد الثابت'!$J$2:$J$2100)) ->  | G162: 0 | M162: 0 | Q162: 0 | T162: 0
C163: =IF(B163="","",SUMIF('الرصيد الثابت'!$D$2:$D$2100,B163,'الرصيد الثابت'!$H$2:$H$2100)) ->  | D163: =IF(B163="","",SUMIF('الرصيد الثابت'!$D$2:$D$2100,B163,'الرصيد الثابت'!$I$2:$I$2100)) ->  | E163: =IF(B163="","",SUMIF('الرصيد الثابت'!$D$2:$D$2100,B163,'الرصيد الثابت'!$J$2:$J$2100)) ->  | G163: 0 | M163: 0 | Q163: 0 | T163: 0
C164: =IF(B164="","",SUMIF('الرصيد الثابت'!$D$2:$D$2100,B164,'الرصيد الثابت'!$H$2:$H$2100)) ->  | D164: =IF(B164="","",SUMIF('الرصيد الثابت'!$D$2:$D$2100,B164,'الرصيد الثابت'!$I$2:$I$2100)) ->  | E164: =IF(B164="","",SUMIF('الرصيد الثابت'!$D$2:$D$2100,B164,'الرصيد الثابت'!$J$2:$J$2100)) ->  | G164: 0 | M164: 0 | Q164: 0 | T164: 0
C165: =IF(B165="","",SUMIF('الرصيد الثابت'!$D$2:$D$2100,B165,'الرصيد الثابت'!$H$2:$H$2100)) ->  | D165: =IF(B165="","",SUMIF('الرصيد الثابت'!$D$2:$D$2100,B165,'الرصيد الثابت'!$I$2:$I$2100)) ->  | E165: =IF(B165="","",SUMIF('الرصيد الثابت'!$D$2:$D$2100,B165,'الرصيد الثابت'!$J$2:$J$2100)) ->  | G165: 0 | M165: 0 | Q165: 0 | T165: 0
C166: =IF(B166="","",SUMIF('الرصيد الثابت'!$D$2:$D$2100,B166,'الرصيد الثابت'!$H$2:$H$2100)) ->  | D166: =IF(B166="","",SUMIF('الرصيد الثابت'!$D$2:$D$2100,B166,'الرصيد الثابت'!$I$2:$I$2100)) ->  | E166: =IF(B166="","",SUMIF('الرصيد الثابت'!$D$2:$D$2100,B166,'الرصيد الثابت'!$J$2:$J$2100)) ->  | G166: 0 | M166: 0 | Q166: 0 | T166: 0
C167: =IF(B167="","",SUMIF('الرصيد الثابت'!$D$2:$D$2100,B167,'الرصيد الثابت'!$H$2:$H$2100)) ->  | D167: =IF(B167="","",SUMIF('الرصيد الثابت'!$D$2:$D$2100,B167,'الرصيد الثابت'!$I$2:$I$2100)) ->  | E167: =IF(B167="","",SUMIF('الرصيد الثابت'!$D$2:$D$2100,B167,'الرصيد الثابت'!$J$2:$J$2100)) ->  | G167: 0 | M167: 0 | Q167: 0 | T167: 0
C168: =IF(B168="","",SUMIF('الرصيد الثابت'!$D$2:$D$2100,B168,'الرصيد الثابت'!$H$2:$H$2100)) ->  | D168: =IF(B168="","",SUMIF('الرصيد الثابت'!$D$2:$D$2100,B168,'الرصيد الثابت'!$I$2:$I$2100)) ->  | E168: =IF(B168="","",SUMIF('الرصيد الثابت'!$D$2:$D$2100,B168,'الرصيد الثابت'!$J$2:$J$2100)) ->  | G168: 0 | M168: 0 | Q168: 0 | T168: 0
C169: =IF(B169="","",SUMIF('الرصيد الثابت'!$D$2:$D$2100,B169,'الرصيد الثابت'!$H$2:$H$2100)) ->  | D169: =IF(B169="","",SUMIF('الرصيد الثابت'!$D$2:$D$2100,B169,'الرصيد الثابت'!$I$2:$I$2100)) ->  | E169: =IF(B169="","",SUMIF('الرصيد الثابت'!$D$2:$D$2100,B169,'الرصيد الثابت'!$J$2:$J$2100)) ->  | G169: 0 | M169: 0 | Q169: 0 | T169: 0
C170: =IF(B170="","",SUMIF('الرصيد الثابت'!$D$2:$D$2100,B170,'الرصيد الثابت'!$H$2:$H$2100)) ->  | D170: =IF(B170="","",SUMIF('الرصيد الثابت'!$D$2:$D$2100,B170,'الرصيد الثابت'!$I$2:$I$2100)) ->  | E170: =IF(B170="","",SUMIF('الرصيد الثابت'!$D$2:$D$2100,B170,'الرصيد الثابت'!$J$2:$J$2100)) ->  | G170: 0 | M170: 0 | Q170: 0 | T170: 0
C171: =IF(B171="","",SUMIF('الرصيد الثابت'!$D$2:$D$2100,B171,'الرصيد الثابت'!$H$2:$H$2100)) ->  | D171: =IF(B171="","",SUMIF('الرصيد الثابت'!$D$2:$D$2100,B171,'الرصيد الثابت'!$I$2:$I$2100)) ->  | E171: =IF(B171="","",SUMIF('الرصيد الثابت'!$D$2:$D$2100,B171,'الرصيد الثابت'!$J$2:$J$2100)) ->  | G171: 0 | M171: 0 | Q171: 0 | T171: 0
C172: =IF(B172="","",SUMIF('الرصيد الثابت'!$D$2:$D$2100,B172,'الرصيد الثابت'!$H$2:$H$2100)) ->  | D172: =IF(B172="","",SUMIF('الرصيد الثابت'!$D$2:$D$2100,B172,'الرصيد الثابت'!$I$2:$I$2100)) ->  | E172: =IF(B172="","",SUMIF('الرصيد الثابت'!$D$2:$D$2100,B172,'الرصيد الثابت'!$J$2:$J$2100)) ->  | G172: 0 | M172: 0 | Q172: 0 | T172: 0
C173: =IF(B173="","",SUMIF('الرصيد الثابت'!$D$2:$D$2100,B173,'الرصيد الثابت'!$H$2:$H$2100)) ->  | D173: =IF(B173="","",SUMIF('الرصيد الثابت'!$D$2:$D$2100,B173,'الرصيد الثابت'!$I$2:$I$2100)) ->  | E173: =IF(B173="","",SUMIF('الرصيد الثابت'!$D$2:$D$2100,B173,'الرصيد الثابت'!$J$2:$J$2100)) ->  | G173: 0 | M173: 0 | Q173: 0 | T173: 0
C174: =IF(B174="","",SUMIF('الرصيد الثابت'!$D$2:$D$2100,B174,'الرصيد الثابت'!$H$2:$H$2100)) ->  | D174: =IF(B174="","",SUMIF('الرصيد الثابت'!$D$2:$D$2100,B174,'الرصيد الثابت'!$I$2:$I$2100)) ->  | E174: =IF(B174="","",SUMIF('الرصيد الثابت'!$D$2:$D$2100,B174,'الرصيد الثابت'!$J$2:$J$2100)) ->  | G174: 0 | M174: 0 | Q174: 0 | T174: 0
C175: =IF(B175="","",SUMIF('الرصيد الثابت'!$D$2:$D$2100,B175,'الرصيد الثابت'!$H$2:$H$2100)) ->  | D175: =IF(B175="","",SUMIF('الرصيد الثابت'!$D$2:$D$2100,B175,'الرصيد الثابت'!$I$2:$I$2100)) ->  | E175: =IF(B175="","",SUMIF('الرصيد الثابت'!$D$2:$D$2100,B175,'الرصيد الثابت'!$J$2:$J$2100)) ->  | G175: 0 | M175: 0 | Q175: 0 | T175: 0
C176: =IF(B176="","",SUMIF('الرصيد الثابت'!$D$2:$D$2100,B176,'الرصيد الثابت'!$H$2:$H$2100)) ->  | D176: =IF(B176="","",SUMIF('الرصيد الثابت'!$D$2:$D$2100,B176,'الرصيد الثابت'!$I$2:$I$2100)) ->  | E176: =IF(B176="","",SUMIF('الرصيد الثابت'!$D$2:$D$2100,B176,'الرصيد الثابت'!$J$2:$J$2100)) ->  | G176: 0 | M176: 0 | Q176: 0 | T176: 0
C177: =IF(B177="","",SUMIF('الرصيد الثابت'!$D$2:$D$2100,B177,'الرصيد الثابت'!$H$2:$H$2100)) ->  | D177: =IF(B177="","",SUMIF('الرصيد الثابت'!$D$2:$D$2100,B177,'الرصيد الثابت'!$I$2:$I$2100)) ->  | E177: =IF(B177="","",SUMIF('الرصيد الثابت'!$D$2:$D$2100,B177,'الرصيد الثابت'!$J$2:$J$2100)) ->  | G177: 0 | M177: 0 | Q177: 0 | T177: 0
C178: =IF(B178="","",SUMIF('الرصيد الثابت'!$D$2:$D$2100,B178,'الرصيد الثابت'!$H$2:$H$2100)) ->  | D178: =IF(B178="","",SUMIF('الرصيد الثابت'!$D$2:$D$2100,B178,'الرصيد الثابت'!$I$2:$I$2100)) ->  | E178: =IF(B178="","",SUMIF('الرصيد الثابت'!$D$2:$D$2100,B178,'الرصيد الثابت'!$J$2:$J$2100)) ->  | G178: 0 | M178: 0 | Q178: 0 | T178: 0
C179: =IF(B179="","",SUMIF('الرصيد الثابت'!$D$2:$D$2100,B179,'الرصيد الثابت'!$H$2:$H$2100)) ->  | D179: =IF(B179="","",SUMIF('الرصيد الثابت'!$D$2:$D$2100,B179,'الرصيد الثابت'!$I$2:$I$2100)) ->  | E179: =IF(B179="","",SUMIF('الرصيد الثابت'!$D$2:$D$2100,B179,'الرصيد الثابت'!$J$2:$J$2100)) ->  | G179: 0 | M179: 0 | Q179: 0 | T179: 0
C180: =IF(B180="","",SUMIF('الرصيد الثابت'!$D$2:$D$2100,B180,'الرصيد الثابت'!$H$2:$H$2100)) ->  | D180: =IF(B180="","",SUMIF('الرصيد الثابت'!$D$2:$D$2100,B180,'الرصيد الثابت'!$I$2:$I$2100)) ->  | E180: =IF(B180="","",SUMIF('الرصيد الثابت'!$D$2:$D$2100,B180,'الرصيد الثابت'!$J$2:$J$2100)) ->  | G180: 0 | M180: 0 | Q180: 0 | T180: 0
C181: =IF(B181="","",SUMIF('الرصيد الثابت'!$D$2:$D$2100,B181,'الرصيد الثابت'!$H$2:$H$2100)) ->  | D181: =IF(B181="","",SUMIF('الرصيد الثابت'!$D$2:$D$2100,B181,'الرصيد الثابت'!$I$2:$I$2100)) ->  | E181: =IF(B181="","",SUMIF('الرصيد الثابت'!$D$2:$D$2100,B181,'الرصيد الثابت'!$J$2:$J$2100)) ->  | G181: 0 | M181: 0 | Q181: 0 | T181: 0
C182: =IF(B182="","",SUMIF('الرصيد الثابت'!$D$2:$D$2100,B182,'الرصيد الثابت'!$H$2:$H$2100)) ->  | D182: =IF(B182="","",SUMIF('الرصيد الثابت'!$D$2:$D$2100,B182,'الرصيد الثابت'!$I$2:$I$2100)) ->  | E182: =IF(B182="","",SUMIF('الرصيد الثابت'!$D$2:$D$2100,B182,'الرصيد الثابت'!$J$2:$J$2100)) ->  | G182: 0 | M182: 0 | Q182: 0 | T182: 0
C183: =IF(B183="","",SUMIF('الرصيد الثابت'!$D$2:$D$2100,B183,'الرصيد الثابت'!$H$2:$H$2100)) ->  | D183: =IF(B183="","",SUMIF('الرصيد الثابت'!$D$2:$D$2100,B183,'الرصيد الثابت'!$I$2:$I$2100)) ->  | E183: =IF(B183="","",SUMIF('الرصيد الثابت'!$D$2:$D$2100,B183,'الرصيد الثابت'!$J$2:$J$2100)) ->  | G183: 0 | M183: 0 | Q183: 0 | T183: 0
C184: =IF(B184="","",SUMIF('الرصيد الثابت'!$D$2:$D$2100,B184,'الرصيد الثابت'!$H$2:$H$2100)) ->  | D184: =IF(B184="","",SUMIF('الرصيد الثابت'!$D$2:$D$2100,B184,'الرصيد الثابت'!$I$2:$I$2100)) ->  | E184: =IF(B184="","",SUMIF('الرصيد الثابت'!$D$2:$D$2100,B184,'الرصيد الثابت'!$J$2:$J$2100)) ->  | G184: 0 | M184: 0 | Q184: 0 | T184: 0
C185: =IF(B185="","",SUMIF('الرصيد الثابت'!$D$2:$D$2100,B185,'الرصيد الثابت'!$H$2:$H$2100)) ->  | D185: =IF(B185="","",SUMIF('الرصيد الثابت'!$D$2:$D$2100,B185,'الرصيد الثابت'!$I$2:$I$2100)) ->  | E185: =IF(B185="","",SUMIF('الرصيد الثابت'!$D$2:$D$2100,B185,'الرصيد الثابت'!$J$2:$J$2100)) ->  | G185: 0 | M185: 0 | Q185: 0 | T185: 0
C186: =IF(B186="","",SUMIF('الرصيد الثابت'!$D$2:$D$2100,B186,'الرصيد الثابت'!$H$2:$H$2100)) ->  | D186: =IF(B186="","",SUMIF('الرصيد الثابت'!$D$2:$D$2100,B186,'الرصيد الثابت'!$I$2:$I$2100)) ->  | E186: =IF(B186="","",SUMIF('الرصيد الثابت'!$D$2:$D$2100,B186,'الرصيد الثابت'!$J$2:$J$2100)) ->  | G186: 0 | M186: 0 | Q186: 0 | T186: 0
C187: =IF(B187="","",SUMIF('الرصيد الثابت'!$D$2:$D$2100,B187,'الرصيد الثابت'!$H$2:$H$2100)) ->  | D187: =IF(B187="","",SUMIF('الرصيد الثابت'!$D$2:$D$2100,B187,'الرصيد الثابت'!$I$2:$I$2100)) ->  | E187: =IF(B187="","",SUMIF('الرصيد الثابت'!$D$2:$D$2100,B187,'الرصيد الثابت'!$J$2:$J$2100)) ->  | G187: 0 | M187: 0 | Q187: 0 | T187: 0
C188: =IF(B188="","",SUMIF('الرصيد الثابت'!$D$2:$D$2100,B188,'الرصيد الثابت'!$H$2:$H$2100)) ->  | D188: =IF(B188="","",SUMIF('الرصيد الثابت'!$D$2:$D$2100,B188,'الرصيد الثابت'!$I$2:$I$2100)) ->  | E188: =IF(B188="","",SUMIF('الرصيد الثابت'!$D$2:$D$2100,B188,'الرصيد الثابت'!$J$2:$J$2100)) ->  | G188: 0 | M188: 0 | Q188: 0 | T188: 0
C189: =IF(B189="","",SUMIF('الرصيد الثابت'!$D$2:$D$2100,B189,'الرصيد الثابت'!$H$2:$H$2100)) ->  | D189: =IF(B189="","",SUMIF('الرصيد الثابت'!$D$2:$D$2100,B189,'الرصيد الثابت'!$I$2:$I$2100)) ->  | E189: =IF(B189="","",SUMIF('الرصيد الثابت'!$D$2:$D$2100,B189,'الرصيد الثابت'!$J$2:$J$2100)) ->  | G189: 0 | M189: 0 | Q189: 0 | T189: 0
C190: =IF(B190="","",SUMIF('الرصيد الثابت'!$D$2:$D$2100,B190,'الرصيد الثابت'!$H$2:$H$2100)) ->  | D190: =IF(B190="","",SUMIF('الرصيد الثابت'!$D$2:$D$2100,B190,'الرصيد الثابت'!$I$2:$I$2100)) ->  | E190: =IF(B190="","",SUMIF('الرصيد الثابت'!$D$2:$D$2100,B190,'الرصيد الثابت'!$J$2:$J$2100)) ->  | G190: 0 | M190: 0 | Q190: 0 | T190: 0
C191: =IF(B191="","",SUMIF('الرصيد الثابت'!$D$2:$D$2100,B191,'الرصيد الثابت'!$H$2:$H$2100)) ->  | D191: =IF(B191="","",SUMIF('الرصيد الثابت'!$D$2:$D$2100,B191,'الرصيد الثابت'!$I$2:$I$2100)) ->  | E191: =IF(B191="","",SUMIF('الرصيد الثابت'!$D$2:$D$2100,B191,'الرصيد الثابت'!$J$2:$J$2100)) ->  | G191: 0 | M191: 0 | Q191: 0 | T191: 0
C192: =IF(B192="","",SUMIF('الرصيد الثابت'!$D$2:$D$2100,B192,'الرصيد الثابت'!$H$2:$H$2100)) ->  | D192: =IF(B192="","",SUMIF('الرصيد الثابت'!$D$2:$D$2100,B192,'الرصيد الثابت'!$I$2:$I$2100)) ->  | E192: =IF(B192="","",SUMIF('الرصيد الثابت'!$D$2:$D$2100,B192,'الرصيد الثابت'!$J$2:$J$2100)) ->  | G192: 0 | M192: 0 | Q192: 0 | T192: 0
C193: =IF(B193="","",SUMIF('الرصيد الثابت'!$D$2:$D$2100,B193,'الرصيد الثابت'!$H$2:$H$2100)) ->  | D193: =IF(B193="","",SUMIF('الرصيد الثابت'!$D$2:$D$2100,B193,'الرصيد الثابت'!$I$2:$I$2100)) ->  | E193: =IF(B193="","",SUMIF('الرصيد الثابت'!$D$2:$D$2100,B193,'الرصيد الثابت'!$J$2:$J$2100)) ->  | G193: 0 | M193: 0 | Q193: 0 | T193: 0
C194: =IF(B194="","",SUMIF('الرصيد الثابت'!$D$2:$D$2100,B194,'الرصيد الثابت'!$H$2:$H$2100)) ->  | D194: =IF(B194="","",SUMIF('الرصيد الثابت'!$D$2:$D$2100,B194,'الرصيد الثابت'!$I$2:$I$2100)) ->  | E194: =IF(B194="","",SUMIF('الرصيد الثابت'!$D$2:$D$2100,B194,'الرصيد الثابت'!$J$2:$J$2100)) ->  | G194: 0 | M194: 0 | Q194: 0 | T194: 0
C195: =IF(B195="","",SUMIF('الرصيد الثابت'!$D$2:$D$2100,B195,'الرصيد الثابت'!$H$2:$H$2100)) ->  | D195: =IF(B195="","",SUMIF('الرصيد الثابت'!$D$2:$D$2100,B195,'الرصيد الثابت'!$I$2:$I$2100)) ->  | E195: =IF(B195="","",SUMIF('الرصيد الثابت'!$D$2:$D$2100,B195,'الرصيد الثابت'!$J$2:$J$2100)) ->  | G195: 0 | M195: =SUM(N195*L195) -> 0 | Q195: 0 | T195: 0
C196: =IF(B196="","",SUMIF('الرصيد الثابت'!$D$2:$D$2100,B196,'الرصيد الثابت'!$H$2:$H$2100)) ->  | D196: =IF(B196="","",SUMIF('الرصيد الثابت'!$D$2:$D$2100,B196,'الرصيد الثابت'!$I$2:$I$2100)) ->  | E196: =IF(B196="","",SUMIF('الرصيد الثابت'!$D$2:$D$2100,B196,'الرصيد الثابت'!$J$2:$J$2100)) ->  | G196: =SUM(H196*F196) -> 0 | M196: 0 | Q196: =SUM(F196-L196) -> 0 | T196: 0
C197: =IF(B197="","",SUMIF('الرصيد الثابت'!$D$2:$D$2100,B197,'الرصيد الثابت'!$H$2:$H$2100)) ->  | D197: =IF(B197="","",SUMIF('الرصيد الثابت'!$D$2:$D$2100,B197,'الرصيد الثابت'!$I$2:$I$2100)) ->  | E197: =IF(B197="","",SUMIF('الرصيد الثابت'!$D$2:$D$2100,B197,'الرصيد الثابت'!$J$2:$J$2100)) ->  | G197: 0 | M197: 0 | Q197: 0 | T197: 0
C198: =IF(B198="","",SUMIF('الرصيد الثابت'!$D$2:$D$2100,B198,'الرصيد الثابت'!$H$2:$H$2100)) ->  | D198: =IF(B198="","",SUMIF('الرصيد الثابت'!$D$2:$D$2100,B198,'الرصيد الثابت'!$I$2:$I$2100)) ->  | E198: =IF(B198="","",SUMIF('الرصيد الثابت'!$D$2:$D$2100,B198,'الرصيد الثابت'!$J$2:$J$2100)) ->  | G198: 0 | M198: 0 | Q198: 0 | T198: 0
C199: =IF(B199="","",SUMIF('الرصيد الثابت'!$D$2:$D$2100,B199,'الرصيد الثابت'!$H$2:$H$2100)) ->  | D199: =IF(B199="","",SUMIF('الرصيد الثابت'!$D$2:$D$2100,B199,'الرصيد الثابت'!$I$2:$I$2100)) ->  | E199: =IF(B199="","",SUMIF('الرصيد الثابت'!$D$2:$D$2100,B199,'الرصيد الثابت'!$J$2:$J$2100)) ->  | G199: 0 | M199: 0 | Q199: 0 | T199: =SUM(U199*S199) -> 0
C200: =IF(B200="","",SUMIF('الرصيد الثابت'!$D$2:$D$2100,B200,'الرصيد الثابت'!$H$2:$H$2100)) ->  | D200: =IF(B200="","",SUMIF('الرصيد الثابت'!$D$2:$D$2100,B200,'الرصيد الثابت'!$I$2:$I$2100)) ->  | E200: =IF(B200="","",SUMIF('الرصيد الثابت'!$D$2:$D$2100,B200,'الرصيد الثابت'!$J$2:$J$2100)) ->  | G200: 0 | M200: 0 | Q200: 0 | T200: 0
... 4300 more rows
